{"text_format":"1","workbook":"xlsx","n_sheets":7,"sheets":["Field Counts and Mapping","VCFLog","Capture","Instructions & FAQ","Outlook Import Fields","Outlook Contacts","VCF 3.0 Standard"],"not_rendered":{"charts":0,"images":0,"macros":1,"external_links":0,"defined_names":2,"comments":0,"pivot_tables":0},"unopened":[],"bounds":{"document_bytes":16777216,"sheet_cells":100000,"rows_first":2000,"rows_last":500,"rows_between":2000,"halvings":0,"cell_chars":16384,"cell_head_chars":4096},"cells_cut":0,"cells_raw":0,"read":"whole","date_system":"1900"}

{"sheet":"Field Counts and Mapping","index":0,"n_rows":124,"n_cols":22,"rows_kept":124,"cut":false,"hidden":false,"merged":[]}
[null,"Row Labels","Count of Field","Outlook Fields","Complete","Devel Complete",null,"Sort","Fields Used (Outlook Internal)","Fields Used (Outlook Import)",null,"VBA Commands","VBA Commands 2","Column","Column Num","VB","VB"]
[null,"ADR;TYPE=home:",19,"HomeAddress","x ",null,null,1,"FullName","Full Name",null,{"$f":"CONCATENATE(\"Dim \",I2,\"() As String\")","v":"Dim FullName() As String"},{"$f":"CONCATENATE(\"ReDim \",I2,\"(0 to contactscount)\")","v":"ReDim FullName(0 to contactscount)"},{"$f":"CHAR(O2+64)","v":"A"},{"$f":"H2","v":1},{"$f":"CONCATENATE(\"Cells(1,\",O2,\").Value=\"\"\",J2,\"\"\"\")","v":"Cells(1,1).Value=\"Full Name\""},{"$f":"CONCATENATE(\"Cells(r+2,\",O2,\").Value=TRIM(\",I2,\"(r))\")","v":"Cells(r+2,1).Value=TRIM(FullName(r))"}]
[null,"ADR;TYPE=other:",5,"OtherAddress","x",null,null,2,"CompanyName","Company",null,"Dim CompanyName() As String","ReDim CompanyName(0 to contactscount)",{"$f":"CHAR(O3+64)","v":"B"},2,"Cells(1,2).Value=\"Company\"",{"$f":"CONCATENATE(\"Cells(r+2,\",O3,\").Value=TRIM(\",I3,\"(r))\")","v":"Cells(r+2,2).Value=TRIM(CompanyName(r))"}]
[null,"ADR;TYPE=work:",15528,"BusinessAddress","x",null,null,3,"Department","Department",null,"Dim Department() As String","ReDim Department(0 to contactscount)","C",3,"Cells(1,3).Value=\"Department\"","Cells(r+2,3).Value=TRIM(Department(r))"]
[null,"BDAY:",6,"Birthday","x",null,null,4,"Jobtitle","Job Title",null,"Dim Jobtitle() As String","ReDim Jobtitle(0 to contactscount)","D",4,"Cells(1,4).Value=\"Job Title\"","Cells(r+2,4).Value=TRIM(Jobtitle(r))"]
[null,"BEGIN:",20483,"Ignore","x",null,null,5,"OfficeLocation","Office Location",null,"Dim OfficeLocation() As String","ReDim OfficeLocation(0 to contactscount)","E",5,"Cells(1,5).Value=\"Office Location\"","Cells(r+2,5).Value=TRIM(OfficeLocation(r))"]
[null,"EMAIL:",6,"Load emails sequentially into Email1, Email2, Email3","x",null,null,6,"LastName","Last Name",null,"Dim LastName() As String","ReDim LastName(0 to contactscount)","F",6,"Cells(1,6).Value=\"Last Name\"","Cells(r+2,6).Value=TRIM(LastName(r))"]
[null,"EMAIL;TYPE=other,pref:",13548,"Load emails sequentially into Email1, Email2, Email3","x",null,null,7,"FirstName","First Name",null,"Dim FirstName() As String","ReDim FirstName(0 to contactscount)","G",7,"Cells(1,7).Value=\"First Name\"",{"$f":"CONCATENATE(\"Cells(r+2,\",O8,\").Value=TRIM(\",I8,\"(r))\")","v":"Cells(r+2,7).Value=TRIM(FirstName(r))"}]
[null,"EMAIL;TYPE=other:",3489,"Load emails sequentially into Email1, Email2, Email3","x",null,null,8,"MiddleName","Middle Name",null,"Dim MiddleName() As String","ReDim MiddleName(0 to contactscount)","H",8,"Cells(1,8).Value=\"Middle Name\"","Cells(r+2,8).Value=TRIM(MiddleName(r))"]
[null,"EMAIL;TYPE=work,pref:",227,"Load emails sequentially into Email1, Email2, Email3","x",null,null,9,"Title","Title",null,"Dim Title() As String","ReDim Title(0 to contactscount)","I",9,"Cells(1,9).Value=\"Title\"","Cells(r+2,9).Value=TRIM(Title(r))"]
[null,"EMAIL;TYPE=work:",10,"Load emails sequentially into Email1, Email2, Email3","x",null,null,10,"Nickname","Nick Name",null,"Dim Nickname() As String","ReDim Nickname(0 to contactscount)","J",10,"Cells(1,10).Value=\"Nick Name\"","Cells(r+2,10).Value=TRIM(Nickname(r))"]
[null,"END:",20483,"End of vCard","x",null,null,11,"Suffix","Suffix",null,"Dim Suffix() As String","ReDim Suffix(0 to contactscount)","K",11,{"$f":"CONCATENATE(\"Cells(1,\",O12,\").Value=\"\"\",J12,\"\"\"\")","v":"Cells(1,11).Value=\"Suffix\""},"Cells(r+2,11).Value=TRIM(Suffix(r))"]
[null,"FN:",20483,"Full Name","x",null,null,12,"AssistantName","Assistant's Name",null,{"$f":"CONCATENATE(\"Dim \",I13,\"() As String\")","v":"Dim AssistantName() As String"},{"$f":"CONCATENATE(\"ReDim \",I13,\"(0 to contactscount)\")","v":"ReDim AssistantName(0 to contactscount)"},{"$f":"CHAR(O13+64)","v":"L"},{"$f":"H13","v":12},{"$f":"CONCATENATE(\"Cells(1,\",O13,\").Value=\"\"\",J13,\"\"\"\")","v":"Cells(1,12).Value=\"Assistant's Name\""},{"$f":"CONCATENATE(\"Cells(r+2,\",O13,\").Value=TRIM(\",I13,\"(r))\")","v":"Cells(r+2,12).Value=TRIM(AssistantName(r))"}]
[null,"N:",20483,"Parse into LASTNAME; FIRSTNAME; ADDITIONAL NAME; NAME PREFIX(Mr.,Mrs.); NAME SUFFIX","x",null,null,13,"ManagerName","Manager's Name",null,"Dim ManagerName() As String","ReDim ManagerName(0 to contactscount)","M",13,{"$f":"CONCATENATE(\"Cells(1,\",O14,\").Value=\"\"\",J14,\"\"\"\")","v":"Cells(1,13).Value=\"Manager's Name\""},"Cells(r+2,13).Value=TRIM(ManagerName(r))"]
[null,"NOTE:",3031,".Body","x",null,null,14,"Spouse","Spouse",null,"Dim Spouse() As String","ReDim Spouse(0 to contactscount)","N",14,{"$f":"CONCATENATE(\"Cells(1,\",O15,\").Value=\"\"\",J15,\"\"\"\")","v":"Cells(1,14).Value=\"Spouse\""},"Cells(r+2,14).Value=TRIM(Spouse(r))"]
[null,"ORG:",12016,"Parse into Company then Department then OfficeLocation","x",null,null,15,"Children","Children",null,"Dim Children() As String","ReDim Children(0 to contactscount)","O",15,"Cells(1,15).Value=\"Children\"","Cells(r+2,15).Value=TRIM(Children(r))"]
[null,"TEL:",32,"Multiple fields of same type are possible","x",null,null,16,"Anniversary","Anniversary",null,{"$f":"CONCATENATE(\"Dim \",I17,\"() As String\")","v":"Dim Anniversary() As String"},{"$f":"CONCATENATE(\"ReDim \",I17,\"(0 to contactscount)\")","v":"ReDim Anniversary(0 to contactscount)"},{"$f":"CHAR(O17+64)","v":"P"},16,{"$f":"CONCATENATE(\"Cells(1,\",O17,\").Value=\"\"\",J17,\"\"\"\")","v":"Cells(1,16).Value=\"Anniversary\""},{"$f":"CONCATENATE(\"Cells(r+2,\",O17,\").Value=TRIM(\",I17,\"(r))\")","v":"Cells(r+2,16).Value=TRIM(Anniversary(r))"}]
[null,"TEL;TYPE=home:",521,"Multiple fields of same type are possible","x",null,null,17,"Categories","Categories",null,"Dim Categories() As String","ReDim Categories(0 to contactscount)","Q",17,"Cells(1,17).Value=\"Categories\"","Cells(r+2,17).Value=TRIM(Categories(r))"]
[null,"TEL;TYPE=main:",2,"Multiple fields of same type are possible","x",null,null,18,"Email1Address","Email Address",null,"Dim Email1Address() As String","ReDim Email1Address(0 to contactscount)","R",18,"Cells(1,18).Value=\"Email Address\"","Cells(r+2,18).Value=TRIM(Email1Address(r))"]
[null,"TEL;TYPE=mobile:",11341,"Multiple fields of same type are possible","x",null,null,19,"Email2Address","Email 2 Address",null,"Dim Email2Address() As String","ReDim Email2Address(0 to contactscount)","S",19,"Cells(1,19).Value=\"Email 2 Address\"","Cells(r+2,19).Value=TRIM(Email2Address(r))"]
[null,"TEL;TYPE=other:",49,"Multiple fields of same type are possible","x",null,null,20,"Email3Address","Email 3 Address",null,"Dim Email3Address() As String","ReDim Email3Address(0 to contactscount)","T",20,"Cells(1,20).Value=\"Email 3 Address\"","Cells(r+2,20).Value=TRIM(Email3Address(r))"]
[null,"TEL;TYPE=other_fax:",99,"OtherFaxNumber","x",null,null,21,"BusinessTelephoneNumber","Business Phone",null,"Dim BusinessTelephoneNumber() As String","ReDim BusinessTelephoneNumber(0 to contactscount)","U",21,"Cells(1,21).Value=\"Business Phone\"","Cells(r+2,21).Value=TRIM(BusinessTelephoneNumber(r))",null,null,null,null,1]
[null,"TEL;TYPE=pager:",312,"Pager Number","x",null,null,22,"MobileTelephoneNumber","Mobile Phone",null,"Dim MobileTelephoneNumber() As String","ReDim MobileTelephoneNumber(0 to contactscount)","V",22,"Cells(1,22).Value=\"Mobile Phone\"","Cells(r+2,22).Value=TRIM(MobileTelephoneNumber(r))",null,null,null,null,2]
[null,"TEL;TYPE=work:",12694,"Multiple fields of same type are possible","x",null,null,23,"Business2TelephoneNumber","Business Phone 2",null,"Dim Business2TelephoneNumber() As String","ReDim Business2TelephoneNumber(0 to contactscount)","W",23,"Cells(1,23).Value=\"Business Phone 2\"","Cells(r+2,23).Value=TRIM(Business2TelephoneNumber(r))",null,null,null,null,3]
[null,"TEL;TYPE=work_fax:",868,"BusinessFaxNumber","x",null,null,24,"HomeTelephoneNumber","Home Phone",null,"Dim HomeTelephoneNumber() As String","ReDim HomeTelephoneNumber(0 to contactscount)","X",24,"Cells(1,24).Value=\"Home Phone\"","Cells(r+2,24).Value=TRIM(HomeTelephoneNumber(r))",null,null,null,null,4]
[null,"TEL;TYPE=work_pager:",2,"Pager Number","x",null,null,25,"CompanyMainTelephoneNumber","Company Main Phone",null,"Dim CompanyMainTelephoneNumber() As String","ReDim CompanyMainTelephoneNumber(0 to contactscount)","Y",25,"Cells(1,25).Value=\"Company Main Phone\"","Cells(r+2,25).Value=TRIM(CompanyMainTelephoneNumber(r))",null,null,null,null,5]
[null,"TITLE:",13904,"Job Title","x",null,null,26,"PrimaryTelephoneNumber","Primary Phone",null,"Dim PrimaryTelephoneNumber() As String","ReDim PrimaryTelephoneNumber(0 to contactscount)","Z",26,"Cells(1,26).Value=\"Primary Phone\"","Cells(r+2,26).Value=TRIM(PrimaryTelephoneNumber(r))",null,null,null,null,6]
[null,"URL:",1314,"URL","x",null,null,27,"OtherTelephoneNumber","Other Phone",null,"Dim OtherTelephoneNumber() As String","ReDim OtherTelephoneNumber(0 to contactscount)",{"$f":"CONCATENATE(\"A\"&N2)","v":"AA"},27,"Cells(1,27).Value=\"Other Phone\"","Cells(r+2,27).Value=TRIM(OtherTelephoneNumber(r))",null,null,null,null,7]
[null,"VERSION:",20483,"Check only","x",null,null,28,"PagerNumber","Pager",null,"Dim PagerNumber() As String","ReDim PagerNumber(0 to contactscount)",{"$f":"CONCATENATE(\"A\"&N3)","v":"AB"},28,"Cells(1,28).Value=\"Pager\"","Cells(r+2,28).Value=TRIM(PagerNumber(r))",null,null,null,null,8]
[null,"(blank)",null,null,null,null,null,29,"BusinessFaxNumber","Business Fax",null,"Dim BusinessFaxNumber() As String","ReDim BusinessFaxNumber(0 to contactscount)","AC",29,"Cells(1,29).Value=\"Business Fax\"","Cells(r+2,29).Value=TRIM(BusinessFaxNumber(r))",null,null,null,null,9]
[null,"Grand Total",191438,null,null,null,null,30,"HomeFaxNumber","Home Fax",null,"Dim HomeFaxNumber() As String","ReDim HomeFaxNumber(0 to contactscount)","AD",30,"Cells(1,30).Value=\"Home Fax\"","Cells(r+2,30).Value=TRIM(HomeFaxNumber(r))",null,null,null,null,10]
[null,null,null,null,null,null,null,31,"OtherFaxNumber","Other Fax",null,"Dim OtherFaxNumber() As String","ReDim OtherFaxNumber(0 to contactscount)","AE",31,"Cells(1,31).Value=\"Other Fax\"","Cells(r+2,31).Value=TRIM(OtherFaxNumber(r))",null,null,null,null,11]
[null,null,null,null,null,null,null,32,"BusinessAddressStreet","Business Street",null,"Dim BusinessAddressStreet() As String","ReDim BusinessAddressStreet(0 to contactscount)","AF",32,"Cells(1,32).Value=\"Business Street\"","Cells(r+2,32).Value=TRIM(BusinessAddressStreet(r))",null,null,null,null,12]
[null,null,null,null,null,null,null,33,"BusinessAddressPostOfficeBox","Business Street 2",null,"Dim BusinessAddressPostOfficeBox() As String","ReDim BusinessAddressPostOfficeBox(0 to contactscount)","AG",33,"Cells(1,33).Value=\"Business Street 2\"","Cells(r+2,33).Value=TRIM(BusinessAddressPostOfficeBox(r))",null,null,null,null,13]
[null,"Remaining Items",null,null,null,null,null,34,"BusinessAddressCity","Business City",null,"Dim BusinessAddressCity() As String","ReDim BusinessAddressCity(0 to contactscount)","AH",34,"Cells(1,34).Value=\"Business City\"","Cells(r+2,34).Value=TRIM(BusinessAddressCity(r))",null,null,null,null,14]
[null,"File open dialogue",null,null,null,null,null,35,"BusinessAddressState","Business State",null,"Dim BusinessAddressState() As String","ReDim BusinessAddressState(0 to contactscount)","AI",35,"Cells(1,35).Value=\"Business State\"","Cells(r+2,35).Value=TRIM(BusinessAddressState(r))",null,null,null,null,15]
[null,null,null,null,null,null,null,36,"BusinessAddressPostalCode","Business Postal Code",null,"Dim BusinessAddressPostalCode() As String","ReDim BusinessAddressPostalCode(0 to contactscount)","AJ",36,"Cells(1,36).Value=\"Business Postal Code\"","Cells(r+2,36).Value=TRIM(BusinessAddressPostalCode(r))",null,null,null,null,16]
[null,"Clean up addresses & duplicate countries",null,null,null,null,null,37,"BusinessAddressCountry","Business Country/Region",null,"Dim BusinessAddressCountry() As String","ReDim BusinessAddressCountry(0 to contactscount)","AK",37,"Cells(1,37).Value=\"Business Country/Region\"","Cells(r+2,37).Value=TRIM(BusinessAddressCountry(r))",null,null,null,null,17]
[null,"PO box is separate from Street 2, correct code",null,null,null,null,null,38,"HomeAddressStreet","Home Street",null,"Dim HomeAddressStreet() As String","ReDim HomeAddressStreet(0 to contactscount)","AL",38,"Cells(1,38).Value=\"Home Street\"","Cells(r+2,38).Value=TRIM(HomeAddressStreet(r))",null,null,null,null,18]
[null,null,null,null,null,null,null,39,"HomeAddressPostOfficeBox","Home Street 2",null,"Dim HomeAddressPostOfficeBox() As String","ReDim HomeAddressPostOfficeBox(0 to contactscount)","AM",39,"Cells(1,39).Value=\"Home Street 2\"","Cells(r+2,39).Value=TRIM(HomeAddressPostOfficeBox(r))",null,null,null,null,19]
[null,null,null,null,null,null,null,40,"HomeAddressCity","Home City",null,"Dim HomeAddressCity() As String","ReDim HomeAddressCity(0 to contactscount)","AN",40,"Cells(1,40).Value=\"Home City\"","Cells(r+2,40).Value=TRIM(HomeAddressCity(r))",null,null,null,null,20]
[null,null,null,null,null,null,null,41,"HomeAddressState","Home State",null,"Dim HomeAddressState() As String","ReDim HomeAddressState(0 to contactscount)","AO",41,"Cells(1,41).Value=\"Home State\"","Cells(r+2,41).Value=TRIM(HomeAddressState(r))",null,null,null,null,21]
[null,null,null,null,null,null,null,42,"HomeAddressPostalCode","Home Postal Code",null,"Dim HomeAddressPostalCode() As String","ReDim HomeAddressPostalCode(0 to contactscount)","AP",42,"Cells(1,42).Value=\"Home Postal Code\"","Cells(r+2,42).Value=TRIM(HomeAddressPostalCode(r))",null,null,null,null,22]
[null,null,null,null,null,null,null,43,"HomeAddressCountry","Home Country/Region",null,"Dim HomeAddressCountry() As String","ReDim HomeAddressCountry(0 to contactscount)","AQ",43,"Cells(1,43).Value=\"Home Country/Region\"","Cells(r+2,43).Value=TRIM(HomeAddressCountry(r))",null,null,null,null,23]
[null,null,null,null,null,null,null,44,"OtherAddressStreet","Other Street",null,"Dim OtherAddressStreet() As String","ReDim OtherAddressStreet(0 to contactscount)","AR",44,"Cells(1,44).Value=\"Other Street\"","Cells(r+2,44).Value=TRIM(OtherAddressStreet(r))",null,null,null,null,24]
[null,null,null,null,null,null,null,45,"OtherAddressPostOfficeBox","Other Street 2",null,"Dim OtherAddressPostOfficeBox() As String","ReDim OtherAddressPostOfficeBox(0 to contactscount)","AS",45,"Cells(1,45).Value=\"Other Street 2\"","Cells(r+2,45).Value=TRIM(OtherAddressPostOfficeBox(r))",null,null,null,null,25]
[null,null,null,null,null,null,null,46,"OtherAddressCity","Other City",null,"Dim OtherAddressCity() As String","ReDim OtherAddressCity(0 to contactscount)","AT",46,"Cells(1,46).Value=\"Other City\"","Cells(r+2,46).Value=TRIM(OtherAddressCity(r))",null,null,null,null,26]
[null,null,null,null,null,null,null,47,"OtherAddressState","Other State",null,"Dim OtherAddressState() As String","ReDim OtherAddressState(0 to contactscount)","AU",47,"Cells(1,47).Value=\"Other State\"","Cells(r+2,47).Value=TRIM(OtherAddressState(r))",null,null,null,null,27]
[null,null,null,null,null,null,null,48,"OtherAddressPostalCode","Other Postal Code",null,"Dim OtherAddressPostalCode() As String","ReDim OtherAddressPostalCode(0 to contactscount)","AV",48,"Cells(1,48).Value=\"Other Postal Code\"","Cells(r+2,48).Value=TRIM(OtherAddressPostalCode(r))",null,null,null,null,28]
[null,null,null,null,null,null,null,49,"OtherAddressCountry","Other Country/Region",null,"Dim OtherAddressCountry() As String","ReDim OtherAddressCountry(0 to contactscount)","AW",49,"Cells(1,49).Value=\"Other Country/Region\"","Cells(r+2,49).Value=TRIM(OtherAddressCountry(r))",null,null,null,null,29]
[null,null,null,null,null,null,null,50,"BusinessAddress","Business Address",null,"Dim BusinessAddress() As String","ReDim BusinessAddress(0 to contactscount)","AX",50,"Cells(1,50).Value=\"Business Address\"","Cells(r+2,50).Value=TRIM(BusinessAddress(r))",null,null,null,null,30]
[null,null,null,null,null,null,null,51,"HomeAddress","Home Address",null,"Dim HomeAddress() As String","ReDim HomeAddress(0 to contactscount)","AY",51,"Cells(1,51).Value=\"Home Address\"","Cells(r+2,51).Value=TRIM(HomeAddress(r))",null,null,null,null,31]
[null,null,null,null,null,null,null,52,"OtherAddress","Other Address",null,"Dim OtherAddress() As String","ReDim OtherAddress(0 to contactscount)","AZ",52,"Cells(1,52).Value=\"Other Address\"","Cells(r+2,52).Value=TRIM(OtherAddress(r))",null,null,null,null,32]
[null,null,null,null,null,null,null,53,"Birthday","Birthday",null,"Dim Birthday() As String","ReDim Birthday(0 to contactscount)",{"$f":"CONCATENATE(\"B\"&N2)","v":"BA"},53,"Cells(1,53).Value=\"Birthday\"","Cells(r+2,53).Value=TRIM(Birthday(r))",null,null,null,null,33]
[null,null,null,null,null,null,null,54,"WebPage","Web Page",null,"Dim WebPage() As String","ReDim WebPage(0 to contactscount)",{"$f":"CONCATENATE(\"B\"&N3)","v":"BB"},54,"Cells(1,54).Value=\"Web Page\"","Cells(r+2,54).Value=TRIM(WebPage(r))",null,null,null,null,34]
[null,null,null,null,null,null,null,55,"Body","Notes",null,"Dim Body() As String","ReDim Body(0 to contactscount)","BC",55,"Cells(1,55).Value=\"Notes\"","Cells(r+2,55).Value=TRIM(Body(r))",null,null,null,null,35]
[null,null,null,null,null,null,null,56,"PrefEmail","Preferred Email*",null,"Dim PrefEmail() As String","ReDim PrefEmail(0 to contactscount)","BD",56,{"$f":"CONCATENATE(\"Cells(1,\",O57,\").Value=\"\"\",J57,\"\"\"\")","v":"Cells(1,56).Value=\"Preferred Email*\""},{"$f":"CONCATENATE(\"Cells(r+2,\",O57,\").Value=TRIM(\",I57,\"(r))\")","v":"Cells(r+2,56).Value=TRIM(PrefEmail(r))"},null,null,null,null,36]
[null,null,null,null,null,null,null,57,"PrefPhone","Preferred Phone*",null,"Dim PrefPhone() As String","ReDim PrefPhone(0 to contactscount)","BE",57,"Cells(1,57).Value=\"Preferred Phone*\"","Cells(r+2,57).Value=TRIM(PrefPhone(r))",null,null,null,null,37]
[null,null,null,null,null,null,null,58,"PrefAddress","Preferred Address*",null,"Dim PrefAddress() As String","ReDim PrefAddress(0 to contactscount)","BF",58,"Cells(1,58).Value=\"Preferred Address*\"","Cells(r+2,58).Value=TRIM(PrefAddress(r))",null,null,null,null,38]
[null,null,null,null,null,null,null,59,"User1","User1",null,"Dim User1() As String","ReDim User1(0 to contactscount)","BG",59,{"$f":"CONCATENATE(\"Cells(1,\",O60,\").Value=\"\"\",J60,\"\"\"\",\" 'Column used for serial number for troubleshooting purposes\")","v":"Cells(1,59).Value=\"User1\" 'Column used for serial number for troubleshooting purposes"},"Cells(r+2,59).Value=TRIM(User1(r))",null,null,null,null,39]
[null,null,null,null,null,null,null,60,null,"Email Only Contact",null,null,null,"BH",60,"Cells(1,60).Value=\"Email Only Contact\"",null,null,null,null,null,40]
[null,null,null,null,null,null,null,61,"LongNotes1",{"$f":"I62","v":"LongNotes1"},null,"Dim LongNotes1() As String","ReDim LongNotes1(0 to contactscount)","BI",61,"Cells(1,61).Value=\"LongNotes1\"","Cells(r+2,61).Value=TRIM(LongNotes1(r))",null,null,null,null,41]
[null,null,null,null,null,null,null,62,"LongNotes2",{"$f":"I63","v":"LongNotes2"},null,"Dim LongNotes2() As String","ReDim LongNotes2(0 to contactscount)","BJ",62,"Cells(1,62).Value=\"LongNotes2\"","Cells(r+2,62).Value=TRIM(LongNotes2(r))",null,null,null,null,42]
[null,null,null,null,null,null,null,63,"LongNotes3","LongNotes3",null,"Dim LongNotes3() As String","ReDim LongNotes3(0 to contactscount)","BK",63,"Cells(1,63).Value=\"LongNotes3\"","Cells(r+2,63).Value=TRIM(LongNotes3(r))",null,null,null,null,43]
[null,null,null,null,null,null,null,64,"LongNotes4","LongNotes4",null,"Dim LongNotes4() As String","ReDim LongNotes4(0 to contactscount)","BL",64,"Cells(1,64).Value=\"LongNotes4\"","Cells(r+2,64).Value=TRIM(LongNotes4(r))",null,null,null,null,44]
[]
[]
[]
[]
[]
[]
[]
[]
[]
[]
[]
[]
[]
[]
[]
[]
[]
[]
[]
[]
[]
[]
[]
[]
[]
[]
[]
[]
[]
[]
[]
[]
[]
[]
[]
[]
[]
[]
[]
[]
[]
[]
[]
[]
[]
[]
[]
[]
[]
[]
[]
[]
[]
[]
[]
[]
[]
[]
[null,null,null,"    "]

{"sheet":"VCFLog","index":1,"n_rows":30000,"n_cols":8,"rows_kept":4500,"cut":true,"hidden":false,"merged":[],"bounds":{"rows_first":2000,"rows_last":500,"rows_between":2000,"halvings":0}}
["Full VCF Field","Field Type","Field Type 2","Field Type 3","Field Type 4","Field Type 5","Field Type 6","Item Number"]
[null,null,null,null,null,null,null,0]
["END:","END:",null,null,null,null,null,0]
["EMAIL;other;pref:","EMAIL;","other;","pref:",null,null,null,0]
["FN:","FN:",null,null,null,null,null,0]
["N:","N:",null,null,null,null,null,0]
["VERSION:","VERSION:",null,null,null,null,null,0]
["BEGIN:","BEGIN:",null,null,null,null,null,0]
["END:","END:",null,null,null,null,null,0]
["EMAIL;other;pref:","EMAIL;","other;","pref:",null,null,null,0]
["FN:","FN:",null,null,null,null,null,0]
["N:","N:",null,null,null,null,null,0]
["VERSION:","VERSION:",null,null,null,null,null,0]
["BEGIN:","BEGIN:",null,null,null,null,null,0]
["END:","END:",null,null,null,null,null,0]
["FN:","FN:",null,null,null,null,null,0]
["EMAIL;other;pref:","EMAIL;","other;","pref:",null,null,null,0]
["N:","N:",null,null,null,null,null,0]
["VERSION:","VERSION:",null,null,null,null,null,0]
["BEGIN:","BEGIN:",null,null,null,null,null,0]
["END:","END:",null,null,null,null,null,0]
["TITLE:","TITLE:",null,null,null,null,null,0]
["ORG:","ORG:",null,null,null,null,null,0]
["EMAIL;other;pref:","EMAIL;","other;","pref:",null,null,null,0]
["TEL;work:","TEL;","work:",null,null,null,null,0]
[null,null,null,null,null,null,null,0]
["ADR;work:","ADR;","work:",null,null,null,null,0]
["FN:","FN:",null,null,null,null,null,0]
["N:","N:",null,null,null,null,null,0]
["VERSION:","VERSION:",null,null,null,null,null,0]
["BEGIN:","BEGIN:",null,null,null,null,null,0]
["END:","END:",null,null,null,null,null,0]
["TITLE:","TITLE:",null,null,null,null,null,0]
["ORG:","ORG:",null,null,null,null,null,0]
["EMAIL;other;pref:","EMAIL;","other;","pref:",null,null,null,0]
["TEL;mobile:","TEL;","mobile:",null,null,null,null,0]
["TEL;work:","TEL;","work:",null,null,null,null,0]
["TEL;work_fax:","TEL;","work_fax:",null,null,null,null,0]
[null,null,null,null,null,null,null,0]
["ADR;work:","ADR;","work:",null,null,null,null,0]
["FN:","FN:",null,null,null,null,null,0]
["N:","N:",null,null,null,null,null,0]
["VERSION:","VERSION:",null,null,null,null,null,0]
["BEGIN:","BEGIN:",null,null,null,null,null,0]
["END:","END:",null,null,null,null,null,0]
["TITLE:","TITLE:",null,null,null,null,null,0]
["ORG:","ORG:",null,null,null,null,null,0]
["TEL;mobile:","TEL;","mobile:",null,null,null,null,0]
["TEL;home:","TEL;","home:",null,null,null,null,0]
["TEL;work:","TEL;","work:",null,null,null,null,0]
[null,null,null,null,null,null,null,0]
["ADR;work:","ADR;","work:",null,null,null,null,0]
["FN:","FN:",null,null,null,null,null,0]
["N:","N:",null,null,null,null,null,0]
["VERSION:","VERSION:",null,null,null,null,null,0]
["BEGIN:","BEGIN:",null,null,null,null,null,0]
["END:","END:",null,null,null,null,null,0]
["TITLE:","TITLE:",null,null,null,null,null,0]
["ORG:","ORG:",null,null,null,null,null,0]
["EMAIL;other;pref:","EMAIL;","other;","pref:",null,null,null,0]
["TEL;work:","TEL;","work:",null,null,null,null,0]
[null,null,null,null,null,null,null,0]
["ADR;work:","ADR;","work:",null,null,null,null,0]
["FN:","FN:",null,null,null,null,null,0]
["N:","N:",null,null,null,null,null,0]
["VERSION:","VERSION:",null,null,null,null,null,0]
["BEGIN:","BEGIN:",null,null,null,null,null,0]
["END:","END:",null,null,null,null,null,0]
["NOTE:","NOTE:",null,null,null,null,null,0]
["TITLE:","TITLE:",null,null,null,null,null,0]
["EMAIL;other:","EMAIL;","other:",null,null,null,null,0]
["EMAIL;other;pref:","EMAIL;","other;","pref:",null,null,null,0]
["TEL;work:","TEL;","work:",null,null,null,null,0]
["FN:","FN:",null,null,null,null,null,0]
["N:","N:",null,null,null,null,null,0]
["VERSION:","VERSION:",null,null,null,null,null,0]
["BEGIN:","BEGIN:",null,null,null,null,null,0]
["END:","END:",null,null,null,null,null,0]
["TITLE:","TITLE:",null,null,null,null,null,0]
["ORG:","ORG:",null,null,null,null,null,0]
["TEL;mobile:","TEL;","mobile:",null,null,null,null,0]
["ADR;work:","ADR;","work:",null,null,null,null,0]
["FN:","FN:",null,null,null,null,null,0]
["N:","N:",null,null,null,null,null,0]
["VERSION:","VERSION:",null,null,null,null,null,0]
["BEGIN:","BEGIN:",null,null,null,null,null,0]
["END:","END:",null,null,null,null,null,0]
["TITLE:","TITLE:",null,null,null,null,null,0]
["ORG:","ORG:",null,null,null,null,null,0]
["EMAIL;other;pref:","EMAIL;","other;","pref:",null,null,null,0]
["TEL;mobile:","TEL;","mobile:",null,null,null,null,0]
["TEL;work:","TEL;","work:",null,null,null,null,0]
[null,null,null,null,null,null,null,0]
["ADR;work:","ADR;","work:",null,null,null,null,0]
["ADR;work:","ADR;","work:",null,null,null,null,0]
["FN:","FN:",null,null,null,null,null,0]
["N:","N:",null,null,null,null,null,0]
["VERSION:","VERSION:",null,null,null,null,null,0]
["BEGIN:","BEGIN:",null,null,null,null,null,0]
["END:","END:",null,null,null,null,null,0]
["TITLE:","TITLE:",null,null,null,null,null,0]
["ORG:","ORG:",null,null,null,null,null,0]
["EMAIL;other;pref:","EMAIL;","other;","pref:",null,null,null,0]
["TEL;mobile:","TEL;","mobile:",null,null,null,null,0]
["TEL;mobile:","TEL;","mobile:",null,null,null,null,0]
[null,null,null,null,null,null,null,0]
["ADR;work:","ADR;","work:",null,null,null,null,0]
["FN:","FN:",null,null,null,null,null,0]
["N:","N:",null,null,null,null,null,0]
["VERSION:","VERSION:",null,null,null,null,null,0]
["BEGIN:","BEGIN:",null,null,null,null,null,0]
["END:","END:",null,null,null,null,null,0]
["TITLE:","TITLE:",null,null,null,null,null,0]
["ORG:","ORG:",null,null,null,null,null,0]
["TEL;mobile:","TEL;","mobile:",null,null,null,null,0]
["TEL;work:","TEL;","work:",null,null,null,null,0]
[null,null,null,null,null,null,null,0]
["ADR;work:","ADR;","work:",null,null,null,null,0]
["FN:","FN:",null,null,null,null,null,0]
["N:","N:",null,null,null,null,null,0]
["VERSION:","VERSION:",null,null,null,null,null,0]
["BEGIN:","BEGIN:",null,null,null,null,null,0]
["END:","END:",null,null,null,null,null,0]
["TITLE:","TITLE:",null,null,null,null,null,0]
["ORG:","ORG:",null,null,null,null,null,0]
["EMAIL;other:","EMAIL;","other:",null,null,null,null,0]
["TEL;mobile:","TEL;","mobile:",null,null,null,null,0]
["TEL;work:","TEL;","work:",null,null,null,null,0]
[null,null,null,null,null,null,null,0]
["ADR;work:","ADR;","work:",null,null,null,null,0]
["FN:","FN:",null,null,null,null,null,0]
["N:","N:",null,null,null,null,null,0]
["VERSION:","VERSION:",null,null,null,null,null,0]
["BEGIN:","BEGIN:",null,null,null,null,null,0]
["END:","END:",null,null,null,null,null,0]
["TITLE:","TITLE:",null,null,null,null,null,0]
["ORG:","ORG:",null,null,null,null,null,0]
["TEL;mobile:","TEL;","mobile:",null,null,null,null,0]
["TEL;work:","TEL;","work:",null,null,null,null,0]
[null,null,null,null,null,null,null,0]
["ADR;work:","ADR;","work:",null,null,null,null,0]
["FN:","FN:",null,null,null,null,null,0]
["N:","N:",null,null,null,null,null,0]
["VERSION:","VERSION:",null,null,null,null,null,0]
["BEGIN:","BEGIN:",null,null,null,null,null,0]
["END:","END:",null,null,null,null,null,0]
["TITLE:","TITLE:",null,null,null,null,null,0]
["ORG:","ORG:",null,null,null,null,null,0]
["TEL;mobile:","TEL;","mobile:",null,null,null,null,0]
["TEL;work:","TEL;","work:",null,null,null,null,0]
[null,null,null,null,null,null,null,0]
["ADR;work:","ADR;","work:",null,null,null,null,0]
["FN:","FN:",null,null,null,null,null,0]
["N:","N:",null,null,null,null,null,0]
["VERSION:","VERSION:",null,null,null,null,null,0]
["BEGIN:","BEGIN:",null,null,null,null,null,0]
["END:","END:",null,null,null,null,null,0]
["TITLE:","TITLE:",null,null,null,null,null,0]
["ORG:","ORG:",null,null,null,null,null,0]
["EMAIL;other;pref:","EMAIL;","other;","pref:",null,null,null,0]
["TEL;work:","TEL;","work:",null,null,null,null,0]
[null,null,null,null,null,null,null,0]
["ADR;work:","ADR;","work:",null,null,null,null,0]
["FN:","FN:",null,null,null,null,null,0]
["N:","N:",null,null,null,null,null,0]
["VERSION:","VERSION:",null,null,null,null,null,0]
["BEGIN:","BEGIN:",null,null,null,null,null,0]
["END:","END:",null,null,null,null,null,0]
["NOTE:","NOTE:",null,null,null,null,null,0]
["TITLE:","TITLE:",null,null,null,null,null,0]
["ORG:","ORG:",null,null,null,null,null,0]
["EMAIL;other:","EMAIL;","other:",null,null,null,null,0]
["EMAIL;other;pref:","EMAIL;","other;","pref:",null,null,null,0]
["TEL;mobile:","TEL;","mobile:",null,null,null,null,0]
["TEL;mobile:","TEL;","mobile:",null,null,null,null,0]
["TEL;work:","TEL;","work:",null,null,null,null,0]
["TEL;work:","TEL;","work:",null,null,null,null,0]
["ADR;work:","ADR;","work:",null,null,null,null,0]
[null,null,null,null,null,null,null,0]
["ADR;work:","ADR;","work:",null,null,null,null,0]
["FN:","FN:",null,null,null,null,null,0]
["N:","N:",null,null,null,null,null,0]
["VERSION:","VERSION:",null,null,null,null,null,0]
["BEGIN:","BEGIN:",null,null,null,null,null,0]
["END:","END:",null,null,null,null,null,0]
["TEL;work:","TEL;","work:",null,null,null,null,0]
[null,null,null,null,null,null,null,0]
["ADR;work:","ADR;","work:",null,null,null,null,0]
["FN:","FN:",null,null,null,null,null,0]
["N:","N:",null,null,null,null,null,0]
["VERSION:","VERSION:",null,null,null,null,null,0]
["BEGIN:","BEGIN:",null,null,null,null,null,0]
["END:","END:",null,null,null,null,null,0]
["FN:","FN:",null,null,null,null,null,0]
["EMAIL;other;pref:","EMAIL;","other;","pref:",null,null,null,0]
["N:","N:",null,null,null,null,null,0]
["VERSION:","VERSION:",null,null,null,null,null,0]
["BEGIN:","BEGIN:",null,null,null,null,null,0]
["END:","END:",null,null,null,null,null,0]
["NOTE:","NOTE:",null,null,null,null,null,0]
["TITLE:","TITLE:",null,null,null,null,null,0]
["ORG:","ORG:",null,null,null,null,null,0]
["EMAIL;other;pref:","EMAIL;","other;","pref:",null,null,null,0]
["TEL;mobile:","TEL;","mobile:",null,null,null,null,0]
["TEL;work:","TEL;","work:",null,null,null,null,0]
["TEL;work:","TEL;","work:",null,null,null,null,0]
[null,null,null,null,null,null,null,0]
["ADR;work:","ADR;","work:",null,null,null,null,0]
[null,null,null,null,null,null,null,0]
["ADR;work:","ADR;","work:",null,null,null,null,0]
["FN:","FN:",null,null,null,null,null,0]
["N:","N:",null,null,null,null,null,0]
["VERSION:","VERSION:",null,null,null,null,null,0]
["BEGIN:","BEGIN:",null,null,null,null,null,0]
["END:","END:",null,null,null,null,null,0]
["TITLE:","TITLE:",null,null,null,null,null,0]
["EMAIL;other;pref:","EMAIL;","other;","pref:",null,null,null,0]
["TEL;mobile:","TEL;","mobile:",null,null,null,null,0]
["TEL;work:","TEL;","work:",null,null,null,null,0]
["ADR;work:","ADR;","work:",null,null,null,null,0]
["FN:","FN:",null,null,null,null,null,0]
["N:","N:",null,null,null,null,null,0]
["VERSION:","VERSION:",null,null,null,null,null,0]
["BEGIN:","BEGIN:",null,null,null,null,null,0]
["END:","END:",null,null,null,null,null,0]
["EMAIL;other;pref:","EMAIL;","other;","pref:",null,null,null,0]
["FN:","FN:",null,null,null,null,null,0]
["N:","N:",null,null,null,null,null,0]
["VERSION:","VERSION:",null,null,null,null,null,0]
["BEGIN:","BEGIN:",null,null,null,null,null,0]
["END:","END:",null,null,null,null,null,0]
["TITLE:","TITLE:",null,null,null,null,null,0]
["ORG:","ORG:",null,null,null,null,null,0]
["EMAIL;other;pref:","EMAIL;","other;","pref:",null,null,null,0]
["TEL;mobile:","TEL;","mobile:",null,null,null,null,0]
["TEL;work:","TEL;","work:",null,null,null,null,0]
[null,null,null,null,null,null,null,0]
["ADR;work:","ADR;","work:",null,null,null,null,0]
["FN:","FN:",null,null,null,null,null,0]
["N:","N:",null,null,null,null,null,0]
["VERSION:","VERSION:",null,null,null,null,null,0]
["BEGIN:","BEGIN:",null,null,null,null,null,0]
["END:","END:",null,null,null,null,null,0]
["NOTE:","NOTE:",null,null,null,null,null,0]
["TITLE:","TITLE:",null,null,null,null,null,0]
["ORG:","ORG:",null,null,null,null,null,0]
["EMAIL;other;pref:","EMAIL;","other;","pref:",null,null,null,0]
["TEL;mobile:","TEL;","mobile:",null,null,null,null,0]
["TEL:","TEL:",null,null,null,null,null,0]
["TEL;other_fax:","TEL;","other_fax:",null,null,null,null,0]
["TEL;mobile:","TEL;","mobile:",null,null,null,null,0]
[null,null,null,null,null,null,null,0]
["ADR;work:","ADR;","work:",null,null,null,null,0]
[null,null,null,null,null,null,null,0]
["ADR;work:","ADR;","work:",null,null,null,null,0]
["FN:","FN:",null,null,null,null,null,0]
["N:","N:",null,null,null,null,null,0]
["VERSION:","VERSION:",null,null,null,null,null,0]
["BEGIN:","BEGIN:",null,null,null,null,null,0]
["END:","END:",null,null,null,null,null,0]
["TITLE:","TITLE:",null,null,null,null,null,0]
["ORG:","ORG:",null,null,null,null,null,0]
["EMAIL;other:","EMAIL;","other:",null,null,null,null,0]
[null,null,null,null,null,null,null,0]
["ADR;work:","ADR;","work:",null,null,null,null,0]
["FN:","FN:",null,null,null,null,null,0]
["N:","N:",null,null,null,null,null,0]
["VERSION:","VERSION:",null,null,null,null,null,0]
["BEGIN:","BEGIN:",null,null,null,null,null,0]
["END:","END:",null,null,null,null,null,0]
["EMAIL;other;pref:","EMAIL;","other;","pref:",null,null,null,0]
["FN:","FN:",null,null,null,null,null,0]
["N:","N:",null,null,null,null,null,0]
["VERSION:","VERSION:",null,null,null,null,null,0]
["BEGIN:","BEGIN:",null,null,null,null,null,0]
["END:","END:",null,null,null,null,null,0]
["TITLE:","TITLE:",null,null,null,null,null,0]
["ORG:","ORG:",null,null,null,null,null,0]
["EMAIL;other;pref:","EMAIL;","other;","pref:",null,null,null,0]
["TEL;work:","TEL;","work:",null,null,null,null,0]
[null,null,null,null,null,null,null,0]
["ADR;work:","ADR;","work:",null,null,null,null,0]
["FN:","FN:",null,null,null,null,null,0]
["N:","N:",null,null,null,null,null,0]
["VERSION:","VERSION:",null,null,null,null,null,0]
["BEGIN:","BEGIN:",null,null,null,null,null,0]
["END:","END:",null,null,null,null,null,0]
[null,null,null,null,null,null,null,0]
["URL:","URL:",null,null,null,null,null,0]
["TITLE:","TITLE:",null,null,null,null,null,0]
["ORG:","ORG:",null,null,null,null,null,0]
["EMAIL;other:","EMAIL;","other:",null,null,null,null,0]
["EMAIL;other;pref:","EMAIL;","other;","pref:",null,null,null,0]
["TEL;work:","TEL;","work:",null,null,null,null,0]
["TEL;work_fax:","TEL;","work_fax:",null,null,null,null,0]
[null,null,null,null,null,null,null,0]
["ADR;work:","ADR;","work:",null,null,null,null,0]
["FN:","FN:",null,null,null,null,null,0]
["N:","N:",null,null,null,null,null,0]
["VERSION:","VERSION:",null,null,null,null,null,0]
["BEGIN:","BEGIN:",null,null,null,null,null,0]
["END:","END:",null,null,null,null,null,0]
["TITLE:","TITLE:",null,null,null,null,null,0]
["TEL;mobile:","TEL;","mobile:",null,null,null,null,0]
["TEL;work:","TEL;","work:",null,null,null,null,0]
["ADR;work:","ADR;","work:",null,null,null,null,0]
["FN:","FN:",null,null,null,null,null,0]
["N:","N:",null,null,null,null,null,0]
["VERSION:","VERSION:",null,null,null,null,null,0]
["BEGIN:","BEGIN:",null,null,null,null,null,0]
["END:","END:",null,null,null,null,null,0]
["TITLE:","TITLE:",null,null,null,null,null,0]
["ORG:","ORG:",null,null,null,null,null,0]
["TEL;mobile:","TEL;","mobile:",null,null,null,null,0]
["TEL;work:","TEL;","work:",null,null,null,null,0]
[null,null,null,null,null,null,null,0]
["ADR;work:","ADR;","work:",null,null,null,null,0]
["FN:","FN:",null,null,null,null,null,0]
["N:","N:",null,null,null,null,null,0]
["VERSION:","VERSION:",null,null,null,null,null,0]
["BEGIN:","BEGIN:",null,null,null,null,null,0]
["END:","END:",null,null,null,null,null,0]
["EMAIL;other;pref:","EMAIL;","other;","pref:",null,null,null,0]
["FN:","FN:",null,null,null,null,null,0]
["N:","N:",null,null,null,null,null,0]
["VERSION:","VERSION:",null,null,null,null,null,0]
["BEGIN:","BEGIN:",null,null,null,null,null,0]
["END:","END:",null,null,null,null,null,0]
["TITLE:","TITLE:",null,null,null,null,null,0]
["ORG:","ORG:",null,null,null,null,null,0]
["EMAIL;other;pref:","EMAIL;","other;","pref:",null,null,null,0]
["TEL;mobile:","TEL;","mobile:",null,null,null,null,0]
["TEL;work:","TEL;","work:",null,null,null,null,0]
[null,null,null,null,null,null,null,0]
["ADR;work:","ADR;","work:",null,null,null,null,0]
["FN:","FN:",null,null,null,null,null,0]
["N:","N:",null,null,null,null,null,0]
["VERSION:","VERSION:",null,null,null,null,null,0]
["BEGIN:","BEGIN:",null,null,null,null,null,0]
["END:","END:",null,null,null,null,null,0]
["TITLE:","TITLE:",null,null,null,null,null,0]
["ORG:","ORG:",null,null,null,null,null,0]
["EMAIL;other;pref:","EMAIL;","other;","pref:",null,null,null,0]
["TEL;work:","TEL;","work:",null,null,null,null,0]
["ADR;work:","ADR;","work:",null,null,null,null,0]
["FN:","FN:",null,null,null,null,null,0]
["N:","N:",null,null,null,null,null,0]
["VERSION:","VERSION:",null,null,null,null,null,0]
["BEGIN:","BEGIN:",null,null,null,null,null,0]
["END:","END:",null,null,null,null,null,0]
[null,null,null,null,null,null,null,0]
["URL:","URL:",null,null,null,null,null,0]
["TITLE:","TITLE:",null,null,null,null,null,0]
["ORG:","ORG:",null,null,null,null,null,0]
["EMAIL;other;pref:","EMAIL;","other;","pref:",null,null,null,0]
["EMAIL;other:","EMAIL;","other:",null,null,null,null,0]
["TEL;mobile:","TEL;","mobile:",null,null,null,null,0]
["TEL;mobile:","TEL;","mobile:",null,null,null,null,0]
["ADR;work:","ADR;","work:",null,null,null,null,0]
["FN:","FN:",null,null,null,null,null,0]
["N:","N:",null,null,null,null,null,0]
["VERSION:","VERSION:",null,null,null,null,null,0]
["BEGIN:","BEGIN:",null,null,null,null,null,0]
["END:","END:",null,null,null,null,null,0]
["NOTE:","NOTE:",null,null,null,null,null,0]
["ORG:","ORG:",null,null,null,null,null,0]
["TITLE:","TITLE:",null,null,null,null,null,0]
["EMAIL;other:","EMAIL;","other:",null,null,null,null,0]
["TEL;mobile:","TEL;","mobile:",null,null,null,null,0]
["TEL;mobile:","TEL;","mobile:",null,null,null,null,0]
["TEL;work:","TEL;","work:",null,null,null,null,0]
["ADR;work:","ADR;","work:",null,null,null,null,0]
["ADR;work:","ADR;","work:",null,null,null,null,0]
["FN:","FN:",null,null,null,null,null,0]
["N:","N:",null,null,null,null,null,0]
["VERSION:","VERSION:",null,null,null,null,null,0]
["BEGIN:","BEGIN:",null,null,null,null,null,0]
["END:","END:",null,null,null,null,null,0]
["ORG:","ORG:",null,null,null,null,null,0]
["EMAIL;other;pref:","EMAIL;","other;","pref:",null,null,null,0]
["TEL;work:","TEL;","work:",null,null,null,null,0]
["ADR;work:","ADR;","work:",null,null,null,null,0]
["FN:","FN:",null,null,null,null,null,0]
["N:","N:",null,null,null,null,null,0]
["VERSION:","VERSION:",null,null,null,null,null,0]
["BEGIN:","BEGIN:",null,null,null,null,null,0]
["END:","END:",null,null,null,null,null,0]
["EMAIL;other;pref:","EMAIL;","other;","pref:",null,null,null,0]
["FN:","FN:",null,null,null,null,null,0]
["N:","N:",null,null,null,null,null,0]
["VERSION:","VERSION:",null,null,null,null,null,0]
["BEGIN:","BEGIN:",null,null,null,null,null,0]
["END:","END:",null,null,null,null,null,0]
["TITLE:","TITLE:",null,null,null,null,null,0]
["ORG:","ORG:",null,null,null,null,null,0]
["EMAIL;other;pref:","EMAIL;","other;","pref:",null,null,null,0]
["TEL;mobile:","TEL;","mobile:",null,null,null,null,0]
[null,null,null,null,null,null,null,0]
["ADR;work:","ADR;","work:",null,null,null,null,0]
["FN:","FN:",null,null,null,null,null,0]
["N:","N:",null,null,null,null,null,0]
["VERSION:","VERSION:",null,null,null,null,null,0]
["BEGIN:","BEGIN:",null,null,null,null,null,0]
["END:","END:",null,null,null,null,null,0]
["TITLE:","TITLE:",null,null,null,null,null,0]
["ORG:","ORG:",null,null,null,null,null,0]
["EMAIL;other;pref:","EMAIL;","other;","pref:",null,null,null,0]
["TEL;mobile:","TEL;","mobile:",null,null,null,null,0]
["TEL;work:","TEL;","work:",null,null,null,null,0]
["ADR;work:","ADR;","work:",null,null,null,null,0]
["FN:","FN:",null,null,null,null,null,0]
["N:","N:",null,null,null,null,null,0]
["VERSION:","VERSION:",null,null,null,null,null,0]
["BEGIN:","BEGIN:",null,null,null,null,null,0]
["END:","END:",null,null,null,null,null,0]
["FN:","FN:",null,null,null,null,null,0]
["EMAIL;other;pref:","EMAIL;","other;","pref:",null,null,null,0]
["N:","N:",null,null,null,null,null,0]
["VERSION:","VERSION:",null,null,null,null,null,0]
["BEGIN:","BEGIN:",null,null,null,null,null,0]
["END:","END:",null,null,null,null,null,0]
[null,null,null,null,null,null,null,0]
[null,null,null,null,null,null,null,0]
[null,null,null,null,null,null,null,0]
["NOTE:","NOTE:",null,null,null,null,null,0]
["ORG:","ORG:",null,null,null,null,null,0]
["EMAIL;other:","EMAIL;","other:",null,null,null,null,0]
["EMAIL;other;pref:","EMAIL;","other;","pref:",null,null,null,0]
["TEL;work:","TEL;","work:",null,null,null,null,0]
["TEL;mobile:","TEL;","mobile:",null,null,null,null,0]
["TEL;work:","TEL;","work:",null,null,null,null,0]
["TEL;work_fax:","TEL;","work_fax:",null,null,null,null,0]
["ADR;work:","ADR;","work:",null,null,null,null,0]
["FN:","FN:",null,null,null,null,null,0]
["N:","N:",null,null,null,null,null,0]
["VERSION:","VERSION:",null,null,null,null,null,0]
["BEGIN:","BEGIN:",null,null,null,null,null,0]
["END:","END:",null,null,null,null,null,0]
[null,null,null,null,null,null,null,0]
["NOTE:","NOTE:",null,null,null,null,null,0]
["TITLE:","TITLE:",null,null,null,null,null,0]
["ORG:","ORG:",null,null,null,null,null,0]
["TEL;work:","TEL;","work:",null,null,null,null,0]
["ADR;work:","ADR;","work:",null,null,null,null,0]
["FN:","FN:",null,null,null,null,null,0]
["N:","N:",null,null,null,null,null,0]
["VERSION:","VERSION:",null,null,null,null,null,0]
["BEGIN:","BEGIN:",null,null,null,null,null,0]
["END:","END:",null,null,null,null,null,0]
["TITLE:","TITLE:",null,null,null,null,null,0]
["ORG:","ORG:",null,null,null,null,null,0]
["EMAIL;other;pref:","EMAIL;","other;","pref:",null,null,null,0]
["TEL;mobile:","TEL;","mobile:",null,null,null,null,0]
["TEL;work:","TEL;","work:",null,null,null,null,0]
[null,null,null,null,null,null,null,0]
["ADR;work:","ADR;","work:",null,null,null,null,0]
["FN:","FN:",null,null,null,null,null,0]
["N:","N:",null,null,null,null,null,0]
["VERSION:","VERSION:",null,null,null,null,null,0]
["BEGIN:","BEGIN:",null,null,null,null,null,0]
["END:","END:",null,null,null,null,null,0]
["TITLE:","TITLE:",null,null,null,null,null,0]
["ORG:","ORG:",null,null,null,null,null,0]
["EMAIL;other:","EMAIL;","other:",null,null,null,null,0]
["TEL;mobile:","TEL;","mobile:",null,null,null,null,0]
["TEL;work:","TEL;","work:",null,null,null,null,0]
[null,null,null,null,null,null,null,0]
["ADR;work:","ADR;","work:",null,null,null,null,0]
["FN:","FN:",null,null,null,null,null,0]
["N:","N:",null,null,null,null,null,0]
["VERSION:","VERSION:",null,null,null,null,null,0]
["BEGIN:","BEGIN:",null,null,null,null,null,0]
["END:","END:",null,null,null,null,null,0]
["TITLE:","TITLE:",null,null,null,null,null,0]
["ORG:","ORG:",null,null,null,null,null,0]
["TEL;mobile:","TEL;","mobile:",null,null,null,null,0]
["TEL;work:","TEL;","work:",null,null,null,null,0]
["ADR;work:","ADR;","work:",null,null,null,null,0]
["FN:","FN:",null,null,null,null,null,0]
["N:","N:",null,null,null,null,null,0]
["VERSION:","VERSION:",null,null,null,null,null,0]
["BEGIN:","BEGIN:",null,null,null,null,null,0]
["END:","END:",null,null,null,null,null,0]
["TITLE:","TITLE:",null,null,null,null,null,0]
["ORG:","ORG:",null,null,null,null,null,0]
["TEL;mobile:","TEL;","mobile:",null,null,null,null,0]
[null,null,null,null,null,null,null,0]
["ADR;work:","ADR;","work:",null,null,null,null,0]
["FN:","FN:",null,null,null,null,null,0]
["N:","N:",null,null,null,null,null,0]
["VERSION:","VERSION:",null,null,null,null,null,0]
["BEGIN:","BEGIN:",null,null,null,null,null,0]
["END:","END:",null,null,null,null,null,0]
["ORG:","ORG:",null,null,null,null,null,0]
["EMAIL;other;pref:","EMAIL;","other;","pref:",null,null,null,0]
["TEL;work:","TEL;","work:",null,null,null,null,0]
["ADR;work:","ADR;","work:",null,null,null,null,0]
["FN:","FN:",null,null,null,null,null,0]
["N:","N:",null,null,null,null,null,0]
["VERSION:","VERSION:",null,null,null,null,null,0]
["BEGIN:","BEGIN:",null,null,null,null,null,0]
["END:","END:",null,null,null,null,null,0]
["TITLE:","TITLE:",null,null,null,null,null,0]
["ORG:","ORG:",null,null,null,null,null,0]
["EMAIL;other;pref:","EMAIL;","other;","pref:",null,null,null,0]
["TEL;work:","TEL;","work:",null,null,null,null,0]
["TEL;work_fax:","TEL;","work_fax:",null,null,null,null,0]
["ADR;work:","ADR;","work:",null,null,null,null,0]
["FN:","FN:",null,null,null,null,null,0]
["N:","N:",null,null,null,null,null,0]
["VERSION:","VERSION:",null,null,null,null,null,0]
["BEGIN:","BEGIN:",null,null,null,null,null,0]
["END:","END:",null,null,null,null,null,0]
["NOTE:","NOTE:",null,null,null,null,null,0]
["ORG:","ORG:",null,null,null,null,null,0]
["EMAIL;other;pref:","EMAIL;","other;","pref:",null,null,null,0]
["FN:","FN:",null,null,null,null,null,0]
["N:","N:",null,null,null,null,null,0]
["VERSION:","VERSION:",null,null,null,null,null,0]
["BEGIN:","BEGIN:",null,null,null,null,null,0]
["END:","END:",null,null,null,null,null,0]
["TITLE:","TITLE:",null,null,null,null,null,0]
["ORG:","ORG:",null,null,null,null,null,0]
["EMAIL;other:","EMAIL;","other:",null,null,null,null,0]
["TEL;mobile:","TEL;","mobile:",null,null,null,null,0]
["TEL;work:","TEL;","work:",null,null,null,null,0]
[null,null,null,null,null,null,null,0]
[null,null,null,null,null,null,null,0]
["ADR;work:","ADR;","work:",null,null,null,null,0]
["FN:","FN:",null,null,null,null,null,0]
["N:","N:",null,null,null,null,null,0]
["VERSION:","VERSION:",null,null,null,null,null,0]
["BEGIN:","BEGIN:",null,null,null,null,null,0]
["END:","END:",null,null,null,null,null,0]
[null,null,null,null,null,null,null,0]
["URL:","URL:",null,null,null,null,null,0]
["TITLE:","TITLE:",null,null,null,null,null,0]
["EMAIL;other;pref:","EMAIL;","other;","pref:",null,null,null,0]
["FN:","FN:",null,null,null,null,null,0]
["N:","N:",null,null,null,null,null,0]
["VERSION:","VERSION:",null,null,null,null,null,0]
["BEGIN:","BEGIN:",null,null,null,null,null,0]
["END:","END:",null,null,null,null,null,0]
["EMAIL;other;pref:","EMAIL;","other;","pref:",null,null,null,0]
["FN:","FN:",null,null,null,null,null,0]
["N:","N:",null,null,null,null,null,0]
["VERSION:","VERSION:",null,null,null,null,null,0]
["BEGIN:","BEGIN:",null,null,null,null,null,0]
["END:","END:",null,null,null,null,null,0]
[null,null,null,null,null,null,null,0]
["URL:","URL:",null,null,null,null,null,0]
["TITLE:","TITLE:",null,null,null,null,null,0]
["EMAIL;other;pref:","EMAIL;","other;","pref:",null,null,null,0]
["FN:","FN:",null,null,null,null,null,0]
["N:","N:",null,null,null,null,null,0]
["VERSION:","VERSION:",null,null,null,null,null,0]
["BEGIN:","BEGIN:",null,null,null,null,null,0]
["END:","END:",null,null,null,null,null,0]
["TITLE:","TITLE:",null,null,null,null,null,0]
["EMAIL;other;pref:","EMAIL;","other;","pref:",null,null,null,0]
["ADR;work:","ADR;","work:",null,null,null,null,0]
["FN:","FN:",null,null,null,null,null,0]
["N:","N:",null,null,null,null,null,0]
["VERSION:","VERSION:",null,null,null,null,null,0]
["BEGIN:","BEGIN:",null,null,null,null,null,0]
["END:","END:",null,null,null,null,null,0]
["EMAIL;other;pref:","EMAIL;","other;","pref:",null,null,null,0]
["FN:","FN:",null,null,null,null,null,0]
["N:","N:",null,null,null,null,null,0]
["VERSION:","VERSION:",null,null,null,null,null,0]
["BEGIN:","BEGIN:",null,null,null,null,null,0]
["END:","END:",null,null,null,null,null,0]
["EMAIL;other;pref:","EMAIL;","other;","pref:",null,null,null,0]
["FN:","FN:",null,null,null,null,null,0]
["N:","N:",null,null,null,null,null,0]
["VERSION:","VERSION:",null,null,null,null,null,0]
["BEGIN:","BEGIN:",null,null,null,null,null,0]
["END:","END:",null,null,null,null,null,0]
["ORG:","ORG:",null,null,null,null,null,0]
["EMAIL;other;pref:","EMAIL;","other;","pref:",null,null,null,0]
["ADR;work:","ADR;","work:",null,null,null,null,0]
["FN:","FN:",null,null,null,null,null,0]
["N:","N:",null,null,null,null,null,0]
["VERSION:","VERSION:",null,null,null,null,null,0]
["BEGIN:","BEGIN:",null,null,null,null,null,0]
["END:","END:",null,null,null,null,null,0]
["EMAIL;other;pref:","EMAIL;","other;","pref:",null,null,null,0]
["FN:","FN:",null,null,null,null,null,0]
["N:","N:",null,null,null,null,null,0]
["VERSION:","VERSION:",null,null,null,null,null,0]
["BEGIN:","BEGIN:",null,null,null,null,null,0]
["END:","END:",null,null,null,null,null,0]
["TITLE:","TITLE:",null,null,null,null,null,0]
["ORG:","ORG:",null,null,null,null,null,0]
["EMAIL;other;pref:","EMAIL;","other;","pref:",null,null,null,0]
["TEL;mobile:","TEL;","mobile:",null,null,null,null,0]
["TEL;work:","TEL;","work:",null,null,null,null,0]
[null,null,null,null,null,null,null,0]
["ADR;work:","ADR;","work:",null,null,null,null,0]
["FN:","FN:",null,null,null,null,null,0]
["N:","N:",null,null,null,null,null,0]
["VERSION:","VERSION:",null,null,null,null,null,0]
["BEGIN:","BEGIN:",null,null,null,null,null,0]
["END:","END:",null,null,null,null,null,0]
["EMAIL;other;pref:","EMAIL;","other;","pref:",null,null,null,0]
["FN:","FN:",null,null,null,null,null,0]
["N:","N:",null,null,null,null,null,0]
["VERSION:","VERSION:",null,null,null,null,null,0]
["BEGIN:","BEGIN:",null,null,null,null,null,0]
["END:","END:",null,null,null,null,null,0]
["TITLE:","TITLE:",null,null,null,null,null,0]
["ORG:","ORG:",null,null,null,null,null,0]
["TEL;work:","TEL;","work:",null,null,null,null,0]
["ADR;work:","ADR;","work:",null,null,null,null,0]
["FN:","FN:",null,null,null,null,null,0]
["N:","N:",null,null,null,null,null,0]
["VERSION:","VERSION:",null,null,null,null,null,0]
["BEGIN:","BEGIN:",null,null,null,null,null,0]
["END:","END:",null,null,null,null,null,0]
[null,null,null,null,null,null,null,0]
["URL:","URL:",null,null,null,null,null,0]
["TITLE:","TITLE:",null,null,null,null,null,0]
["EMAIL;other;pref:","EMAIL;","other;","pref:",null,null,null,0]
["FN:","FN:",null,null,null,null,null,0]
["N:","N:",null,null,null,null,null,0]
["VERSION:","VERSION:",null,null,null,null,null,0]
["BEGIN:","BEGIN:",null,null,null,null,null,0]
["END:","END:",null,null,null,null,null,0]
["TITLE:","TITLE:",null,null,null,null,null,0]
["ORG:","ORG:",null,null,null,null,null,0]
["ADR;work:","ADR;","work:",null,null,null,null,0]
["FN:","FN:",null,null,null,null,null,0]
["N:","N:",null,null,null,null,null,0]
["VERSION:","VERSION:",null,null,null,null,null,0]
["BEGIN:","BEGIN:",null,null,null,null,null,0]
["END:","END:",null,null,null,null,null,0]
["NOTE:","NOTE:",null,null,null,null,null,0]
["ORG:","ORG:",null,null,null,null,null,0]
["TITLE:","TITLE:",null,null,null,null,null,0]
["EMAIL;other;pref:","EMAIL;","other;","pref:",null,null,null,0]
["TEL;mobile:","TEL;","mobile:",null,null,null,null,0]
["TEL;work:","TEL;","work:",null,null,null,null,0]
["ADR;work:","ADR;","work:",null,null,null,null,0]
[null,null,null,null,null,null,null,0]
["ADR;work:","ADR;","work:",null,null,null,null,0]
["FN:","FN:",null,null,null,null,null,0]
["N:","N:",null,null,null,null,null,0]
["VERSION:","VERSION:",null,null,null,null,null,0]
["BEGIN:","BEGIN:",null,null,null,null,null,0]
["END:","END:",null,null,null,null,null,0]
["NOTE:","NOTE:",null,null,null,null,null,0]
["ORG:","ORG:",null,null,null,null,null,0]
["TITLE:","TITLE:",null,null,null,null,null,0]
["EMAIL;other;pref:","EMAIL;","other;","pref:",null,null,null,0]
["TEL;mobile:","TEL;","mobile:",null,null,null,null,0]
["TEL;mobile:","TEL;","mobile:",null,null,null,null,0]
["TEL;work:","TEL;","work:",null,null,null,null,0]
["ADR;work:","ADR;","work:",null,null,null,null,0]
["ADR;work:","ADR;","work:",null,null,null,null,0]
["FN:","FN:",null,null,null,null,null,0]
["N:","N:",null,null,null,null,null,0]
["VERSION:","VERSION:",null,null,null,null,null,0]
["BEGIN:","BEGIN:",null,null,null,null,null,0]
["END:","END:",null,null,null,null,null,0]
["TITLE:","TITLE:",null,null,null,null,null,0]
["ORG:","ORG:",null,null,null,null,null,0]
["EMAIL;other;pref:","EMAIL;","other;","pref:",null,null,null,0]
["TEL:","TEL:",null,null,null,null,null,0]
["TEL;mobile:","TEL;","mobile:",null,null,null,null,0]
[null,null,null,null,null,null,null,0]
["ADR;work:","ADR;","work:",null,null,null,null,0]
[null,null,null,null,null,null,null,0]
["ADR;work:","ADR;","work:",null,null,null,null,0]
["FN:","FN:",null,null,null,null,null,0]
["N:","N:",null,null,null,null,null,0]
["VERSION:","VERSION:",null,null,null,null,null,0]
["BEGIN:","BEGIN:",null,null,null,null,null,0]
["END:","END:",null,null,null,null,null,0]
["TEL;work:","TEL;","work:",null,null,null,null,0]
["ADR;work:","ADR;","work:",null,null,null,null,0]
["FN:","FN:",null,null,null,null,null,0]
["N:","N:",null,null,null,null,null,0]
["VERSION:","VERSION:",null,null,null,null,null,0]
["BEGIN:","BEGIN:",null,null,null,null,null,0]
["END:","END:",null,null,null,null,null,0]
["TITLE:","TITLE:",null,null,null,null,null,0]
["EMAIL;other;pref:","EMAIL;","other;","pref:",null,null,null,0]
["TEL;mobile:","TEL;","mobile:",null,null,null,null,0]
[null,null,null,null,null,null,null,0]
["ADR;work:","ADR;","work:",null,null,null,null,0]
["FN:","FN:",null,null,null,null,null,0]
["N:","N:",null,null,null,null,null,0]
["VERSION:","VERSION:",null,null,null,null,null,0]
["BEGIN:","BEGIN:",null,null,null,null,null,0]
["END:","END:",null,null,null,null,null,0]
["TITLE:","TITLE:",null,null,null,null,null,0]
["ORG:","ORG:",null,null,null,null,null,0]
["EMAIL;other;pref:","EMAIL;","other;","pref:",null,null,null,0]
["TEL;work:","TEL;","work:",null,null,null,null,0]
[null,null,null,null,null,null,null,0]
["ADR;work:","ADR;","work:",null,null,null,null,0]
["FN:","FN:",null,null,null,null,null,0]
["N:","N:",null,null,null,null,null,0]
["VERSION:","VERSION:",null,null,null,null,null,0]
["BEGIN:","BEGIN:",null,null,null,null,null,0]
["END:","END:",null,null,null,null,null,0]
["EMAIL;other;pref:","EMAIL;","other;","pref:",null,null,null,0]
["FN:","FN:",null,null,null,null,null,0]
["N:","N:",null,null,null,null,null,0]
["VERSION:","VERSION:",null,null,null,null,null,0]
["BEGIN:","BEGIN:",null,null,null,null,null,0]
["END:","END:",null,null,null,null,null,0]
["EMAIL;other;pref:","EMAIL;","other;","pref:",null,null,null,0]
["FN:","FN:",null,null,null,null,null,0]
["N:","N:",null,null,null,null,null,0]
["VERSION:","VERSION:",null,null,null,null,null,0]
["BEGIN:","BEGIN:",null,null,null,null,null,0]
["END:","END:",null,null,null,null,null,0]
[null,null,null,null,null,null,null,0]
[null,null,null,null,null,null,null,0]
[null,null,null,null,null,null,null,0]
["NOTE:","NOTE:",null,null,null,null,null,0]
["TITLE:","TITLE:",null,null,null,null,null,0]
["ORG:","ORG:",null,null,null,null,null,0]
["TEL;mobile:","TEL;","mobile:",null,null,null,null,0]
[null,null,null,null,null,null,null,0]
["ADR;work:","ADR;","work:",null,null,null,null,0]
["FN:","FN:",null,null,null,null,null,0]
["N:","N:",null,null,null,null,null,0]
["VERSION:","VERSION:",null,null,null,null,null,0]
["BEGIN:","BEGIN:",null,null,null,null,null,0]
["END:","END:",null,null,null,null,null,0]
["FN:","FN:",null,null,null,null,null,0]
["EMAIL;other;pref:","EMAIL;","other;","pref:",null,null,null,0]
["N:","N:",null,null,null,null,null,0]
["VERSION:","VERSION:",null,null,null,null,null,0]
["BEGIN:","BEGIN:",null,null,null,null,null,0]
["END:","END:",null,null,null,null,null,0]
["TITLE:","TITLE:",null,null,null,null,null,0]
["ORG:","ORG:",null,null,null,null,null,0]
["EMAIL;other:","EMAIL;","other:",null,null,null,null,0]
["TEL;mobile:","TEL;","mobile:",null,null,null,null,0]
["TEL;work:","TEL;","work:",null,null,null,null,0]
[null,null,null,null,null,null,null,0]
["ADR;work:","ADR;","work:",null,null,null,null,0]
["FN:","FN:",null,null,null,null,null,0]
["N:","N:",null,null,null,null,null,0]
["VERSION:","VERSION:",null,null,null,null,null,0]
["BEGIN:","BEGIN:",null,null,null,null,null,0]
["END:","END:",null,null,null,null,null,0]
[null,null,null,null,null,null,null,0]
["URL:","URL:",null,null,null,null,null,0]
["TITLE:","TITLE:",null,null,null,null,null,0]
["EMAIL;other;pref:","EMAIL;","other;","pref:",null,null,null,0]
["FN:","FN:",null,null,null,null,null,0]
["N:","N:",null,null,null,null,null,0]
["VERSION:","VERSION:",null,null,null,null,null,0]
["BEGIN:","BEGIN:",null,null,null,null,null,0]
["END:","END:",null,null,null,null,null,0]
["TITLE:","TITLE:",null,null,null,null,null,0]
["ORG:","ORG:",null,null,null,null,null,0]
["EMAIL;other;pref:","EMAIL;","other;","pref:",null,null,null,0]
["TEL;mobile:","TEL;","mobile:",null,null,null,null,0]
["TEL;home:","TEL;","home:",null,null,null,null,0]
[null,null,null,null,null,null,null,0]
["ADR;work:","ADR;","work:",null,null,null,null,0]
["FN:","FN:",null,null,null,null,null,0]
["N:","N:",null,null,null,null,null,0]
["VERSION:","VERSION:",null,null,null,null,null,0]
["BEGIN:","BEGIN:",null,null,null,null,null,0]
["END:","END:",null,null,null,null,null,0]
[null,null,null,null,null,null,null,0]
[null,null,null,null,null,null,null,0]
["NOTE:","NOTE:",null,null,null,null,null,0]
["ORG:","ORG:",null,null,null,null,null,0]
["TEL;work:","TEL;","work:",null,null,null,null,0]
["ADR;work:","ADR;","work:",null,null,null,null,0]
["FN:","FN:",null,null,null,null,null,0]
["N:","N:",null,null,null,null,null,0]
["VERSION:","VERSION:",null,null,null,null,null,0]
["BEGIN:","BEGIN:",null,null,null,null,null,0]
["END:","END:",null,null,null,null,null,0]
["TITLE:","TITLE:",null,null,null,null,null,0]
["ORG:","ORG:",null,null,null,null,null,0]
["EMAIL;other;pref:","EMAIL;","other;","pref:",null,null,null,0]
["TEL;mobile:","TEL;","mobile:",null,null,null,null,0]
["TEL;work:","TEL;","work:",null,null,null,null,0]
["ADR;work:","ADR;","work:",null,null,null,null,0]
["FN:","FN:",null,null,null,null,null,0]
["N:","N:",null,null,null,null,null,0]
["VERSION:","VERSION:",null,null,null,null,null,0]
["BEGIN:","BEGIN:",null,null,null,null,null,0]
["END:","END:",null,null,null,null,null,0]
["TITLE:","TITLE:",null,null,null,null,null,0]
["ORG:","ORG:",null,null,null,null,null,0]
["EMAIL;other;pref:","EMAIL;","other;","pref:",null,null,null,0]
["TEL;mobile:","TEL;","mobile:",null,null,null,null,0]
["TEL;work:","TEL;","work:",null,null,null,null,0]
[null,null,null,null,null,null,null,0]
["ADR;work:","ADR;","work:",null,null,null,null,0]
["FN:","FN:",null,null,null,null,null,0]
["N:","N:",null,null,null,null,null,0]
["VERSION:","VERSION:",null,null,null,null,null,0]
["BEGIN:","BEGIN:",null,null,null,null,null,0]
["END:","END:",null,null,null,null,null,0]
["TITLE:","TITLE:",null,null,null,null,null,0]
["EMAIL;other;pref:","EMAIL;","other;","pref:",null,null,null,0]
["TEL;work:","TEL;","work:",null,null,null,null,0]
["ADR;work:","ADR;","work:",null,null,null,null,0]
["FN:","FN:",null,null,null,null,null,0]
["N:","N:",null,null,null,null,null,0]
["VERSION:","VERSION:",null,null,null,null,null,0]
["BEGIN:","BEGIN:",null,null,null,null,null,0]
["END:","END:",null,null,null,null,null,0]
["TITLE:","TITLE:",null,null,null,null,null,0]
["ORG:","ORG:",null,null,null,null,null,0]
["EMAIL;other:","EMAIL;","other:",null,null,null,null,0]
["TEL;work:","TEL;","work:",null,null,null,null,0]
[null,null,null,null,null,null,null,0]
["ADR;work:","ADR;","work:",null,null,null,null,0]
["FN:","FN:",null,null,null,null,null,0]
["N:","N:",null,null,null,null,null,0]
["VERSION:","VERSION:",null,null,null,null,null,0]
["BEGIN:","BEGIN:",null,null,null,null,null,0]
["END:","END:",null,null,null,null,null,0]
["NOTE:","NOTE:",null,null,null,null,null,0]
["TITLE:","TITLE:",null,null,null,null,null,0]
["ORG:","ORG:",null,null,null,null,null,0]
["EMAIL;other;pref:","EMAIL;","other;","pref:",null,null,null,0]
["TEL;mobile:","TEL;","mobile:",null,null,null,null,0]
["TEL;mobile:","TEL;","mobile:",null,null,null,null,0]
["TEL;home:","TEL;","home:",null,null,null,null,0]
[null,null,null,null,null,null,null,0]
["ADR;work:","ADR;","work:",null,null,null,null,0]
[null,null,null,null,null,null,null,0]
["ADR;work:","ADR;","work:",null,null,null,null,0]
["FN:","FN:",null,null,null,null,null,0]
["N:","N:",null,null,null,null,null,0]
["VERSION:","VERSION:",null,null,null,null,null,0]
["BEGIN:","BEGIN:",null,null,null,null,null,0]
["END:","END:",null,null,null,null,null,0]
["EMAIL;other;pref:","EMAIL;","other;","pref:",null,null,null,0]
["FN:","FN:",null,null,null,null,null,0]
["N:","N:",null,null,null,null,null,0]
["VERSION:","VERSION:",null,null,null,null,null,0]
["BEGIN:","BEGIN:",null,null,null,null,null,0]
["END:","END:",null,null,null,null,null,0]
["TITLE:","TITLE:",null,null,null,null,null,0]
["EMAIL;other;pref:","EMAIL;","other;","pref:",null,null,null,0]
["TEL;mobile:","TEL;","mobile:",null,null,null,null,0]
["TEL;work:","TEL;","work:",null,null,null,null,0]
["FN:","FN:",null,null,null,null,null,0]
["N:","N:",null,null,null,null,null,0]
["VERSION:","VERSION:",null,null,null,null,null,0]
["BEGIN:","BEGIN:",null,null,null,null,null,0]
["END:","END:",null,null,null,null,null,0]
["TITLE:","TITLE:",null,null,null,null,null,0]
["EMAIL;other;pref:","EMAIL;","other;","pref:",null,null,null,0]
["TEL;mobile:","TEL;","mobile:",null,null,null,null,0]
["TEL;work:","TEL;","work:",null,null,null,null,0]
["FN:","FN:",null,null,null,null,null,0]
["N:","N:",null,null,null,null,null,0]
["VERSION:","VERSION:",null,null,null,null,null,0]
["BEGIN:","BEGIN:",null,null,null,null,null,0]
["END:","END:",null,null,null,null,null,0]
[null,null,null,null,null,null,null,0]
["URL:","URL:",null,null,null,null,null,0]
["TITLE:","TITLE:",null,null,null,null,null,0]
["EMAIL;other;pref:","EMAIL;","other;","pref:",null,null,null,0]
["FN:","FN:",null,null,null,null,null,0]
["N:","N:",null,null,null,null,null,0]
["VERSION:","VERSION:",null,null,null,null,null,0]
["BEGIN:","BEGIN:",null,null,null,null,null,0]
["END:","END:",null,null,null,null,null,0]
["ORG:","ORG:",null,null,null,null,null,0]
["EMAIL;other;pref:","EMAIL;","other;","pref:",null,null,null,0]
[null,null,null,null,null,null,null,0]
["ADR;work:","ADR;","work:",null,null,null,null,0]
["FN:","FN:",null,null,null,null,null,0]
["N:","N:",null,null,null,null,null,0]
["VERSION:","VERSION:",null,null,null,null,null,0]
["BEGIN:","BEGIN:",null,null,null,null,null,0]
["END:","END:",null,null,null,null,null,0]
["TITLE:","TITLE:",null,null,null,null,null,0]
["ORG:","ORG:",null,null,null,null,null,0]
["EMAIL;other:","EMAIL;","other:",null,null,null,null,0]
["TEL;mobile:","TEL;","mobile:",null,null,null,null,0]
["TEL;work:","TEL;","work:",null,null,null,null,0]
[null,null,null,null,null,null,null,0]
["ADR;work:","ADR;","work:",null,null,null,null,0]
["FN:","FN:",null,null,null,null,null,0]
["N:","N:",null,null,null,null,null,0]
["VERSION:","VERSION:",null,null,null,null,null,0]
["BEGIN:","BEGIN:",null,null,null,null,null,0]
["END:","END:",null,null,null,null,null,0]
["TITLE:","TITLE:",null,null,null,null,null,0]
["ORG:","ORG:",null,null,null,null,null,0]
["TEL;mobile:","TEL;","mobile:",null,null,null,null,0]
["ADR;work:","ADR;","work:",null,null,null,null,0]
["FN:","FN:",null,null,null,null,null,0]
["N:","N:",null,null,null,null,null,0]
["VERSION:","VERSION:",null,null,null,null,null,0]
["BEGIN:","BEGIN:",null,null,null,null,null,0]
["END:","END:",null,null,null,null,null,0]
["NOTE:","NOTE:",null,null,null,null,null,0]
["TITLE:","TITLE:",null,null,null,null,null,0]
["ORG:","ORG:",null,null,null,null,null,0]
["EMAIL;other;pref:","EMAIL;","other;","pref:",null,null,null,0]
["TEL;mobile:","TEL;","mobile:",null,null,null,null,0]
["TEL;home:","TEL;","home:",null,null,null,null,0]
["TEL;work:","TEL;","work:",null,null,null,null,0]
[null,null,null,null,null,null,null,0]
[null,null,null,null,null,null,null,0]
["ADR;work:","ADR;","work:",null,null,null,null,0]
[null,null,null,null,null,null,null,0]
["ADR;work:","ADR;","work:",null,null,null,null,0]
["ADR;work:","ADR;","work:",null,null,null,null,0]
[null,null,null,null,null,null,null,0]
["ADR;work:","ADR;","work:",null,null,null,null,0]
["FN:","FN:",null,null,null,null,null,0]
["N:","N:",null,null,null,null,null,0]
["VERSION:","VERSION:",null,null,null,null,null,0]
["BEGIN:","BEGIN:",null,null,null,null,null,0]
["END:","END:",null,null,null,null,null,0]
["TITLE:","TITLE:",null,null,null,null,null,0]
["ORG:","ORG:",null,null,null,null,null,0]
["EMAIL;other;pref:","EMAIL;","other;","pref:",null,null,null,0]
["TEL;mobile:","TEL;","mobile:",null,null,null,null,0]
["TEL;mobile:","TEL;","mobile:",null,null,null,null,0]
["TEL;work:","TEL;","work:",null,null,null,null,0]
[null,null,null,null,null,null,null,0]
["ADR;work:","ADR;","work:",null,null,null,null,0]
["ADR;work:","ADR;","work:",null,null,null,null,0]
["FN:","FN:",null,null,null,null,null,0]
["N:","N:",null,null,null,null,null,0]
["VERSION:","VERSION:",null,null,null,null,null,0]
["BEGIN:","BEGIN:",null,null,null,null,null,0]
["END:","END:",null,null,null,null,null,0]
["ORG:","ORG:",null,null,null,null,null,0]
["EMAIL;other;pref:","EMAIL;","other;","pref:",null,null,null,0]
["TEL;work:","TEL;","work:",null,null,null,null,0]
["ADR;work:","ADR;","work:",null,null,null,null,0]
["FN:","FN:",null,null,null,null,null,0]
["N:","N:",null,null,null,null,null,0]
["VERSION:","VERSION:",null,null,null,null,null,0]
["BEGIN:","BEGIN:",null,null,null,null,null,0]
["END:","END:",null,null,null,null,null,0]
["TITLE:","TITLE:",null,null,null,null,null,0]
["ORG:","ORG:",null,null,null,null,null,0]
["EMAIL;other:","EMAIL;","other:",null,null,null,null,0]
["TEL;work:","TEL;","work:",null,null,null,null,0]
["ADR;work:","ADR;","work:",null,null,null,null,0]
["FN:","FN:",null,null,null,null,null,0]
["N:","N:",null,null,null,null,null,0]
["VERSION:","VERSION:",null,null,null,null,null,0]
["BEGIN:","BEGIN:",null,null,null,null,null,0]
["END:","END:",null,null,null,null,null,0]
["NOTE:","NOTE:",null,null,null,null,null,0]
["ORG:","ORG:",null,null,null,null,null,0]
["EMAIL;other:","EMAIL;","other:",null,null,null,null,0]
["FN:","FN:",null,null,null,null,null,0]
["N:","N:",null,null,null,null,null,0]
["VERSION:","VERSION:",null,null,null,null,null,0]
["BEGIN:","BEGIN:",null,null,null,null,null,0]
["END:","END:",null,null,null,null,null,0]
["TITLE:","TITLE:",null,null,null,null,null,0]
["ORG:","ORG:",null,null,null,null,null,0]
["TEL;mobile:","TEL;","mobile:",null,null,null,null,0]
["TEL;work:","TEL;","work:",null,null,null,null,0]
["ADR;work:","ADR;","work:",null,null,null,null,0]
["FN:","FN:",null,null,null,null,null,0]
["N:","N:",null,null,null,null,null,0]
["VERSION:","VERSION:",null,null,null,null,null,0]
["BEGIN:","BEGIN:",null,null,null,null,null,0]
["END:","END:",null,null,null,null,null,0]
["ORG:","ORG:",null,null,null,null,null,0]
["TEL;work:","TEL;","work:",null,null,null,null,0]
["ADR;work:","ADR;","work:",null,null,null,null,0]
["FN:","FN:",null,null,null,null,null,0]
["N:","N:",null,null,null,null,null,0]
["VERSION:","VERSION:",null,null,null,null,null,0]
["BEGIN:","BEGIN:",null,null,null,null,null,0]
["END:","END:",null,null,null,null,null,0]
["ORG:","ORG:",null,null,null,null,null,0]
["TEL;home:","TEL;","home:",null,null,null,null,0]
[null,null,null,null,null,null,null,0]
["ADR;work:","ADR;","work:",null,null,null,null,0]
["FN:","FN:",null,null,null,null,null,0]
["N:","N:",null,null,null,null,null,0]
["VERSION:","VERSION:",null,null,null,null,null,0]
["BEGIN:","BEGIN:",null,null,null,null,null,0]
["END:","END:",null,null,null,null,null,0]
["TITLE:","TITLE:",null,null,null,null,null,0]
["ORG:","ORG:",null,null,null,null,null,0]
["TEL;work:","TEL;","work:",null,null,null,null,0]
[null,null,null,null,null,null,null,0]
["ADR;work:","ADR;","work:",null,null,null,null,0]
["FN:","FN:",null,null,null,null,null,0]
["N:","N:",null,null,null,null,null,0]
["VERSION:","VERSION:",null,null,null,null,null,0]
["BEGIN:","BEGIN:",null,null,null,null,null,0]
["END:","END:",null,null,null,null,null,0]
["EMAIL;other;pref:","EMAIL;","other;","pref:",null,null,null,0]
["FN:","FN:",null,null,null,null,null,0]
["N:","N:",null,null,null,null,null,0]
["VERSION:","VERSION:",null,null,null,null,null,0]
["BEGIN:","BEGIN:",null,null,null,null,null,0]
["END:","END:",null,null,null,null,null,0]
["TEL;work:","TEL;","work:",null,null,null,null,0]
["ADR;work:","ADR;","work:",null,null,null,null,0]
["FN:","FN:",null,null,null,null,null,0]
["N:","N:",null,null,null,null,null,0]
["VERSION:","VERSION:",null,null,null,null,null,0]
["BEGIN:","BEGIN:",null,null,null,null,null,0]
["END:","END:",null,null,null,null,null,0]
["EMAIL;work;pref:","EMAIL;","work;","pref:",null,null,null,0]
["FN:","FN:",null,null,null,null,null,0]
["N:","N:",null,null,null,null,null,0]
["VERSION:","VERSION:",null,null,null,null,null,0]
["BEGIN:","BEGIN:",null,null,null,null,null,0]
["END:","END:",null,null,null,null,null,0]
["EMAIL;work;pref:","EMAIL;","work;","pref:",null,null,null,0]
["FN:","FN:",null,null,null,null,null,0]
["N:","N:",null,null,null,null,null,0]
["VERSION:","VERSION:",null,null,null,null,null,0]
["BEGIN:","BEGIN:",null,null,null,null,null,0]
["END:","END:",null,null,null,null,null,0]
["TITLE:","TITLE:",null,null,null,null,null,0]
["ORG:","ORG:",null,null,null,null,null,0]
["EMAIL;other;pref:","EMAIL;","other;","pref:",null,null,null,0]
["TEL:","TEL:",null,null,null,null,null,0]
["TEL;mobile:","TEL;","mobile:",null,null,null,null,0]
["ADR;other:","ADR;","other:",null,null,null,null,0]
[null,null,null,null,null,null,null,0]
["ADR;work:","ADR;","work:",null,null,null,null,0]
["FN:","FN:",null,null,null,null,null,0]
["N:","N:",null,null,null,null,null,0]
["VERSION:","VERSION:",null,null,null,null,null,0]
["BEGIN:","BEGIN:",null,null,null,null,null,0]
["END:","END:",null,null,null,null,null,0]
["TITLE:","TITLE:",null,null,null,null,null,0]
["ORG:","ORG:",null,null,null,null,null,0]
["TEL;mobile:","TEL;","mobile:",null,null,null,null,0]
[null,null,null,null,null,null,null,0]
["ADR;work:","ADR;","work:",null,null,null,null,0]
["FN:","FN:",null,null,null,null,null,0]
["N:","N:",null,null,null,null,null,0]
["VERSION:","VERSION:",null,null,null,null,null,0]
["BEGIN:","BEGIN:",null,null,null,null,null,0]
["END:","END:",null,null,null,null,null,0]
["NOTE:","NOTE:",null,null,null,null,null,0]
["ORG:","ORG:",null,null,null,null,null,0]
["FN:","FN:",null,null,null,null,null,0]
["N:","N:",null,null,null,null,null,0]
["VERSION:","VERSION:",null,null,null,null,null,0]
["BEGIN:","BEGIN:",null,null,null,null,null,0]
["END:","END:",null,null,null,null,null,0]
["TITLE:","TITLE:",null,null,null,null,null,0]
["ORG:","ORG:",null,null,null,null,null,0]
["TEL;mobile:","TEL;","mobile:",null,null,null,null,0]
["TEL;work:","TEL;","work:",null,null,null,null,0]
[null,null,null,null,null,null,null,0]
["ADR;work:","ADR;","work:",null,null,null,null,0]
["FN:","FN:",null,null,null,null,null,0]
["N:","N:",null,null,null,null,null,0]
["VERSION:","VERSION:",null,null,null,null,null,0]
["BEGIN:","BEGIN:",null,null,null,null,null,0]
["END:","END:",null,null,null,null,null,0]
["TITLE:","TITLE:",null,null,null,null,null,0]
["ORG:","ORG:",null,null,null,null,null,0]
["EMAIL;other:","EMAIL;","other:",null,null,null,null,0]
["TEL;mobile:","TEL;","mobile:",null,null,null,null,0]
["TEL;work:","TEL;","work:",null,null,null,null,0]
[null,null,null,null,null,null,null,0]
["ADR;work:","ADR;","work:",null,null,null,null,0]
["FN:","FN:",null,null,null,null,null,0]
["N:","N:",null,null,null,null,null,0]
["VERSION:","VERSION:",null,null,null,null,null,0]
["BEGIN:","BEGIN:",null,null,null,null,null,0]
["END:","END:",null,null,null,null,null,0]
["EMAIL;other;pref:","EMAIL;","other;","pref:",null,null,null,0]
["FN:","FN:",null,null,null,null,null,0]
["N:","N:",null,null,null,null,null,0]
["VERSION:","VERSION:",null,null,null,null,null,0]
["BEGIN:","BEGIN:",null,null,null,null,null,0]
["END:","END:",null,null,null,null,null,0]
["NOTE:","NOTE:",null,null,null,null,null,0]
["EMAIL;other:","EMAIL;","other:",null,null,null,null,0]
["EMAIL;other;pref:","EMAIL;","other;","pref:",null,null,null,0]
["TEL;home:","TEL;","home:",null,null,null,null,0]
[null,null,null,null,null,null,null,0]
["ADR;work:","ADR;","work:",null,null,null,null,0]
["FN:","FN:",null,null,null,null,null,0]
["N:","N:",null,null,null,null,null,0]
["VERSION:","VERSION:",null,null,null,null,null,0]
["BEGIN:","BEGIN:",null,null,null,null,null,0]
["END:","END:",null,null,null,null,null,0]
["EMAIL;other;pref:","EMAIL;","other;","pref:",null,null,null,0]
["FN:","FN:",null,null,null,null,null,0]
["N:","N:",null,null,null,null,null,0]
["VERSION:","VERSION:",null,null,null,null,null,0]
["BEGIN:","BEGIN:",null,null,null,null,null,0]
["END:","END:",null,null,null,null,null,0]
["EMAIL;other;pref:","EMAIL;","other;","pref:",null,null,null,0]
["FN:","FN:",null,null,null,null,null,0]
["N:","N:",null,null,null,null,null,0]
["VERSION:","VERSION:",null,null,null,null,null,0]
["BEGIN:","BEGIN:",null,null,null,null,null,0]
["END:","END:",null,null,null,null,null,0]
["TITLE:","TITLE:",null,null,null,null,null,0]
["ORG:","ORG:",null,null,null,null,null,0]
["EMAIL;other;pref:","EMAIL;","other;","pref:",null,null,null,0]
["TEL;work:","TEL;","work:",null,null,null,null,0]
["ADR;work:","ADR;","work:",null,null,null,null,0]
["FN:","FN:",null,null,null,null,null,0]
["N:","N:",null,null,null,null,null,0]
["VERSION:","VERSION:",null,null,null,null,null,0]
["BEGIN:","BEGIN:",null,null,null,null,null,0]
["END:","END:",null,null,null,null,null,0]
["EMAIL;other;pref:","EMAIL;","other;","pref:",null,null,null,0]
["ADR;work:","ADR;","work:",null,null,null,null,0]
["FN:","FN:",null,null,null,null,null,0]
["N:","N:",null,null,null,null,null,0]
["VERSION:","VERSION:",null,null,null,null,null,0]
["BEGIN:","BEGIN:",null,null,null,null,null,0]
["END:","END:",null,null,null,null,null,0]
[null,null,null,null,null,null,null,0]
["NOTE:","NOTE:",null,null,null,null,null,0]
["TITLE:","TITLE:",null,null,null,null,null,0]
["ORG:","ORG:",null,null,null,null,null,0]
["EMAIL;other;pref:","EMAIL;","other;","pref:",null,null,null,0]
["TEL;mobile:","TEL;","mobile:",null,null,null,null,0]
["TEL;work:","TEL;","work:",null,null,null,null,0]
["TEL;work_fax:","TEL;","work_fax:",null,null,null,null,0]
[null,null,null,null,null,null,null,0]
["ADR;work:","ADR;","work:",null,null,null,null,0]
["FN:","FN:",null,null,null,null,null,0]
["N:","N:",null,null,null,null,null,0]
["VERSION:","VERSION:",null,null,null,null,null,0]
["BEGIN:","BEGIN:",null,null,null,null,null,0]
["END:","END:",null,null,null,null,null,0]
["EMAIL;other;pref:","EMAIL;","other;","pref:",null,null,null,0]
["FN:","FN:",null,null,null,null,null,0]
["N:","N:",null,null,null,null,null,0]
["VERSION:","VERSION:",null,null,null,null,null,0]
["BEGIN:","BEGIN:",null,null,null,null,null,0]
["END:","END:",null,null,null,null,null,0]
["TITLE:","TITLE:",null,null,null,null,null,0]
["ORG:","ORG:",null,null,null,null,null,0]
["EMAIL;other;pref:","EMAIL;","other;","pref:",null,null,null,0]
["TEL;mobile:","TEL;","mobile:",null,null,null,null,0]
["TEL;work:","TEL;","work:",null,null,null,null,0]
[null,null,null,null,null,null,null,0]
["ADR;work:","ADR;","work:",null,null,null,null,0]
["FN:","FN:",null,null,null,null,null,0]
["N:","N:",null,null,null,null,null,0]
["VERSION:","VERSION:",null,null,null,null,null,0]
["BEGIN:","BEGIN:",null,null,null,null,null,0]
["END:","END:",null,null,null,null,null,0]
["NOTE:","NOTE:",null,null,null,null,null,0]
["TITLE:","TITLE:",null,null,null,null,null,0]
["ORG:","ORG:",null,null,null,null,null,0]
["EMAIL;other:","EMAIL;","other:",null,null,null,null,0]
["EMAIL;other;pref:","EMAIL;","other;","pref:",null,null,null,0]
["TEL;mobile:","TEL;","mobile:",null,null,null,null,0]
["TEL;mobile:","TEL;","mobile:",null,null,null,null,0]
["TEL;work:","TEL;","work:",null,null,null,null,0]
["TEL;work:","TEL;","work:",null,null,null,null,0]
["ADR;work:","ADR;","work:",null,null,null,null,0]
[null,null,null,null,null,null,null,0]
["ADR;work:","ADR;","work:",null,null,null,null,0]
[null,null,null,null,null,null,null,0]
["ADR;work:","ADR;","work:",null,null,null,null,0]
["FN:","FN:",null,null,null,null,null,0]
["N:","N:",null,null,null,null,null,0]
["VERSION:","VERSION:",null,null,null,null,null,0]
["BEGIN:","BEGIN:",null,null,null,null,null,0]
["END:","END:",null,null,null,null,null,0]
["TITLE:","TITLE:",null,null,null,null,null,0]
["ORG:","ORG:",null,null,null,null,null,0]
["TEL;mobile:","TEL;","mobile:",null,null,null,null,0]
["TEL;work:","TEL;","work:",null,null,null,null,0]
[null,null,null,null,null,null,null,0]
["ADR;work:","ADR;","work:",null,null,null,null,0]
["FN:","FN:",null,null,null,null,null,0]
["N:","N:",null,null,null,null,null,0]
["VERSION:","VERSION:",null,null,null,null,null,0]
["BEGIN:","BEGIN:",null,null,null,null,null,0]
["END:","END:",null,null,null,null,null,0]
["FN:","FN:",null,null,null,null,null,0]
["EMAIL;other;pref:","EMAIL;","other;","pref:",null,null,null,0]
["N:","N:",null,null,null,null,null,0]
["VERSION:","VERSION:",null,null,null,null,null,0]
["BEGIN:","BEGIN:",null,null,null,null,null,0]
["END:","END:",null,null,null,null,null,0]
["TITLE:","TITLE:",null,null,null,null,null,0]
["EMAIL;other;pref:","EMAIL;","other;","pref:",null,null,null,0]
["TEL;mobile:","TEL;","mobile:",null,null,null,null,0]
["TEL;work:","TEL;","work:",null,null,null,null,0]
["FN:","FN:",null,null,null,null,null,0]
["N:","N:",null,null,null,null,null,0]
["VERSION:","VERSION:",null,null,null,null,null,0]
["BEGIN:","BEGIN:",null,null,null,null,null,0]
["END:","END:",null,null,null,null,null,0]
["TITLE:","TITLE:",null,null,null,null,null,0]
["ORG:","ORG:",null,null,null,null,null,0]
["TEL;mobile:","TEL;","mobile:",null,null,null,null,0]
["TEL;work:","TEL;","work:",null,null,null,null,0]
["ADR;work:","ADR;","work:",null,null,null,null,0]
["FN:","FN:",null,null,null,null,null,0]
["N:","N:",null,null,null,null,null,0]
["VERSION:","VERSION:",null,null,null,null,null,0]
["BEGIN:","BEGIN:",null,null,null,null,null,0]
["END:","END:",null,null,null,null,null,0]
["TITLE:","TITLE:",null,null,null,null,null,0]
["ORG:","ORG:",null,null,null,null,null,0]
["EMAIL;other;pref:","EMAIL;","other;","pref:",null,null,null,0]
["TEL;mobile:","TEL;","mobile:",null,null,null,null,0]
["TEL;work:","TEL;","work:",null,null,null,null,0]
[null,null,null,null,null,null,null,0]
["ADR;work:","ADR;","work:",null,null,null,null,0]
["FN:","FN:",null,null,null,null,null,0]
["N:","N:",null,null,null,null,null,0]
["VERSION:","VERSION:",null,null,null,null,null,0]
["BEGIN:","BEGIN:",null,null,null,null,null,0]
["END:","END:",null,null,null,null,null,0]
[null,null,null,null,null,null,null,0]
["URL:","URL:",null,null,null,null,null,0]
["TITLE:","TITLE:",null,null,null,null,null,0]
["EMAIL;other;pref:","EMAIL;","other;","pref:",null,null,null,0]
["FN:","FN:",null,null,null,null,null,0]
["N:","N:",null,null,null,null,null,0]
["VERSION:","VERSION:",null,null,null,null,null,0]
["BEGIN:","BEGIN:",null,null,null,null,null,0]
["END:","END:",null,null,null,null,null,0]
["EMAIL;other;pref:","EMAIL;","other;","pref:",null,null,null,0]
["FN:","FN:",null,null,null,null,null,0]
["N:","N:",null,null,null,null,null,0]
["VERSION:","VERSION:",null,null,null,null,null,0]
["BEGIN:","BEGIN:",null,null,null,null,null,0]
["END:","END:",null,null,null,null,null,0]
["TITLE:","TITLE:",null,null,null,null,null,0]
["ORG:","ORG:",null,null,null,null,null,0]
["TEL;mobile:","TEL;","mobile:",null,null,null,null,0]
["TEL;work:","TEL;","work:",null,null,null,null,0]
[null,null,null,null,null,null,null,0]
["ADR;work:","ADR;","work:",null,null,null,null,0]
["FN:","FN:",null,null,null,null,null,0]
["N:","N:",null,null,null,null,null,0]
["VERSION:","VERSION:",null,null,null,null,null,0]
["BEGIN:","BEGIN:",null,null,null,null,null,0]
["END:","END:",null,null,null,null,null,0]
["TITLE:","TITLE:",null,null,null,null,null,0]
["ORG:","ORG:",null,null,null,null,null,0]
["EMAIL;other;pref:","EMAIL;","other;","pref:",null,null,null,0]
["TEL;mobile:","TEL;","mobile:",null,null,null,null,0]
["TEL;work:","TEL;","work:",null,null,null,null,0]
[null,null,null,null,null,null,null,0]
["ADR;work:","ADR;","work:",null,null,null,null,0]
["FN:","FN:",null,null,null,null,null,0]
["N:","N:",null,null,null,null,null,0]
["VERSION:","VERSION:",null,null,null,null,null,0]
["BEGIN:","BEGIN:",null,null,null,null,null,0]
["END:","END:",null,null,null,null,null,0]
["TITLE:","TITLE:",null,null,null,null,null,0]
["ORG:","ORG:",null,null,null,null,null,0]
["TEL;work:","TEL;","work:",null,null,null,null,0]
["ADR;work:","ADR;","work:",null,null,null,null,0]
["FN:","FN:",null,null,null,null,null,0]
["N:","N:",null,null,null,null,null,0]
["VERSION:","VERSION:",null,null,null,null,null,0]
["BEGIN:","BEGIN:",null,null,null,null,null,0]
["END:","END:",null,null,null,null,null,0]
["ORG:","ORG:",null,null,null,null,null,0]
["EMAIL;other;pref:","EMAIL;","other;","pref:",null,null,null,0]
["FN:","FN:",null,null,null,null,null,0]
["N:","N:",null,null,null,null,null,0]
["VERSION:","VERSION:",null,null,null,null,null,0]
["BEGIN:","BEGIN:",null,null,null,null,null,0]
["END:","END:",null,null,null,null,null,0]
[null,null,null,null,null,null,null,0]
["URL:","URL:",null,null,null,null,null,0]
["TITLE:","TITLE:",null,null,null,null,null,0]
["EMAIL;other;pref:","EMAIL;","other;","pref:",null,null,null,0]
["FN:","FN:",null,null,null,null,null,0]
["N:","N:",null,null,null,null,null,0]
["VERSION:","VERSION:",null,null,null,null,null,0]
["BEGIN:","BEGIN:",null,null,null,null,null,0]
["END:","END:",null,null,null,null,null,0]
["TITLE:","TITLE:",null,null,null,null,null,0]
["ORG:","ORG:",null,null,null,null,null,0]
["TEL;work:","TEL;","work:",null,null,null,null,0]
[null,null,null,null,null,null,null,0]
["ADR;work:","ADR;","work:",null,null,null,null,0]
["FN:","FN:",null,null,null,null,null,0]
["N:","N:",null,null,null,null,null,0]
["VERSION:","VERSION:",null,null,null,null,null,0]
["BEGIN:","BEGIN:",null,null,null,null,null,0]
["END:","END:",null,null,null,null,null,0]
["EMAIL;other;pref:","EMAIL;","other;","pref:",null,null,null,0]
["FN:","FN:",null,null,null,null,null,0]
["N:","N:",null,null,null,null,null,0]
["VERSION:","VERSION:",null,null,null,null,null,0]
["BEGIN:","BEGIN:",null,null,null,null,null,0]
["END:","END:",null,null,null,null,null,0]
["TITLE:","TITLE:",null,null,null,null,null,0]
["ORG:","ORG:",null,null,null,null,null,0]
["EMAIL;other:","EMAIL;","other:",null,null,null,null,0]
["TEL;mobile:","TEL;","mobile:",null,null,null,null,0]
["TEL;work:","TEL;","work:",null,null,null,null,0]
["ADR;work:","ADR;","work:",null,null,null,null,0]
["FN:","FN:",null,null,null,null,null,0]
["N:","N:",null,null,null,null,null,0]
["VERSION:","VERSION:",null,null,null,null,null,0]
["BEGIN:","BEGIN:",null,null,null,null,null,0]
["END:","END:",null,null,null,null,null,0]
["FN:","FN:",null,null,null,null,null,0]
["EMAIL;other;pref:","EMAIL;","other;","pref:",null,null,null,0]
["N:","N:",null,null,null,null,null,0]
["VERSION:","VERSION:",null,null,null,null,null,0]
["BEGIN:","BEGIN:",null,null,null,null,null,0]
["END:","END:",null,null,null,null,null,0]
["TEL;work:","TEL;","work:",null,null,null,null,0]
["ADR;work:","ADR;","work:",null,null,null,null,0]
["FN:","FN:",null,null,null,null,null,0]
["N:","N:",null,null,null,null,null,0]
["VERSION:","VERSION:",null,null,null,null,null,0]
["BEGIN:","BEGIN:",null,null,null,null,null,0]
["END:","END:",null,null,null,null,null,0]
["TITLE:","TITLE:",null,null,null,null,null,0]
["ORG:","ORG:",null,null,null,null,null,0]
["EMAIL;other:","EMAIL;","other:",null,null,null,null,0]
["TEL;mobile:","TEL;","mobile:",null,null,null,null,0]
["TEL;work:","TEL;","work:",null,null,null,null,0]
["ADR;work:","ADR;","work:",null,null,null,null,0]
["FN:","FN:",null,null,null,null,null,0]
["N:","N:",null,null,null,null,null,0]
["VERSION:","VERSION:",null,null,null,null,null,0]
["BEGIN:","BEGIN:",null,null,null,null,null,0]
["END:","END:",null,null,null,null,null,0]
[null,null,null,null,null,null,null,0]
[null,null,null,null,null,null,null,0]
["NOTE:","NOTE:",null,null,null,null,null,0]
["ORG:","ORG:",null,null,null,null,null,0]
["TEL;work:","TEL;","work:",null,null,null,null,0]
["ADR;work:","ADR;","work:",null,null,null,null,0]
["FN:","FN:",null,null,null,null,null,0]
["N:","N:",null,null,null,null,null,0]
["VERSION:","VERSION:",null,null,null,null,null,0]
["BEGIN:","BEGIN:",null,null,null,null,null,0]
["END:","END:",null,null,null,null,null,0]
["EMAIL;other;pref:","EMAIL;","other;","pref:",null,null,null,0]
["FN:","FN:",null,null,null,null,null,0]
["N:","N:",null,null,null,null,null,0]
["VERSION:","VERSION:",null,null,null,null,null,0]
["BEGIN:","BEGIN:",null,null,null,null,null,0]
["END:","END:",null,null,null,null,null,0]
["NOTE:","NOTE:",null,null,null,null,null,0]
["ORG:","ORG:",null,null,null,null,null,0]
["EMAIL;other;pref:","EMAIL;","other;","pref:",null,null,null,0]
["FN:","FN:",null,null,null,null,null,0]
["N:","N:",null,null,null,null,null,0]
["VERSION:","VERSION:",null,null,null,null,null,0]
["BEGIN:","BEGIN:",null,null,null,null,null,0]
["END:","END:",null,null,null,null,null,0]
["TITLE:","TITLE:",null,null,null,null,null,0]
["ORG:","ORG:",null,null,null,null,null,0]
["EMAIL;other:","EMAIL;","other:",null,null,null,null,0]
["TEL;mobile:","TEL;","mobile:",null,null,null,null,0]
[null,null,null,null,null,null,null,0]
["ADR;work:","ADR;","work:",null,null,null,null,0]
["FN:","FN:",null,null,null,null,null,0]
["N:","N:",null,null,null,null,null,0]
["VERSION:","VERSION:",null,null,null,null,null,0]
["BEGIN:","BEGIN:",null,null,null,null,null,0]
["END:","END:",null,null,null,null,null,0]
["TITLE:","TITLE:",null,null,null,null,null,0]
["ORG:","ORG:",null,null,null,null,null,0]
["EMAIL;other;pref:","EMAIL;","other;","pref:",null,null,null,0]
["TEL;mobile:","TEL;","mobile:",null,null,null,null,0]
["TEL;work:","TEL;","work:",null,null,null,null,0]
[null,null,null,null,null,null,null,0]
["ADR;work:","ADR;","work:",null,null,null,null,0]
["FN:","FN:",null,null,null,null,null,0]
["N:","N:",null,null,null,null,null,0]
["VERSION:","VERSION:",null,null,null,null,null,0]
["BEGIN:","BEGIN:",null,null,null,null,null,0]
["END:","END:",null,null,null,null,null,0]
["EMAIL;other;pref:","EMAIL;","other;","pref:",null,null,null,0]
["FN:","FN:",null,null,null,null,null,0]
["N:","N:",null,null,null,null,null,0]
["VERSION:","VERSION:",null,null,null,null,null,0]
["BEGIN:","BEGIN:",null,null,null,null,null,0]
["END:","END:",null,null,null,null,null,0]
["TITLE:","TITLE:",null,null,null,null,null,0]
["ORG:","ORG:",null,null,null,null,null,0]
["EMAIL;other;pref:","EMAIL;","other;","pref:",null,null,null,0]
["TEL;mobile:","TEL;","mobile:",null,null,null,null,0]
["TEL;work:","TEL;","work:",null,null,null,null,0]
["ADR;work:","ADR;","work:",null,null,null,null,0]
[null,null,null,null,null,null,null,0]
["ADR;work:","ADR;","work:",null,null,null,null,0]
["FN:","FN:",null,null,null,null,null,0]
["N:","N:",null,null,null,null,null,0]
["VERSION:","VERSION:",null,null,null,null,null,0]
["BEGIN:","BEGIN:",null,null,null,null,null,0]
["END:","END:",null,null,null,null,null,0]
["TITLE:","TITLE:",null,null,null,null,null,0]
["ORG:","ORG:",null,null,null,null,null,0]
["EMAIL;other;pref:","EMAIL;","other;","pref:",null,null,null,0]
["TEL;mobile:","TEL;","mobile:",null,null,null,null,0]
[null,null,null,null,null,null,null,0]
["ADR;work:","ADR;","work:",null,null,null,null,0]
["FN:","FN:",null,null,null,null,null,0]
["N:","N:",null,null,null,null,null,0]
["VERSION:","VERSION:",null,null,null,null,null,0]
["BEGIN:","BEGIN:",null,null,null,null,null,0]
["END:","END:",null,null,null,null,null,0]
["TITLE:","TITLE:",null,null,null,null,null,0]
["ORG:","ORG:",null,null,null,null,null,0]
["EMAIL;other;pref:","EMAIL;","other;","pref:",null,null,null,0]
["TEL;mobile:","TEL;","mobile:",null,null,null,null,0]
["TEL;work:","TEL;","work:",null,null,null,null,0]
[null,null,null,null,null,null,null,0]
["ADR;work:","ADR;","work:",null,null,null,null,0]
["FN:","FN:",null,null,null,null,null,0]
["N:","N:",null,null,null,null,null,0]
["VERSION:","VERSION:",null,null,null,null,null,0]
["BEGIN:","BEGIN:",null,null,null,null,null,0]
["END:","END:",null,null,null,null,null,0]
["TITLE:","TITLE:",null,null,null,null,null,0]
["EMAIL;other;pref:","EMAIL;","other;","pref:",null,null,null,0]
["TEL;work:","TEL;","work:",null,null,null,null,0]
["ADR;work:","ADR;","work:",null,null,null,null,0]
["FN:","FN:",null,null,null,null,null,0]
["N:","N:",null,null,null,null,null,0]
["VERSION:","VERSION:",null,null,null,null,null,0]
["BEGIN:","BEGIN:",null,null,null,null,null,0]
["END:","END:",null,null,null,null,null,0]
["EMAIL;other;pref:","EMAIL;","other;","pref:",null,null,null,0]
["FN:","FN:",null,null,null,null,null,0]
["N:","N:",null,null,null,null,null,0]
["VERSION:","VERSION:",null,null,null,null,null,0]
["BEGIN:","BEGIN:",null,null,null,null,null,0]
["END:","END:",null,null,null,null,null,0]
["TITLE:","TITLE:",null,null,null,null,null,0]
["EMAIL;other;pref:","EMAIL;","other;","pref:",null,null,null,0]
["TEL;mobile:","TEL;","mobile:",null,null,null,null,0]
["TEL;work:","TEL;","work:",null,null,null,null,0]
["FN:","FN:",null,null,null,null,null,0]
["N:","N:",null,null,null,null,null,0]
["VERSION:","VERSION:",null,null,null,null,null,0]
["BEGIN:","BEGIN:",null,null,null,null,null,0]
["END:","END:",null,null,null,null,null,0]
["FN:","FN:",null,null,null,null,null,0]
["EMAIL;other;pref:","EMAIL;","other;","pref:",null,null,null,0]
["N:","N:",null,null,null,null,null,0]
["VERSION:","VERSION:",null,null,null,null,null,0]
["BEGIN:","BEGIN:",null,null,null,null,null,0]
["END:","END:",null,null,null,null,null,0]
["TITLE:","TITLE:",null,null,null,null,null,0]
["ORG:","ORG:",null,null,null,null,null,0]
["TEL;pager:","TEL;","pager:",null,null,null,null,0]
["TEL;work:","TEL;","work:",null,null,null,null,0]
["TEL;work_fax:","TEL;","work_fax:",null,null,null,null,0]
[null,null,null,null,null,null,null,0]
["ADR;work:","ADR;","work:",null,null,null,null,0]
["FN:","FN:",null,null,null,null,null,0]
["N:","N:",null,null,null,null,null,0]
["VERSION:","VERSION:",null,null,null,null,null,0]
["BEGIN:","BEGIN:",null,null,null,null,null,0]
["END:","END:",null,null,null,null,null,0]
["TEL;home:","TEL;","home:",null,null,null,null,0]
["TEL;work:","TEL;","work:",null,null,null,null,0]
["ADR;work:","ADR;","work:",null,null,null,null,0]
["FN:","FN:",null,null,null,null,null,0]
["N:","N:",null,null,null,null,null,0]
["VERSION:","VERSION:",null,null,null,null,null,0]
["BEGIN:","BEGIN:",null,null,null,null,null,0]
["END:","END:",null,null,null,null,null,0]
["NOTE:","NOTE:",null,null,null,null,null,0]
["TITLE:","TITLE:",null,null,null,null,null,0]
["ORG:","ORG:",null,null,null,null,null,0]
["EMAIL;other:","EMAIL;","other:",null,null,null,null,0]
["EMAIL;other;pref:","EMAIL;","other;","pref:",null,null,null,0]
["TEL;work:","TEL;","work:",null,null,null,null,0]
["TEL;work:","TEL;","work:",null,null,null,null,0]
[null,null,null,null,null,null,null,0]
["ADR;work:","ADR;","work:",null,null,null,null,0]
[null,null,null,null,null,null,null,0]
["ADR;work:","ADR;","work:",null,null,null,null,0]
["FN:","FN:",null,null,null,null,null,0]
["N:","N:",null,null,null,null,null,0]
["VERSION:","VERSION:",null,null,null,null,null,0]
["BEGIN:","BEGIN:",null,null,null,null,null,0]
["END:","END:",null,null,null,null,null,0]
["TITLE:","TITLE:",null,null,null,null,null,0]
["ORG:","ORG:",null,null,null,null,null,0]
["EMAIL;other:","EMAIL;","other:",null,null,null,null,0]
[null,null,null,null,null,null,null,0]
["ADR;work:","ADR;","work:",null,null,null,null,0]
["FN:","FN:",null,null,null,null,null,0]
["N:","N:",null,null,null,null,null,0]
["VERSION:","VERSION:",null,null,null,null,null,0]
["BEGIN:","BEGIN:",null,null,null,null,null,0]
["END:","END:",null,null,null,null,null,0]
["TITLE:","TITLE:",null,null,null,null,null,0]
["ORG:","ORG:",null,null,null,null,null,0]
["EMAIL;other;pref:","EMAIL;","other;","pref:",null,null,null,0]
["TEL;mobile:","TEL;","mobile:",null,null,null,null,0]
[null,null,null,null,null,null,null,0]
["ADR;work:","ADR;","work:",null,null,null,null,0]
["FN:","FN:",null,null,null,null,null,0]
["N:","N:",null,null,null,null,null,0]
["VERSION:","VERSION:",null,null,null,null,null,0]
["BEGIN:","BEGIN:",null,null,null,null,null,0]
["END:","END:",null,null,null,null,null,0]
[null,null,null,null,null,null,null,0]
["URL:","URL:",null,null,null,null,null,0]
["TITLE:","TITLE:",null,null,null,null,null,0]
["EMAIL;other;pref:","EMAIL;","other;","pref:",null,null,null,0]
["FN:","FN:",null,null,null,null,null,0]
["N:","N:",null,null,null,null,null,0]
["VERSION:","VERSION:",null,null,null,null,null,0]
["BEGIN:","BEGIN:",null,null,null,null,null,0]
["END:","END:",null,null,null,null,null,0]
["TITLE:","TITLE:",null,null,null,null,null,0]
["ORG:","ORG:",null,null,null,null,null,0]
["TEL;mobile:","TEL;","mobile:",null,null,null,null,0]
["TEL;work:","TEL;","work:",null,null,null,null,0]
[null,null,null,null,null,null,null,0]
["ADR;work:","ADR;","work:",null,null,null,null,0]
["FN:","FN:",null,null,null,null,null,0]
["N:","N:",null,null,null,null,null,0]
["VERSION:","VERSION:",null,null,null,null,null,0]
["BEGIN:","BEGIN:",null,null,null,null,null,0]
["END:","END:",null,null,null,null,null,0]
["TITLE:","TITLE:",null,null,null,null,null,0]
["ORG:","ORG:",null,null,null,null,null,0]
["TEL;work:","TEL;","work:",null,null,null,null,0]
["TEL;work_fax:","TEL;","work_fax:",null,null,null,null,0]
[null,null,null,null,null,null,null,0]
["ADR;work:","ADR;","work:",null,null,null,null,0]
["FN:","FN:",null,null,null,null,null,0]
["N:","N:",null,null,null,null,null,0]
["VERSION:","VERSION:",null,null,null,null,null,0]
["BEGIN:","BEGIN:",null,null,null,null,null,0]
["END:","END:",null,null,null,null,null,0]
["TITLE:","TITLE:",null,null,null,null,null,0]
["ORG:","ORG:",null,null,null,null,null,0]
["EMAIL;other;pref:","EMAIL;","other;","pref:",null,null,null,0]
["TEL;mobile:","TEL;","mobile:",null,null,null,null,0]
[null,null,null,null,null,null,null,0]
["ADR;work:","ADR;","work:",null,null,null,null,0]
["FN:","FN:",null,null,null,null,null,0]
["N:","N:",null,null,null,null,null,0]
["VERSION:","VERSION:",null,null,null,null,null,0]
["BEGIN:","BEGIN:",null,null,null,null,null,0]
["END:","END:",null,null,null,null,null,0]
["TITLE:","TITLE:",null,null,null,null,null,0]
["ORG:","ORG:",null,null,null,null,null,0]
["TEL;work:","TEL;","work:",null,null,null,null,0]
["ADR;work:","ADR;","work:",null,null,null,null,0]
["FN:","FN:",null,null,null,null,null,0]
["N:","N:",null,null,null,null,null,0]
["VERSION:","VERSION:",null,null,null,null,null,0]
["BEGIN:","BEGIN:",null,null,null,null,null,0]
["END:","END:",null,null,null,null,null,0]
["TITLE:","TITLE:",null,null,null,null,null,0]
["ORG:","ORG:",null,null,null,null,null,0]
["TEL;work:","TEL;","work:",null,null,null,null,0]
["ADR;work:","ADR;","work:",null,null,null,null,0]
["FN:","FN:",null,null,null,null,null,0]
["N:","N:",null,null,null,null,null,0]
["VERSION:","VERSION:",null,null,null,null,null,0]
["BEGIN:","BEGIN:",null,null,null,null,null,0]
["END:","END:",null,null,null,null,null,0]
[null,null,null,null,null,null,null,0]
[null,null,null,null,null,null,null,0]
["NOTE:","NOTE:",null,null,null,null,null,0]
["ORG:","ORG:",null,null,null,null,null,0]
["EMAIL;other:","EMAIL;","other:",null,null,null,null,0]
["EMAIL;other;pref:","EMAIL;","other;","pref:",null,null,null,0]
["TEL;work:","TEL;","work:",null,null,null,null,0]
["ADR;work:","ADR;","work:",null,null,null,null,0]
["FN:","FN:",null,null,null,null,null,0]
["N:","N:",null,null,null,null,null,0]
["VERSION:","VERSION:",null,null,null,null,null,0]
["BEGIN:","BEGIN:",null,null,null,null,null,0]
["END:","END:",null,null,null,null,null,0]
["EMAIL;other;pref:","EMAIL;","other;","pref:",null,null,null,0]
["FN:","FN:",null,null,null,null,null,0]
["N:","N:",null,null,null,null,null,0]
["VERSION:","VERSION:",null,null,null,null,null,0]
["BEGIN:","BEGIN:",null,null,null,null,null,0]
["END:","END:",null,null,null,null,null,0]
["FN:","FN:",null,null,null,null,null,0]
["EMAIL;other;pref:","EMAIL;","other;","pref:",null,null,null,0]
["N:","N:",null,null,null,null,null,0]
["VERSION:","VERSION:",null,null,null,null,null,0]
["BEGIN:","BEGIN:",null,null,null,null,null,0]
["END:","END:",null,null,null,null,null,0]
["EMAIL;other;pref:","EMAIL;","other;","pref:",null,null,null,0]
["FN:","FN:",null,null,null,null,null,0]
["N:","N:",null,null,null,null,null,0]
["VERSION:","VERSION:",null,null,null,null,null,0]
["BEGIN:","BEGIN:",null,null,null,null,null,0]
["END:","END:",null,null,null,null,null,0]
["TITLE:","TITLE:",null,null,null,null,null,0]
["ORG:","ORG:",null,null,null,null,null,0]
["EMAIL;other;pref:","EMAIL;","other;","pref:",null,null,null,0]
["TEL;mobile:","TEL;","mobile:",null,null,null,null,0]
["TEL;work:","TEL;","work:",null,null,null,null,0]
["TEL;work_fax:","TEL;","work_fax:",null,null,null,null,0]
[null,null,null,null,null,null,null,0]
["ADR;work:","ADR;","work:",null,null,null,null,0]
["FN:","FN:",null,null,null,null,null,0]
["N:","N:",null,null,null,null,null,0]
["VERSION:","VERSION:",null,null,null,null,null,0]
["BEGIN:","BEGIN:",null,null,null,null,null,0]
["END:","END:",null,null,null,null,null,0]
["TITLE:","TITLE:",null,null,null,null,null,0]
["ORG:","ORG:",null,null,null,null,null,0]
["TEL;mobile:","TEL;","mobile:",null,null,null,null,0]
["TEL;work:","TEL;","work:",null,null,null,null,0]
[null,null,null,null,null,null,null,0]
["ADR;work:","ADR;","work:",null,null,null,null,0]
["FN:","FN:",null,null,null,null,null,0]
["N:","N:",null,null,null,null,null,0]
["VERSION:","VERSION:",null,null,null,null,null,0]
["BEGIN:","BEGIN:",null,null,null,null,null,0]
["END:","END:",null,null,null,null,null,0]
["TITLE:","TITLE:",null,null,null,null,null,0]
["ORG:","ORG:",null,null,null,null,null,0]
["EMAIL;work;pref:","EMAIL;","work;","pref:",null,null,null,0]
["TEL;mobile:","TEL;","mobile:",null,null,null,null,0]
["TEL;work:","TEL;","work:",null,null,null,null,0]
["ADR;work:","ADR;","work:",null,null,null,null,0]
["FN:","FN:",null,null,null,null,null,0]
["N:","N:",null,null,null,null,null,0]
["VERSION:","VERSION:",null,null,null,null,null,0]
["BEGIN:","BEGIN:",null,null,null,null,null,0]
["END:","END:",null,null,null,null,null,0]
["NOTE:","NOTE:",null,null,null,null,null,0]
["ORG:","ORG:",null,null,null,null,null,0]
["EMAIL;other;pref:","EMAIL;","other;","pref:",null,null,null,0]
["TEL;mobile:","TEL;","mobile:",null,null,null,null,0]
["TEL;work:","TEL;","work:",null,null,null,null,0]
[null,null,null,null,null,null,null,0]
["ADR;work:","ADR;","work:",null,null,null,null,0]
["FN:","FN:",null,null,null,null,null,0]
["N:","N:",null,null,null,null,null,0]
["VERSION:","VERSION:",null,null,null,null,null,0]
["BEGIN:","BEGIN:",null,null,null,null,null,0]
["END:","END:",null,null,null,null,null,0]
["TITLE:","TITLE:",null,null,null,null,null,0]
["ORG:","ORG:",null,null,null,null,null,0]
["TEL;work:","TEL;","work:",null,null,null,null,0]
[null,null,null,null,null,null,null,0]
["ADR;work:","ADR;","work:",null,null,null,null,0]
["FN:","FN:",null,null,null,null,null,0]
["N:","N:",null,null,null,null,null,0]
["VERSION:","VERSION:",null,null,null,null,null,0]
["BEGIN:","BEGIN:",null,null,null,null,null,0]
["END:","END:",null,null,null,null,null,0]
["NOTE:","NOTE:",null,null,null,null,null,0]
["TITLE:","TITLE:",null,null,null,null,null,0]
["ORG:","ORG:",null,null,null,null,null,0]
["TEL;work:","TEL;","work:",null,null,null,null,0]
["ADR;work:","ADR;","work:",null,null,null,null,0]
["FN:","FN:",null,null,null,null,null,0]
["N:","N:",null,null,null,null,null,0]
["VERSION:","VERSION:",null,null,null,null,null,0]
["BEGIN:","BEGIN:",null,null,null,null,null,0]
["END:","END:",null,null,null,null,null,0]
[null,null,null,null,null,null,null,0]
["NOTE:","NOTE:",null,null,null,null,null,0]
["TITLE:","TITLE:",null,null,null,null,null,0]
["ORG:","ORG:",null,null,null,null,null,0]
["TEL;work:","TEL;","work:",null,null,null,null,0]
[null,null,null,null,null,null,null,0]
["ADR;work:","ADR;","work:",null,null,null,null,0]
["FN:","FN:",null,null,null,null,null,0]
["N:","N:",null,null,null,null,null,0]
["VERSION:","VERSION:",null,null,null,null,null,0]
["BEGIN:","BEGIN:",null,null,null,null,null,0]
["END:","END:",null,null,null,null,null,0]
["FN:","FN:",null,null,null,null,null,0]
["EMAIL;other;pref:","EMAIL;","other;","pref:",null,null,null,0]
["N:","N:",null,null,null,null,null,0]
["VERSION:","VERSION:",null,null,null,null,null,0]
["BEGIN:","BEGIN:",null,null,null,null,null,0]
["END:","END:",null,null,null,null,null,0]
["ORG:","ORG:",null,null,null,null,null,0]
["EMAIL;other;pref:","EMAIL;","other;","pref:",null,null,null,0]
["TEL;work:","TEL;","work:",null,null,null,null,0]
["ADR;work:","ADR;","work:",null,null,null,null,0]
["FN:","FN:",null,null,null,null,null,0]
["N:","N:",null,null,null,null,null,0]
["VERSION:","VERSION:",null,null,null,null,null,0]
["BEGIN:","BEGIN:",null,null,null,null,null,0]
["END:","END:",null,null,null,null,null,0]
["TITLE:","TITLE:",null,null,null,null,null,0]
["EMAIL;other;pref:","EMAIL;","other;","pref:",null,null,null,0]
["TEL;work:","TEL;","work:",null,null,null,null,0]
["ADR;work:","ADR;","work:",null,null,null,null,0]
["FN:","FN:",null,null,null,null,null,0]
["N:","N:",null,null,null,null,null,0]
["VERSION:","VERSION:",null,null,null,null,null,0]
["BEGIN:","BEGIN:",null,null,null,null,null,0]
["END:","END:",null,null,null,null,null,0]
["TITLE:","TITLE:",null,null,null,null,null,0]
["ORG:","ORG:",null,null,null,null,null,0]
["TEL;mobile:","TEL;","mobile:",null,null,null,null,0]
["TEL;work:","TEL;","work:",null,null,null,null,0]
["ADR;work:","ADR;","work:",null,null,null,null,0]
["FN:","FN:",null,null,null,null,null,0]
["N:","N:",null,null,null,null,null,0]
["VERSION:","VERSION:",null,null,null,null,null,0]
["BEGIN:","BEGIN:",null,null,null,null,null,0]
["END:","END:",null,null,null,null,null,0]
["EMAIL;other;pref:","EMAIL;","other;","pref:",null,null,null,0]
["FN:","FN:",null,null,null,null,null,0]
["N:","N:",null,null,null,null,null,0]
["VERSION:","VERSION:",null,null,null,null,null,0]
["BEGIN:","BEGIN:",null,null,null,null,null,0]
["END:","END:",null,null,null,null,null,0]
["TITLE:","TITLE:",null,null,null,null,null,0]
["ORG:","ORG:",null,null,null,null,null,0]
["TEL;mobile:","TEL;","mobile:",null,null,null,null,0]
["TEL;work:","TEL;","work:",null,null,null,null,0]
[null,null,null,null,null,null,null,0]
["ADR;work:","ADR;","work:",null,null,null,null,0]
["FN:","FN:",null,null,null,null,null,0]
["N:","N:",null,null,null,null,null,0]
["VERSION:","VERSION:",null,null,null,null,null,0]
["BEGIN:","BEGIN:",null,null,null,null,null,0]
["END:","END:",null,null,null,null,null,0]
["FN:","FN:",null,null,null,null,null,0]
["EMAIL;other;pref:","EMAIL;","other;","pref:",null,null,null,0]
["N:","N:",null,null,null,null,null,0]
["VERSION:","VERSION:",null,null,null,null,null,0]
["BEGIN:","BEGIN:",null,null,null,null,null,0]
["END:","END:",null,null,null,null,null,0]
["TITLE:","TITLE:",null,null,null,null,null,0]
["ORG:","ORG:",null,null,null,null,null,0]
["EMAIL;other:","EMAIL;","other:",null,null,null,null,0]
["TEL;mobile:","TEL;","mobile:",null,null,null,null,0]
["TEL;work:","TEL;","work:",null,null,null,null,0]
[null,null,null,null,null,null,null,0]
["ADR;work:","ADR;","work:",null,null,null,null,0]
["FN:","FN:",null,null,null,null,null,0]
["N:","N:",null,null,null,null,null,0]
["VERSION:","VERSION:",null,null,null,null,null,0]
["BEGIN:","BEGIN:",null,null,null,null,null,0]
["END:","END:",null,null,null,null,null,0]
[null,null,null,null,null,null,null,0]
["URL:","URL:",null,null,null,null,null,0]
["TITLE:","TITLE:",null,null,null,null,null,0]
["EMAIL;other;pref:","EMAIL;","other;","pref:",null,null,null,0]
["FN:","FN:",null,null,null,null,null,0]
["N:","N:",null,null,null,null,null,0]
["VERSION:","VERSION:",null,null,null,null,null,0]
["BEGIN:","BEGIN:",null,null,null,null,null,0]
["END:","END:",null,null,null,null,null,0]
["TITLE:","TITLE:",null,null,null,null,null,0]
["EMAIL;other;pref:","EMAIL;","other;","pref:",null,null,null,0]
["TEL;mobile:","TEL;","mobile:",null,null,null,null,0]
["FN:","FN:",null,null,null,null,null,0]
["N:","N:",null,null,null,null,null,0]
["VERSION:","VERSION:",null,null,null,null,null,0]
["BEGIN:","BEGIN:",null,null,null,null,null,0]
["END:","END:",null,null,null,null,null,0]
[null,null,null,null,null,null,null,0]
["NOTE:","NOTE:",null,null,null,null,null,0]
["TITLE:","TITLE:",null,null,null,null,null,0]
["ORG:","ORG:",null,null,null,null,null,0]
["EMAIL;other;pref:","EMAIL;","other;","pref:",null,null,null,0]
["TEL;mobile:","TEL;","mobile:",null,null,null,null,0]
["TEL;mobile:","TEL;","mobile:",null,null,null,null,0]
["TEL;work:","TEL;","work:",null,null,null,null,0]
["TEL;work:","TEL;","work:",null,null,null,null,0]
["ADR;work:","ADR;","work:",null,null,null,null,0]
["ADR;work:","ADR;","work:",null,null,null,null,0]
["FN:","FN:",null,null,null,null,null,0]
["N:","N:",null,null,null,null,null,0]
["VERSION:","VERSION:",null,null,null,null,null,0]
["BEGIN:","BEGIN:",null,null,null,null,null,0]
["END:","END:",null,null,null,null,null,0]
[null,null,null,null,null,null,null,0]
[null,null,null,null,null,null,null,0]
["NOTE:","NOTE:",null,null,null,null,null,0]
["ORG:","ORG:",null,null,null,null,null,0]
["EMAIL;other;pref:","EMAIL;","other;","pref:",null,null,null,0]
["TEL;mobile:","TEL;","mobile:",null,null,null,null,0]
["ADR;work:","ADR;","work:",null,null,null,null,0]
["FN:","FN:",null,null,null,null,null,0]
["N:","N:",null,null,null,null,null,0]
["VERSION:","VERSION:",null,null,null,null,null,0]
["BEGIN:","BEGIN:",null,null,null,null,null,0]
["END:","END:",null,null,null,null,null,0]
["NOTE:","NOTE:",null,null,null,null,null,0]
["ORG:","ORG:",null,null,null,null,null,0]
["EMAIL;other;pref:","EMAIL;","other;","pref:",null,null,null,0]
["TEL;mobile:","TEL;","mobile:",null,null,null,null,0]
["TEL;work:","TEL;","work:",null,null,null,null,0]
["ADR;work:","ADR;","work:",null,null,null,null,0]
["FN:","FN:",null,null,null,null,null,0]
["N:","N:",null,null,null,null,null,0]
["VERSION:","VERSION:",null,null,null,null,null,0]
["BEGIN:","BEGIN:",null,null,null,null,null,0]
["END:","END:",null,null,null,null,null,0]
["FN:","FN:",null,null,null,null,null,0]
["N:","N:",null,null,null,null,null,0]
["VERSION:","VERSION:",null,null,null,null,null,0]
["BEGIN:","BEGIN:",null,null,null,null,null,0]
["END:","END:",null,null,null,null,null,0]
[null,null,null,null,null,null,null,0]
["URL:","URL:",null,null,null,null,null,0]
["TITLE:","TITLE:",null,null,null,null,null,0]
["EMAIL;other;pref:","EMAIL;","other;","pref:",null,null,null,0]
["FN:","FN:",null,null,null,null,null,0]
["N:","N:",null,null,null,null,null,0]
["VERSION:","VERSION:",null,null,null,null,null,0]
["BEGIN:","BEGIN:",null,null,null,null,null,0]
["END:","END:",null,null,null,null,null,0]
[null,null,null,null,null,null,null,0]
["NOTE:","NOTE:",null,null,null,null,null,0]
["TITLE:","TITLE:",null,null,null,null,null,0]
["TEL;mobile:","TEL;","mobile:",null,null,null,null,0]
["ADR;work:","ADR;","work:",null,null,null,null,0]
["FN:","FN:",null,null,null,null,null,0]
["N:","N:",null,null,null,null,null,0]
["VERSION:","VERSION:",null,null,null,null,null,0]
["BEGIN:","BEGIN:",null,null,null,null,null,0]
["END:","END:",null,null,null,null,null,0]
["TITLE:","TITLE:",null,null,null,null,null,0]
["ORG:","ORG:",null,null,null,null,null,0]
["EMAIL;other:","EMAIL;","other:",null,null,null,null,0]
["TEL;mobile:","TEL;","mobile:",null,null,null,null,0]
["TEL;work:","TEL;","work:",null,null,null,null,0]
[null,null,null,null,null,null,null,0]
["ADR;work:","ADR;","work:",null,null,null,null,0]
["FN:","FN:",null,null,null,null,null,0]
["N:","N:",null,null,null,null,null,0]
["VERSION:","VERSION:",null,null,null,null,null,0]
["BEGIN:","BEGIN:",null,null,null,null,null,0]
["END:","END:",null,null,null,null,null,0]
["TITLE:","TITLE:",null,null,null,null,null,0]
["ORG:","ORG:",null,null,null,null,null,0]
["EMAIL;other:","EMAIL;","other:",null,null,null,null,0]
["TEL;mobile:","TEL;","mobile:",null,null,null,null,0]
["TEL;work:","TEL;","work:",null,null,null,null,0]
[null,null,null,null,null,null,null,0]
[null,null,null,null,null,null,null,0]
["ADR;work:","ADR;","work:",null,null,null,null,0]
["FN:","FN:",null,null,null,null,null,0]
["N:","N:",null,null,null,null,null,0]
["VERSION:","VERSION:",null,null,null,null,null,0]
["BEGIN:","BEGIN:",null,null,null,null,null,0]
["END:","END:",null,null,null,null,null,0]
["TITLE:","TITLE:",null,null,null,null,null,0]
["EMAIL;other:","EMAIL;","other:",null,null,null,null,0]
[null,null,null,null,null,null,null,0]
["ADR;work:","ADR;","work:",null,null,null,null,0]
["FN:","FN:",null,null,null,null,null,0]
["N:","N:",null,null,null,null,null,0]
["VERSION:","VERSION:",null,null,null,null,null,0]
["BEGIN:","BEGIN:",null,null,null,null,null,0]
["END:","END:",null,null,null,null,null,0]
["EMAIL;other;pref:","EMAIL;","other;","pref:",null,null,null,0]
["FN:","FN:",null,null,null,null,null,0]
["N:","N:",null,null,null,null,null,0]
["VERSION:","VERSION:",null,null,null,null,null,0]
["BEGIN:","BEGIN:",null,null,null,null,null,0]
["END:","END:",null,null,null,null,null,0]
["TITLE:","TITLE:",null,null,null,null,null,0]
["ORG:","ORG:",null,null,null,null,null,0]
["TEL;mobile:","TEL;","mobile:",null,null,null,null,0]
["ADR;work:","ADR;","work:",null,null,null,null,0]
["FN:","FN:",null,null,null,null,null,0]
["N:","N:",null,null,null,null,null,0]
["VERSION:","VERSION:",null,null,null,null,null,0]
["BEGIN:","BEGIN:",null,null,null,null,null,0]
["END:","END:",null,null,null,null,null,0]
["NOTE:","NOTE:",null,null,null,null,null,0]
["TITLE:","TITLE:",null,null,null,null,null,0]
["ORG:","ORG:",null,null,null,null,null,0]
["TEL;mobile:","TEL;","mobile:",null,null,null,null,0]
["TEL;work:","TEL;","work:",null,null,null,null,0]
[null,null,null,null,null,null,null,0]
["ADR;work:","ADR;","work:",null,null,null,null,0]
["FN:","FN:",null,null,null,null,null,0]
["N:","N:",null,null,null,null,null,0]
["VERSION:","VERSION:",null,null,null,null,null,0]
["BEGIN:","BEGIN:",null,null,null,null,null,0]
["END:","END:",null,null,null,null,null,0]
["TITLE:","TITLE:",null,null,null,null,null,0]
["ORG:","ORG:",null,null,null,null,null,0]
["TEL;mobile:","TEL;","mobile:",null,null,null,null,0]
["TEL;work:","TEL;","work:",null,null,null,null,0]
[null,null,null,null,null,null,null,0]
["ADR;work:","ADR;","work:",null,null,null,null,0]
["FN:","FN:",null,null,null,null,null,0]
["N:","N:",null,null,null,null,null,0]
["VERSION:","VERSION:",null,null,null,null,null,0]
["BEGIN:","BEGIN:",null,null,null,null,null,0]
["END:","END:",null,null,null,null,null,0]
[null,null,null,null,null,null,null,0]
["NOTE:","NOTE:",null,null,null,null,null,0]
["TITLE:","TITLE:",null,null,null,null,null,0]
["ORG:","ORG:",null,null,null,null,null,0]
["EMAIL;other:","EMAIL;","other:",null,null,null,null,0]
["EMAIL;other;pref:","EMAIL;","other;","pref:",null,null,null,0]
["TEL;mobile:","TEL;","mobile:",null,null,null,null,0]
["TEL;mobile:","TEL;","mobile:",null,null,null,null,0]
["TEL;work:","TEL;","work:",null,null,null,null,0]
["TEL;work:","TEL;","work:",null,null,null,null,0]
["ADR;work:","ADR;","work:",null,null,null,null,0]
["ADR;work:","ADR;","work:",null,null,null,null,0]
["FN:","FN:",null,null,null,null,null,0]
["N:","N:",null,null,null,null,null,0]
["VERSION:","VERSION:",null,null,null,null,null,0]
["BEGIN:","BEGIN:",null,null,null,null,null,0]
["END:","END:",null,null,null,null,null,0]
[null,null,null,null,null,null,null,0]
["ADR;work:","ADR;","work:",null,null,null,null,0]
["FN:","FN:",null,null,null,null,null,0]
["N:","N:",null,null,null,null,null,0]
["VERSION:","VERSION:",null,null,null,null,null,0]
["BEGIN:","BEGIN:",null,null,null,null,null,0]
["END:","END:",null,null,null,null,null,0]
["TITLE:","TITLE:",null,null,null,null,null,0]
["ORG:","ORG:",null,null,null,null,null,0]
["EMAIL;other;pref:","EMAIL;","other;","pref:",null,null,null,0]
["TEL;mobile:","TEL;","mobile:",null,null,null,null,0]
["TEL;work:","TEL;","work:",null,null,null,null,0]
["ADR;work:","ADR;","work:",null,null,null,null,0]
["FN:","FN:",null,null,null,null,null,0]
["N:","N:",null,null,null,null,null,0]
["VERSION:","VERSION:",null,null,null,null,null,0]
["BEGIN:","BEGIN:",null,null,null,null,null,0]
["END:","END:",null,null,null,null,null,0]
["NOTE:","NOTE:",null,null,null,null,null,0]
["TITLE:","TITLE:",null,null,null,null,null,0]
["EMAIL;other:","EMAIL;","other:",null,null,null,null,0]
["EMAIL;other;pref:","EMAIL;","other;","pref:",null,null,null,0]
["TEL;mobile:","TEL;","mobile:",null,null,null,null,0]
["TEL;work:","TEL;","work:",null,null,null,null,0]
["TEL;mobile:","TEL;","mobile:",null,null,null,null,0]
["TEL;work:","TEL;","work:",null,null,null,null,0]
[null,null,null,null,null,null,null,0]
["ADR;work:","ADR;","work:",null,null,null,null,0]
["FN:","FN:",null,null,null,null,null,0]
["N:","N:",null,null,null,null,null,0]
["VERSION:","VERSION:",null,null,null,null,null,0]
["BEGIN:","BEGIN:",null,null,null,null,null,0]
["END:","END:",null,null,null,null,null,0]
["NOTE:","NOTE:",null,null,null,null,null,0]
["TITLE:","TITLE:",null,null,null,null,null,0]
["ORG:","ORG:",null,null,null,null,null,0]
["EMAIL;other:","EMAIL;","other:",null,null,null,null,0]
["TEL;mobile:","TEL;","mobile:",null,null,null,null,0]
["TEL;work:","TEL;","work:",null,null,null,null,0]
[null,null,null,null,null,null,null,0]
["ADR;work:","ADR;","work:",null,null,null,null,0]
["ADR;work:","ADR;","work:",null,null,null,null,0]
[null,null,null,null,null,null,null,0]
["ADR;work:","ADR;","work:",null,null,null,null,0]
["FN:","FN:",null,null,null,null,null,0]
["N:","N:",null,null,null,null,null,0]
["VERSION:","VERSION:",null,null,null,null,null,0]
["BEGIN:","BEGIN:",null,null,null,null,null,0]
["END:","END:",null,null,null,null,null,0]
["TITLE:","TITLE:",null,null,null,null,null,0]
["ORG:","ORG:",null,null,null,null,null,0]
["EMAIL;other;pref:","EMAIL;","other;","pref:",null,null,null,0]
["TEL;work:","TEL;","work:",null,null,null,null,0]
[null,null,null,null,null,null,null,0]
["ADR;work:","ADR;","work:",null,null,null,null,0]
["FN:","FN:",null,null,null,null,null,0]
["N:","N:",null,null,null,null,null,0]
["VERSION:","VERSION:",null,null,null,null,null,0]
["BEGIN:","BEGIN:",null,null,null,null,null,0]
["END:","END:",null,null,null,null,null,0]
["TITLE:","TITLE:",null,null,null,null,null,0]
["ORG:","ORG:",null,null,null,null,null,0]
["EMAIL;other:","EMAIL;","other:",null,null,null,null,0]
["TEL;mobile:","TEL;","mobile:",null,null,null,null,0]
["TEL;home:","TEL;","home:",null,null,null,null,0]
["TEL;work:","TEL;","work:",null,null,null,null,0]
[null,null,null,null,null,null,null,0]
["ADR;work:","ADR;","work:",null,null,null,null,0]
["FN:","FN:",null,null,null,null,null,0]
["N:","N:",null,null,null,null,null,0]
["VERSION:","VERSION:",null,null,null,null,null,0]
["BEGIN:","BEGIN:",null,null,null,null,null,0]
["END:","END:",null,null,null,null,null,0]
["TITLE:","TITLE:",null,null,null,null,null,0]
["ORG:","ORG:",null,null,null,null,null,0]
["BEGIN:","BEGIN:",null,null,null,null,null,0]
["END:","END:",null,null,null,null,null,0]
["ADR;work:","ADR;","work:",null,null,null,null,0]
["TITLE:","TITLE:",null,null,null,null,null,0]
["FN:","FN:",null,null,null,null,null,0]
["VERSION:","VERSION:",null,null,null,null,null,0]
["EMAIL;other;pref:","EMAIL;","other;","pref:",null,null,null,0]
[null,null,null,null,null,null,null,0]
["ORG:","ORG:",null,null,null,null,null,0]
["BEGIN:","BEGIN:",null,null,null,null,null,0]
["N:","N:",null,null,null,null,null,0]
["TITLE:","TITLE:",null,null,null,null,null,0]
[null,null,null,null,null,null,null,0]
["ORG:","ORG:",null,null,null,null,null,0]
["BEGIN:","BEGIN:",null,null,null,null,null,0]
["FN:","FN:",null,null,null,null,null,0]
["TEL;mobile:","TEL;","mobile:",null,null,null,null,0]
["FN:","FN:",null,null,null,null,null,0]
["FN:","FN:",null,null,null,null,null,0]
["TITLE:","TITLE:",null,null,null,null,null,0]
[null,null,null,null,null,null,null,0]
["ADR;work:","ADR;","work:",null,null,null,null,0]
["TEL;mobile:","TEL;","mobile:",null,null,null,null,0]
[null,null,null,null,null,null,null,0]
["END:","END:",null,null,null,null,null,0]
["TITLE:","TITLE:",null,null,null,null,null,0]
["BEGIN:","BEGIN:",null,null,null,null,null,0]
["ADR;work:","ADR;","work:",null,null,null,null,0]
["BEGIN:","BEGIN:",null,null,null,null,null,0]
["ADR;work:","ADR;","work:",null,null,null,null,0]
["BEGIN:","BEGIN:",null,null,null,null,null,0]
["FN:","FN:",null,null,null,null,null,0]
["TEL;work:","TEL;","work:",null,null,null,null,0]
["BEGIN:","BEGIN:",null,null,null,null,null,0]
["FN:","FN:",null,null,null,null,null,0]
["TITLE:","TITLE:",null,null,null,null,null,0]
["ORG:","ORG:",null,null,null,null,null,0]
["ADR;work:","ADR;","work:",null,null,null,null,0]
["N:","N:",null,null,null,null,null,0]
["END:","END:",null,null,null,null,null,0]
["FN:","FN:",null,null,null,null,null,0]
["ORG:","ORG:",null,null,null,null,null,0]
["BEGIN:","BEGIN:",null,null,null,null,null,0]
["ADR;work:","ADR;","work:",null,null,null,null,0]
["END:","END:",null,null,null,null,null,0]
["VERSION:","VERSION:",null,null,null,null,null,0]
["N:","N:",null,null,null,null,null,0]
["ORG:","ORG:",null,null,null,null,null,0]
["N:","N:",null,null,null,null,null,0]
["N:","N:",null,null,null,null,null,0]
["EMAIL;other;pref:","EMAIL;","other;","pref:",null,null,null,0]
["ORG:","ORG:",null,null,null,null,null,0]
["ADR;work:","ADR;","work:",null,null,null,null,0]
["N:","N:",null,null,null,null,null,0]
["N:","N:",null,null,null,null,null,0]
["ORG:","ORG:",null,null,null,null,null,0]
[null,null,null,null,null,null,null,0]
["TEL;mobile:","TEL;","mobile:",null,null,null,null,0]
["TEL;mobile:","TEL;","mobile:",null,null,null,null,0]
["FN:","FN:",null,null,null,null,null,0]
["N:","N:",null,null,null,null,null,0]
["BEGIN:","BEGIN:",null,null,null,null,null,0]
["ADR;work:","ADR;","work:",null,null,null,null,0]
["BEGIN:","BEGIN:",null,null,null,null,null,0]
["TEL;mobile:","TEL;","mobile:",null,null,null,null,0]
["FN:","FN:",null,null,null,null,null,0]
["ADR;work:","ADR;","work:",null,null,null,null,0]
["FN:","FN:",null,null,null,null,null,0]
["END:","END:",null,null,null,null,null,0]
["TITLE:","TITLE:",null,null,null,null,null,0]
["ADR;work:","ADR;","work:",null,null,null,null,0]
["END:","END:",null,null,null,null,null,0]
["VERSION:","VERSION:",null,null,null,null,null,0]
["TITLE:","TITLE:",null,null,null,null,null,0]
["EMAIL;other;pref:","EMAIL;","other;","pref:",null,null,null,0]
["BEGIN:","BEGIN:",null,null,null,null,null,0]
[null,null,null,null,null,null,null,0]
["N:","N:",null,null,null,null,null,0]
["URL:","URL:",null,null,null,null,null,0]
["VERSION:","VERSION:",null,null,null,null,null,0]
["BEGIN:","BEGIN:",null,null,null,null,null,0]
["TEL;work:","TEL;","work:",null,null,null,null,0]
[null,null,null,null,null,null,null,0]
["VERSION:","VERSION:",null,null,null,null,null,0]
["BEGIN:","BEGIN:",null,null,null,null,null,0]
["FN:","FN:",null,null,null,null,null,0]
["EMAIL;other;pref:","EMAIL;","other;","pref:",null,null,null,0]
["N:","N:",null,null,null,null,null,0]
["FN:","FN:",null,null,null,null,null,0]
["TEL;work:","TEL;","work:",null,null,null,null,0]
["END:","END:",null,null,null,null,null,0]
["N:","N:",null,null,null,null,null,0]
["ORG:","ORG:",null,null,null,null,null,0]
["FN:","FN:",null,null,null,null,null,0]
["TITLE:","TITLE:",null,null,null,null,null,0]
["VERSION:","VERSION:",null,null,null,null,null,0]
["TEL;work:","TEL;","work:",null,null,null,null,0]
["EMAIL;other:","EMAIL;","other:",null,null,null,null,0]
["N:","N:",null,null,null,null,null,0]
["EMAIL;other;pref:","EMAIL;","other;","pref:",null,null,null,0]
["TITLE:","TITLE:",null,null,null,null,null,0]
["VERSION:","VERSION:",null,null,null,null,null,0]
["N:","N:",null,null,null,null,null,0]
["FN:","FN:",null,null,null,null,null,0]
["END:","END:",null,null,null,null,null,0]
["ADR;work:","ADR;","work:",null,null,null,null,0]
["BEGIN:","BEGIN:",null,null,null,null,null,0]
["TITLE:","TITLE:",null,null,null,null,null,0]
["ORG:","ORG:",null,null,null,null,null,0]
["TEL;work:","TEL;","work:",null,null,null,null,0]
["ADR;work:","ADR;","work:",null,null,null,null,0]
["FN:","FN:",null,null,null,null,null,0]
["N:","N:",null,null,null,null,null,0]
["BEGIN:","BEGIN:",null,null,null,null,null,0]
["VERSION:","VERSION:",null,null,null,null,null,0]
["END:","END:",null,null,null,null,null,0]
["END:","END:",null,null,null,null,null,0]
["N:","N:",null,null,null,null,null,0]
["END:","END:",null,null,null,null,null,0]
["N:","N:",null,null,null,null,null,0]
["TEL;work:","TEL;","work:",null,null,null,null,0]
["ORG:","ORG:",null,null,null,null,null,0]
["ADR;work:","ADR;","work:",null,null,null,null,0]
["FN:","FN:",null,null,null,null,null,0]
["ADR;work:","ADR;","work:",null,null,null,null,0]
["TEL;work:","TEL;","work:",null,null,null,null,0]
["END:","END:",null,null,null,null,null,0]
["N:","N:",null,null,null,null,null,0]
["ADR;work:","ADR;","work:",null,null,null,null,0]
["ADR;work:","ADR;","work:",null,null,null,null,0]
["TITLE:","TITLE:",null,null,null,null,null,0]
["VERSION:","VERSION:",null,null,null,null,null,0]
["EMAIL;other;pref:","EMAIL;","other;","pref:",null,null,null,0]
["FN:","FN:",null,null,null,null,null,0]
["END:","END:",null,null,null,null,null,0]
["EMAIL;other;pref:","EMAIL;","other;","pref:",null,null,null,0]
["EMAIL;other;pref:","EMAIL;","other;","pref:",null,null,null,0]
["TEL;work:","TEL;","work:",null,null,null,null,0]
["FN:","FN:",null,null,null,null,null,0]
[null,null,null,null,null,null,null,0]
["VERSION:","VERSION:",null,null,null,null,null,0]
["TITLE:","TITLE:",null,null,null,null,null,0]
["TITLE:","TITLE:",null,null,null,null,null,0]
[null,null,null,null,null,null,null,0]
["VERSION:","VERSION:",null,null,null,null,null,0]
["NOTE:","NOTE:",null,null,null,null,null,0]
["ORG:","ORG:",null,null,null,null,null,0]
["N:","N:",null,null,null,null,null,0]
["EMAIL;other;pref:","EMAIL;","other;","pref:",null,null,null,0]
["TEL;mobile:","TEL;","mobile:",null,null,null,null,0]
["N:","N:",null,null,null,null,null,0]
["ORG:","ORG:",null,null,null,null,null,0]
["EMAIL;other;pref:","EMAIL;","other;","pref:",null,null,null,0]
["TITLE:","TITLE:",null,null,null,null,null,0]
["TEL;work:","TEL;","work:",null,null,null,null,0]
["VERSION:","VERSION:",null,null,null,null,null,0]
["URL:","URL:",null,null,null,null,null,0]
["ADR;work:","ADR;","work:",null,null,null,null,0]
["FN:","FN:",null,null,null,null,null,0]
["NOTE:","NOTE:",null,null,null,null,null,0]
["N:","N:",null,null,null,null,null,0]
["EMAIL;other;pref:","EMAIL;","other;","pref:",null,null,null,0]
["TEL;other_fax:","TEL;","other_fax:",null,null,null,null,0]
["TITLE:","TITLE:",null,null,null,null,null,0]
["NOTE:","NOTE:",null,null,null,null,null,0]
["TEL;pager:","TEL;","pager:",null,null,null,null,0]
["TEL;work:","TEL;","work:",null,null,null,null,0]
[null,null,null,null,null,null,null,0]
["N:","N:",null,null,null,null,null,0]
["FN:","FN:",null,null,null,null,null,0]
["ORG:","ORG:",null,null,null,null,null,0]
["BEGIN:","BEGIN:",null,null,null,null,null,0]
["BEGIN:","BEGIN:",null,null,null,null,null,0]
["FN:","FN:",null,null,null,null,null,0]
["ADR;work:","ADR;","work:",null,null,null,null,0]
["BEGIN:","BEGIN:",null,null,null,null,null,0]
["TITLE:","TITLE:",null,null,null,null,null,0]
["BEGIN:","BEGIN:",null,null,null,null,null,0]
["ORG:","ORG:",null,null,null,null,null,0]
[null,null,null,null,null,null,null,0]
["TEL;mobile:","TEL;","mobile:",null,null,null,null,0]
["FN:","FN:",null,null,null,null,null,0]
["ADR;work:","ADR;","work:",null,null,null,null,0]
["END:","END:",null,null,null,null,null,0]
["ADR;work:","ADR;","work:",null,null,null,null,0]
["TITLE:","TITLE:",null,null,null,null,null,0]
["FN:","FN:",null,null,null,null,null,0]
["N:","N:",null,null,null,null,null,0]
[null,null,null,null,null,null,null,0]
["VERSION:","VERSION:",null,null,null,null,null,0]
["TITLE:","TITLE:",null,null,null,null,null,0]
["FN:","FN:",null,null,null,null,null,0]
["N:","N:",null,null,null,null,null,0]
["END:","END:",null,null,null,null,null,0]
["END:","END:",null,null,null,null,null,0]
["EMAIL;other;pref:","EMAIL;","other;","pref:",null,null,null,0]
["FN:","FN:",null,null,null,null,null,0]
["END:","END:",null,null,null,null,null,0]
["TEL;mobile:","TEL;","mobile:",null,null,null,null,0]
["N:","N:",null,null,null,null,null,0]
["END:","END:",null,null,null,null,null,0]
["FN:","FN:",null,null,null,null,null,0]
["EMAIL;other;pref:","EMAIL;","other;","pref:",null,null,null,0]
["ADR;work:","ADR;","work:",null,null,null,null,0]
["BEGIN:","BEGIN:",null,null,null,null,null,0]
["TEL;work:","TEL;","work:",null,null,null,null,0]
["END:","END:",null,null,null,null,null,0]
["ADR;work:","ADR;","work:",null,null,null,null,0]
["N:","N:",null,null,null,null,null,0]
["FN:","FN:",null,null,null,null,null,0]
["END:","END:",null,null,null,null,null,0]
["TITLE:","TITLE:",null,null,null,null,null,0]
["BEGIN:","BEGIN:",null,null,null,null,null,0]
["VERSION:","VERSION:",null,null,null,null,null,0]
["TEL;mobile:","TEL;","mobile:",null,null,null,null,0]
["BEGIN:","BEGIN:",null,null,null,null,null,0]
["TEL;mobile:","TEL;","mobile:",null,null,null,null,0]
["BEGIN:","BEGIN:",null,null,null,null,null,0]
["FN:","FN:",null,null,null,null,null,0]
["END:","END:",null,null,null,null,null,0]
["END:","END:",null,null,null,null,null,0]
["EMAIL;other:","EMAIL;","other:",null,null,null,null,0]
["TEL;home:","TEL;","home:",null,null,null,null,0]
["ADR;work:","ADR;","work:",null,null,null,null,0]
["TEL;work:","TEL;","work:",null,null,null,null,0]
["ORG:","ORG:",null,null,null,null,null,0]
["VERSION:","VERSION:",null,null,null,null,null,0]
["EMAIL;other;pref:","EMAIL;","other;","pref:",null,null,null,0]
["N:","N:",null,null,null,null,null,0]
["EMAIL;other;pref:","EMAIL;","other;","pref:",null,null,null,0]
["VERSION:","VERSION:",null,null,null,null,null,0]
["FN:","FN:",null,null,null,null,null,0]
["NOTE:","NOTE:",null,null,null,null,null,0]
["ORG:","ORG:",null,null,null,null,null,0]
["FN:","FN:",null,null,null,null,null,0]
["END:","END:",null,null,null,null,null,0]
["TITLE:","TITLE:",null,null,null,null,null,0]
["EMAIL;other;pref:","EMAIL;","other;","pref:",null,null,null,0]
["EMAIL;other;pref:","EMAIL;","other;","pref:",null,null,null,0]
["END:","END:",null,null,null,null,null,0]
[null,null,null,null,null,null,null,0]
["VERSION:","VERSION:",null,null,null,null,null,0]
["ORG:","ORG:",null,null,null,null,null,0]
["N:","N:",null,null,null,null,null,0]
["ORG:","ORG:",null,null,null,null,null,0]
["TEL;work:","TEL;","work:",null,null,null,null,0]
["EMAIL;other;pref:","EMAIL;","other;","pref:",null,null,null,0]
["TEL;mobile:","TEL;","mobile:",null,null,null,null,0]
["URL:","URL:",null,null,null,null,null,0]
["TITLE:","TITLE:",null,null,null,null,null,0]
[null,null,null,null,null,null,null,0]
["ADR;work:","ADR;","work:",null,null,null,null,0]
[null,null,null,null,null,null,null,0]
["VERSION:","VERSION:",null,null,null,null,null,0]
["FN:","FN:",null,null,null,null,null,0]
["N:","N:",null,null,null,null,null,0]
["ORG:","ORG:",null,null,null,null,null,0]
["ADR;work:","ADR;","work:",null,null,null,null,0]
[null,null,null,null,null,null,null,0]
["VERSION:","VERSION:",null,null,null,null,null,0]
["TEL;mobile:","TEL;","mobile:",null,null,null,null,0]
["TEL;work:","TEL;","work:",null,null,null,null,0]
["BEGIN:","BEGIN:",null,null,null,null,null,0]
["BEGIN:","BEGIN:",null,null,null,null,null,0]
["ADR;work:","ADR;","work:",null,null,null,null,0]
["VERSION:","VERSION:",null,null,null,null,null,0]
["NOTE:","NOTE:",null,null,null,null,null,0]
["TITLE:","TITLE:",null,null,null,null,null,0]
[null,null,null,null,null,null,null,0]
["NOTE:","NOTE:",null,null,null,null,null,0]
["FN:","FN:",null,null,null,null,null,0]
[null,null,null,null,null,null,null,0]
["ORG:","ORG:",null,null,null,null,null,0]
["EMAIL;other:","EMAIL;","other:",null,null,null,null,0]
["TEL;work:","TEL;","work:",null,null,null,null,0]
["N:","N:",null,null,null,null,null,0]
["END:","END:",null,null,null,null,null,0]
["TITLE:","TITLE:",null,null,null,null,null,0]
["ADR;work:","ADR;","work:",null,null,null,null,0]
["TEL;work:","TEL;","work:",null,null,null,null,0]
["END:","END:",null,null,null,null,null,0]
["TEL;work:","TEL;","work:",null,null,null,null,0]
["FN:","FN:",null,null,null,null,null,0]
["TITLE:","TITLE:",null,null,null,null,null,0]
["END:","END:",null,null,null,null,null,0]
["N:","N:",null,null,null,null,null,0]
["TEL;mobile:","TEL;","mobile:",null,null,null,null,0]
["ADR;work:","ADR;","work:",null,null,null,null,0]
["END:","END:",null,null,null,null,null,0]
["TEL;work_fax:","TEL;","work_fax:",null,null,null,null,0]
["END:","END:",null,null,null,null,null,0]
["TITLE:","TITLE:",null,null,null,null,null,0]
["ORG:","ORG:",null,null,null,null,null,0]
["ORG:","ORG:",null,null,null,null,null,0]
["FN:","FN:",null,null,null,null,null,0]
["TITLE:","TITLE:",null,null,null,null,null,0]
["EMAIL;other;pref:","EMAIL;","other;","pref:",null,null,null,0]
["TEL;work:","TEL;","work:",null,null,null,null,0]
["BEGIN:","BEGIN:",null,null,null,null,null,0]
["VERSION:","VERSION:",null,null,null,null,null,0]
[null,null,null,null,null,null,null,0]
["BEGIN:","BEGIN:",null,null,null,null,null,0]
["VERSION:","VERSION:",null,null,null,null,null,0]
[null,null,null,null,null,null,null,0]
["VERSION:","VERSION:",null,null,null,null,null,0]
["FN:","FN:",null,null,null,null,null,0]
["NOTE:","NOTE:",null,null,null,null,null,0]
["BEGIN:","BEGIN:",null,null,null,null,null,0]
["BEGIN:","BEGIN:",null,null,null,null,null,0]
["BEGIN:","BEGIN:",null,null,null,null,null,0]
["EMAIL;other;pref:","EMAIL;","other;","pref:",null,null,null,0]
["TEL;work:","TEL;","work:",null,null,null,null,0]
["ADR;work:","ADR;","work:",null,null,null,null,0]
[null,null,null,null,null,null,null,0]
["N:","N:",null,null,null,null,null,0]
[null,null,null,null,null,null,null,0]
["TEL;mobile:","TEL;","mobile:",null,null,null,null,0]
["TEL;work:","TEL;","work:",null,null,null,null,0]
["ORG:","ORG:",null,null,null,null,null,0]
["TEL;work:","TEL;","work:",null,null,null,null,0]
["FN:","FN:",null,null,null,null,null,0]
["BEGIN:","BEGIN:",null,null,null,null,null,0]
["FN:","FN:",null,null,null,null,null,0]
["EMAIL;other;pref:","EMAIL;","other;","pref:",null,null,null,0]
["TEL;mobile:","TEL;","mobile:",null,null,null,null,0]
["TEL;other_fax:","TEL;","other_fax:",null,null,null,null,0]
["ADR;work:","ADR;","work:",null,null,null,null,0]
["TEL;work:","TEL;","work:",null,null,null,null,0]
["END:","END:",null,null,null,null,null,0]
["FN:","FN:",null,null,null,null,null,0]
["TEL;work:","TEL;","work:",null,null,null,null,0]
["EMAIL;other;pref:","EMAIL;","other;","pref:",null,null,null,0]
["BEGIN:","BEGIN:",null,null,null,null,null,0]
["EMAIL;other;pref:","EMAIL;","other;","pref:",null,null,null,0]
["BEGIN:","BEGIN:",null,null,null,null,null,0]
["TEL;mobile:","TEL;","mobile:",null,null,null,null,0]
[null,null,null,null,null,null,null,0]
["FN:","FN:",null,null,null,null,null,0]
["TITLE:","TITLE:",null,null,null,null,null,0]
["FN:","FN:",null,null,null,null,null,0]
["TITLE:","TITLE:",null,null,null,null,null,0]
["EMAIL;other;pref:","EMAIL;","other;","pref:",null,null,null,0]
["TITLE:","TITLE:",null,null,null,null,null,0]
["ADR;work:","ADR;","work:",null,null,null,null,0]
["TEL;mobile:","TEL;","mobile:",null,null,null,null,0]
["BEGIN:","BEGIN:",null,null,null,null,null,0]
["FN:","FN:",null,null,null,null,null,0]
["VERSION:","VERSION:",null,null,null,null,null,0]
[null,null,null,null,null,null,null,0]
[null,null,null,null,null,null,null,0]
["EMAIL;other;pref:","EMAIL;","other;","pref:",null,null,null,0]
["TEL;work:","TEL;","work:",null,null,null,null,0]
["N:","N:",null,null,null,null,null,0]
["VERSION:","VERSION:",null,null,null,null,null,0]
["FN:","FN:",null,null,null,null,null,0]
["N:","N:",null,null,null,null,null,0]
["VERSION:","VERSION:",null,null,null,null,null,0]
["END:","END:",null,null,null,null,null,0]
["ADR;work:","ADR;","work:",null,null,null,null,0]
["VERSION:","VERSION:",null,null,null,null,null,0]
["END:","END:",null,null,null,null,null,0]
["FN:","FN:",null,null,null,null,null,0]
["N:","N:",null,null,null,null,null,0]
["BEGIN:","BEGIN:",null,null,null,null,null,0]
["ORG:","ORG:",null,null,null,null,null,0]
["FN:","FN:",null,null,null,null,null,0]
["END:","END:",null,null,null,null,null,0]
[null,null,null,null,null,null,null,0]
["N:","N:",null,null,null,null,null,0]
["TITLE:","TITLE:",null,null,null,null,null,0]
["N:","N:",null,null,null,null,null,0]
["TITLE:","TITLE:",null,null,null,null,null,0]
["VERSION:","VERSION:",null,null,null,null,null,0]
["TEL;work:","TEL;","work:",null,null,null,null,0]
["BEGIN:","BEGIN:",null,null,null,null,null,0]
["FN:","FN:",null,null,null,null,null,0]
["VERSION:","VERSION:",null,null,null,null,null,0]
["N:","N:",null,null,null,null,null,0]
["ORG:","ORG:",null,null,null,null,null,0]
["TEL;work:","TEL;","work:",null,null,null,null,0]
["EMAIL;other:","EMAIL;","other:",null,null,null,null,0]
["ORG:","ORG:",null,null,null,null,null,0]
["FN:","FN:",null,null,null,null,null,0]
["EMAIL;work;pref:","EMAIL;","work;","pref:",null,null,null,0]
["BEGIN:","BEGIN:",null,null,null,null,null,0]
["ORG:","ORG:",null,null,null,null,null,0]
["BEGIN:","BEGIN:",null,null,null,null,null,0]
["EMAIL;other;pref:","EMAIL;","other;","pref:",null,null,null,0]
["ADR;work:","ADR;","work:",null,null,null,null,0]
[null,null,null,null,null,null,null,0]
["TEL;work:","TEL;","work:",null,null,null,null,0]
["ORG:","ORG:",null,null,null,null,null,0]
["TEL;work:","TEL;","work:",null,null,null,null,0]
["END:","END:",null,null,null,null,null,0]
["N:","N:",null,null,null,null,null,0]
["TITLE:","TITLE:",null,null,null,null,null,0]
["TEL;mobile:","TEL;","mobile:",null,null,null,null,0]
["NOTE:","NOTE:",null,null,null,null,null,0]
["END:","END:",null,null,null,null,null,0]
["TITLE:","TITLE:",null,null,null,null,null,0]
["BEGIN:","BEGIN:",null,null,null,null,null,0]
["ADR;work:","ADR;","work:",null,null,null,null,0]
["TEL;work:","TEL;","work:",null,null,null,null,0]
["N:","N:",null,null,null,null,null,0]
["BEGIN:","BEGIN:",null,null,null,null,null,0]
["VERSION:","VERSION:",null,null,null,null,null,0]
["N:","N:",null,null,null,null,null,0]
["BEGIN:","BEGIN:",null,null,null,null,null,0]
["END:","END:",null,null,null,null,null,0]
["ORG:","ORG:",null,null,null,null,null,0]
["TITLE:","TITLE:",null,null,null,null,null,0]
["ORG:","ORG:",null,null,null,null,null,0]
["TEL;pager:","TEL;","pager:",null,null,null,null,0]
["BEGIN:","BEGIN:",null,null,null,null,null,0]
["FN:","FN:",null,null,null,null,null,0]
["BEGIN:","BEGIN:",null,null,null,null,null,0]
["END:","END:",null,null,null,null,null,0]
["FN:","FN:",null,null,null,null,null,0]
["FN:","FN:",null,null,null,null,null,0]
["N:","N:",null,null,null,null,null,0]
["VERSION:","VERSION:",null,null,null,null,null,0]
["FN:","FN:",null,null,null,null,null,0]
["TITLE:","TITLE:",null,null,null,null,null,0]
[null,null,null,null,null,null,null,0]
["ADR;work:","ADR;","work:",null,null,null,null,0]
["BEGIN:","BEGIN:",null,null,null,null,null,0]
["VERSION:","VERSION:",null,null,null,null,null,0]
["EMAIL;other:","EMAIL;","other:",null,null,null,null,0]
["VERSION:","VERSION:",null,null,null,null,null,0]
["NOTE:","NOTE:",null,null,null,null,null,0]
["EMAIL;other;pref:","EMAIL;","other;","pref:",null,null,null,0]
["N:","N:",null,null,null,null,null,0]
["EMAIL;other;pref:","EMAIL;","other;","pref:",null,null,null,0]
["FN:","FN:",null,null,null,null,null,0]
["END:","END:",null,null,null,null,null,0]
["FN:","FN:",null,null,null,null,null,0]
[null,null,null,null,null,null,null,0]
["N:","N:",null,null,null,null,null,0]
["ORG:","ORG:",null,null,null,null,null,0]
["END:","END:",null,null,null,null,null,0]
["VERSION:","VERSION:",null,null,null,null,null,0]
["VERSION:","VERSION:",null,null,null,null,null,0]
["N:","N:",null,null,null,null,null,0]
["URL:","URL:",null,null,null,null,null,0]
["END:","END:",null,null,null,null,null,0]
["EMAIL;other:","EMAIL;","other:",null,null,null,null,0]
["EMAIL;work;pref:","EMAIL;","work;","pref:",null,null,null,0]
["END:","END:",null,null,null,null,null,0]
["TEL;work:","TEL;","work:",null,null,null,null,0]
[null,null,null,null,null,null,null,0]
["EMAIL;other;pref:","EMAIL;","other;","pref:",null,null,null,0]
["TEL;mobile:","TEL;","mobile:",null,null,null,null,0]
["BEGIN:","BEGIN:",null,null,null,null,null,0]
["EMAIL;other;pref:","EMAIL;","other;","pref:",null,null,null,0]
["ORG:","ORG:",null,null,null,null,null,0]
["EMAIL;other:","EMAIL;","other:",null,null,null,null,0]
["BEGIN:","BEGIN:",null,null,null,null,null,0]
["TITLE:","TITLE:",null,null,null,null,null,0]
["FN:","FN:",null,null,null,null,null,0]
[null,null,null,null,null,null,null,0]
["VERSION:","VERSION:",null,null,null,null,null,0]
["ADR;work:","ADR;","work:",null,null,null,null,0]
[null,null,null,null,null,null,null,0]
["TEL;work:","TEL;","work:",null,null,null,null,0]
["TITLE:","TITLE:",null,null,null,null,null,0]
["TITLE:","TITLE:",null,null,null,null,null,0]
["TEL;work:","TEL;","work:",null,null,null,null,0]
["END:","END:",null,null,null,null,null,0]
["BEGIN:","BEGIN:",null,null,null,null,null,0]
["VERSION:","VERSION:",null,null,null,null,null,0]
[null,null,null,null,null,null,null,0]
["END:","END:",null,null,null,null,null,0]
["NOTE:","NOTE:",null,null,null,null,null,0]
["TEL;work:","TEL;","work:",null,null,null,null,0]
["EMAIL;other:","EMAIL;","other:",null,null,null,null,0]
["EMAIL;other;pref:","EMAIL;","other;","pref:",null,null,null,0]
["ADR;work:","ADR;","work:",null,null,null,null,0]
["VERSION:","VERSION:",null,null,null,null,null,0]
["FN:","FN:",null,null,null,null,null,0]
["VERSION:","VERSION:",null,null,null,null,null,0]
[null,null,null,null,null,null,null,0]
["EMAIL;other:","EMAIL;","other:",null,null,null,null,0]
[null,null,null,null,null,null,null,0]
["BEGIN:","BEGIN:",null,null,null,null,null,0]
["TITLE:","TITLE:",null,null,null,null,null,0]
["TEL;work:","TEL;","work:",null,null,null,null,0]
["ADR;work:","ADR;","work:",null,null,null,null,0]
["END:","END:",null,null,null,null,null,0]
["ADR;work:","ADR;","work:",null,null,null,null,0]
["BEGIN:","BEGIN:",null,null,null,null,null,0]
["END:","END:",null,null,null,null,null,0]
["N:","N:",null,null,null,null,null,0]
["END:","END:",null,null,null,null,null,0]
["VERSION:","VERSION:",null,null,null,null,null,0]
["VERSION:","VERSION:",null,null,null,null,null,0]
[null,null,null,null,null,null,null,0]
["BEGIN:","BEGIN:",null,null,null,null,null,0]
["ADR;work:","ADR;","work:",null,null,null,null,0]
["TITLE:","TITLE:",null,null,null,null,null,0]
["ORG:","ORG:",null,null,null,null,null,0]
["BEGIN:","BEGIN:",null,null,null,null,null,0]
["ADR;work:","ADR;","work:",null,null,null,null,0]
["VERSION:","VERSION:",null,null,null,null,null,0]
["TITLE:","TITLE:",null,null,null,null,null,0]
["BEGIN:","BEGIN:",null,null,null,null,null,0]
["TEL;mobile:","TEL;","mobile:",null,null,null,null,0]
["ADR;work:","ADR;","work:",null,null,null,null,0]
["END:","END:",null,null,null,null,null,0]
["TITLE:","TITLE:",null,null,null,null,null,0]
["END:","END:",null,null,null,null,null,0]
["BEGIN:","BEGIN:",null,null,null,null,null,0]
["TEL;mobile:","TEL;","mobile:",null,null,null,null,0]
["TEL;mobile:","TEL;","mobile:",null,null,null,null,0]
["TEL;home:","TEL;","home:",null,null,null,null,0]
["BEGIN:","BEGIN:",null,null,null,null,null,0]
["N:","N:",null,null,null,null,null,0]
["N:","N:",null,null,null,null,null,0]
["ADR;work:","ADR;","work:",null,null,null,null,0]
["TITLE:","TITLE:",null,null,null,null,null,0]
["VERSION:","VERSION:",null,null,null,null,null,0]
["ADR;work:","ADR;","work:",null,null,null,null,0]
["TEL;work:","TEL;","work:",null,null,null,null,0]
["BEGIN:","BEGIN:",null,null,null,null,null,0]
["TEL;work:","TEL;","work:",null,null,null,null,0]
["END:","END:",null,null,null,null,null,0]
["FN:","FN:",null,null,null,null,null,0]
["N:","N:",null,null,null,null,null,0]
["ORG:","ORG:",null,null,null,null,null,0]
["N:","N:",null,null,null,null,null,0]
["FN:","FN:",null,null,null,null,null,0]
["TITLE:","TITLE:",null,null,null,null,null,0]
["VERSION:","VERSION:",null,null,null,null,null,0]
["N:","N:",null,null,null,null,null,0]
["BEGIN:","BEGIN:",null,null,null,null,null,0]
["TEL;mobile:","TEL;","mobile:",null,null,null,null,0]
["VERSION:","VERSION:",null,null,null,null,null,0]
["ADR;work:","ADR;","work:",null,null,null,null,0]
["N:","N:",null,null,null,null,null,0]
["VERSION:","VERSION:",null,null,null,null,null,0]
["TEL;mobile:","TEL;","mobile:",null,null,null,null,0]
["VERSION:","VERSION:",null,null,null,null,null,0]
["BEGIN:","BEGIN:",null,null,null,null,null,0]
["EMAIL;other;pref:","EMAIL;","other;","pref:",null,null,null,0]
["FN:","FN:",null,null,null,null,null,0]
["N:","N:",null,null,null,null,null,0]
["TEL;mobile:","TEL;","mobile:",null,null,null,null,0]
["FN:","FN:",null,null,null,null,null,0]
["NOTE:","NOTE:",null,null,null,null,null,0]
["END:","END:",null,null,null,null,null,0]
["N:","N:",null,null,null,null,null,0]
["EMAIL;other;pref:","EMAIL;","other;","pref:",null,null,null,0]
["END:","END:",null,null,null,null,null,0]
["ADR;work:","ADR;","work:",null,null,null,null,0]
["FN:","FN:",null,null,null,null,null,0]
["END:","END:",null,null,null,null,null,0]
["TITLE:","TITLE:",null,null,null,null,null,0]
["EMAIL;other;pref:","EMAIL;","other;","pref:",null,null,null,0]
["BEGIN:","BEGIN:",null,null,null,null,null,0]
["BEGIN:","BEGIN:",null,null,null,null,null,0]
["EMAIL;other;pref:","EMAIL;","other;","pref:",null,null,null,0]
["TITLE:","TITLE:",null,null,null,null,null,0]
["END:","END:",null,null,null,null,null,0]
["FN:","FN:",null,null,null,null,null,0]
["ORG:","ORG:",null,null,null,null,null,0]
[null,null,null,null,null,null,null,0]
["BEGIN:","BEGIN:",null,null,null,null,null,0]
["TEL;mobile:","TEL;","mobile:",null,null,null,null,0]
["FN:","FN:",null,null,null,null,null,0]
["BEGIN:","BEGIN:",null,null,null,null,null,0]
["EMAIL;other;pref:","EMAIL;","other;","pref:",null,null,null,0]
["FN:","FN:",null,null,null,null,null,0]
["TITLE:","TITLE:",null,null,null,null,null,0]
[null,null,null,null,null,null,null,0]
[null,null,null,null,null,null,null,0]
["TITLE:","TITLE:",null,null,null,null,null,0]
["NOTE:","NOTE:",null,null,null,null,null,0]
["EMAIL;other;pref:","EMAIL;","other;","pref:",null,null,null,0]
["EMAIL;other;pref:","EMAIL;","other;","pref:",null,null,null,0]
["BEGIN:","BEGIN:",null,null,null,null,null,0]
["TEL;work:","TEL;","work:",null,null,null,null,0]
["END:","END:",null,null,null,null,null,0]
["BEGIN:","BEGIN:",null,null,null,null,null,0]
["VERSION:","VERSION:",null,null,null,null,null,0]
["END:","END:",null,null,null,null,null,0]
["EMAIL;other;pref:","EMAIL;","other;","pref:",null,null,null,0]
["FN:","FN:",null,null,null,null,null,0]
[null,null,null,null,null,null,null,0]
["TITLE:","TITLE:",null,null,null,null,null,0]
["BEGIN:","BEGIN:",null,null,null,null,null,0]
["VERSION:","VERSION:",null,null,null,null,null,0]
["TEL;mobile:","TEL;","mobile:",null,null,null,null,0]
[null,null,null,null,null,null,null,0]
["FN:","FN:",null,null,null,null,null,0]
["FN:","FN:",null,null,null,null,null,0]
["N:","N:",null,null,null,null,null,0]
["VERSION:","VERSION:",null,null,null,null,null,0]
["TITLE:","TITLE:",null,null,null,null,null,0]
["BEGIN:","BEGIN:",null,null,null,null,null,0]
["TEL;mobile:","TEL;","mobile:",null,null,null,null,0]
["TEL;work:","TEL;","work:",null,null,null,null,0]
["BEGIN:","BEGIN:",null,null,null,null,null,0]
["ADR;work:","ADR;","work:",null,null,null,null,0]
["TEL;mobile:","TEL;","mobile:",null,null,null,null,0]
["TITLE:","TITLE:",null,null,null,null,null,0]
["FN:","FN:",null,null,null,null,null,0]
["TEL;mobile:","TEL;","mobile:",null,null,null,null,0]
["TITLE:","TITLE:",null,null,null,null,null,0]
["ADR;work:","ADR;","work:",null,null,null,null,0]
["FN:","FN:",null,null,null,null,null,0]
["ADR;work:","ADR;","work:",null,null,null,null,0]
["N:","N:",null,null,null,null,null,0]
["ORG:","ORG:",null,null,null,null,null,0]
["ORG:","ORG:",null,null,null,null,null,0]
["EMAIL;other;pref:","EMAIL;","other;","pref:",null,null,null,0]
["END:","END:",null,null,null,null,null,0]
["TEL;home:","TEL;","home:",null,null,null,null,0]
["BEGIN:","BEGIN:",null,null,null,null,null,0]
["N:","N:",null,null,null,null,null,0]
["N:","N:",null,null,null,null,null,0]
["ORG:","ORG:",null,null,null,null,null,0]
["END:","END:",null,null,null,null,null,0]
["VERSION:","VERSION:",null,null,null,null,null,0]
["ORG:","ORG:",null,null,null,null,null,0]
["TITLE:","TITLE:",null,null,null,null,null,0]
["TITLE:","TITLE:",null,null,null,null,null,0]
["TEL;mobile:","TEL;","mobile:",null,null,null,null,0]
["N:","N:",null,null,null,null,null,0]
["N:","N:",null,null,null,null,null,0]
["ADR;work:","ADR;","work:",null,null,null,null,0]
["EMAIL;other;pref:","EMAIL;","other;","pref:",null,null,null,0]
[null,null,null,null,null,null,null,0]
["TITLE:","TITLE:",null,null,null,null,null,0]
["BEGIN:","BEGIN:",null,null,null,null,null,0]
["TITLE:","TITLE:",null,null,null,null,null,0]
["FN:","FN:",null,null,null,null,null,0]
["END:","END:",null,null,null,null,null,0]
["VERSION:","VERSION:",null,null,null,null,null,0]
["ADR;work:","ADR;","work:",null,null,null,null,0]
["TITLE:","TITLE:",null,null,null,null,null,0]
["BEGIN:","BEGIN:",null,null,null,null,null,0]
["N:","N:",null,null,null,null,null,0]
["N:","N:",null,null,null,null,null,0]
["ORG:","ORG:",null,null,null,null,null,0]
[null,null,null,null,null,null,null,0]
["TEL;work:","TEL;","work:",null,null,null,null,0]
["VERSION:","VERSION:",null,null,null,null,null,0]
["TITLE:","TITLE:",null,null,null,null,null,0]
["VERSION:","VERSION:",null,null,null,null,null,0]
["TEL;mobile:","TEL;","mobile:",null,null,null,null,0]
["EMAIL;other;pref:","EMAIL;","other;","pref:",null,null,null,0]
["N:","N:",null,null,null,null,null,0]
["NOTE:","NOTE:",null,null,null,null,null,0]
["END:","END:",null,null,null,null,null,0]
["N:","N:",null,null,null,null,null,0]
["EMAIL;other;pref:","EMAIL;","other;","pref:",null,null,null,0]
["FN:","FN:",null,null,null,null,null,0]
[null,null,null,null,null,null,null,0]
["TEL;work:","TEL;","work:",null,null,null,null,0]
["END:","END:",null,null,null,null,null,0]
["N:","N:",null,null,null,null,null,0]
["TITLE:","TITLE:",null,null,null,null,null,0]
["BEGIN:","BEGIN:",null,null,null,null,null,0]
["FN:","FN:",null,null,null,null,null,0]
["FN:","FN:",null,null,null,null,null,0]
["END:","END:",null,null,null,null,null,0]
["TEL;work:","TEL;","work:",null,null,null,null,0]
["END:","END:",null,null,null,null,null,0]
[null,null,null,null,null,null,null,0]
["VERSION:","VERSION:",null,null,null,null,null,0]
["N:","N:",null,null,null,null,null,0]
["EMAIL;other;pref:","EMAIL;","other;","pref:",null,null,null,0]
["ADR;work:","ADR;","work:",null,null,null,null,0]
["TITLE:","TITLE:",null,null,null,null,null,0]
["N:","N:",null,null,null,null,null,0]
["ORG:","ORG:",null,null,null,null,null,0]
["EMAIL;other;pref:","EMAIL;","other;","pref:",null,null,null,0]
["EMAIL;other;pref:","EMAIL;","other;","pref:",null,null,null,0]
[null,null,null,null,null,null,null,0]
["END:","END:",null,null,null,null,null,0]
["N:","N:",null,null,null,null,null,0]
["VERSION:","VERSION:",null,null,null,null,null,0]
["TITLE:","TITLE:",null,null,null,null,null,0]
["FN:","FN:",null,null,null,null,null,0]
["ADR;work:","ADR;","work:",null,null,null,null,0]
["ADR;work:","ADR;","work:",null,null,null,null,0]
["ORG:","ORG:",null,null,null,null,null,0]
["BEGIN:","BEGIN:",null,null,null,null,null,0]
["END:","END:",null,null,null,null,null,0]
["VERSION:","VERSION:",null,null,null,null,null,0]
["N:","N:",null,null,null,null,null,0]
["END:","END:",null,null,null,null,null,0]
["FN:","FN:",null,null,null,null,null,0]
["BEGIN:","BEGIN:",null,null,null,null,null,0]
["N:","N:",null,null,null,null,null,0]
[null,null,null,null,null,null,null,0]
["FN:","FN:",null,null,null,null,null,0]
["END:","END:",null,null,null,null,null,0]
["ADR;work:","ADR;","work:",null,null,null,null,0]
["TEL;work:","TEL;","work:",null,null,null,null,0]
["TEL;work_fax:","TEL;","work_fax:",null,null,null,null,0]
["BEGIN:","BEGIN:",null,null,null,null,null,0]
["EMAIL;other:","EMAIL;","other:",null,null,null,null,0]
["FN:","FN:",null,null,null,null,null,0]
["TITLE:","TITLE:",null,null,null,null,null,0]
["ORG:","ORG:",null,null,null,null,null,0]
[null,null,null,null,null,null,null,0]
["FN:","FN:",null,null,null,null,null,0]
["END:","END:",null,null,null,null,null,0]
["ADR;work:","ADR;","work:",null,null,null,null,0]
["URL:","URL:",null,null,null,null,null,0]
["N:","N:",null,null,null,null,null,0]
["N:","N:",null,null,null,null,null,0]
["ORG:","ORG:",null,null,null,null,null,0]
["N:","N:",null,null,null,null,null,0]
["VERSION:","VERSION:",null,null,null,null,null,0]
["TEL;mobile:","TEL;","mobile:",null,null,null,null,0]
["EMAIL;other;pref:","EMAIL;","other;","pref:",null,null,null,0]
["BEGIN:","BEGIN:",null,null,null,null,null,0]
["END:","END:",null,null,null,null,null,0]
[null,null,null,null,null,null,null,0]
["TITLE:","TITLE:",null,null,null,null,null,0]
["END:","END:",null,null,null,null,null,0]
["BEGIN:","BEGIN:",null,null,null,null,null,0]
["END:","END:",null,null,null,null,null,0]
["VERSION:","VERSION:",null,null,null,null,null,0]
["END:","END:",null,null,null,null,null,0]
["BEGIN:","BEGIN:",null,null,null,null,null,0]
["FN:","FN:",null,null,null,null,null,0]
["BEGIN:","BEGIN:",null,null,null,null,null,0]
["TEL;work:","TEL;","work:",null,null,null,null,0]
["VERSION:","VERSION:",null,null,null,null,null,0]
["TEL;pager:","TEL;","pager:",null,null,null,null,0]
["TITLE:","TITLE:",null,null,null,null,null,0]
["BEGIN:","BEGIN:",null,null,null,null,null,0]
["END:","END:",null,null,null,null,null,0]
["N:","N:",null,null,null,null,null,0]
["VERSION:","VERSION:",null,null,null,null,null,0]
["EMAIL;other:","EMAIL;","other:",null,null,null,null,0]
["TEL;work:","TEL;","work:",null,null,null,null,0]
["FN:","FN:",null,null,null,null,null,0]
["TEL;work:","TEL;","work:",null,null,null,null,0]
["TEL;work:","TEL;","work:",null,null,null,null,0]
["ORG:","ORG:",null,null,null,null,null,0]
["EMAIL;other;pref:","EMAIL;","other;","pref:",null,null,null,0]
["EMAIL;other;pref:","EMAIL;","other;","pref:",null,null,null,0]
["EMAIL;other:","EMAIL;","other:",null,null,null,null,0]
["N:","N:",null,null,null,null,null,0]
["FN:","FN:",null,null,null,null,null,0]
["N:","N:",null,null,null,null,null,0]
["N:","N:",null,null,null,null,null,0]
["TEL;mobile:","TEL;","mobile:",null,null,null,null,0]
["ADR;work:","ADR;","work:",null,null,null,null,0]
["N:","N:",null,null,null,null,null,0]
["END:","END:",null,null,null,null,null,0]
["TEL;work:","TEL;","work:",null,null,null,null,0]
["BEGIN:","BEGIN:",null,null,null,null,null,0]
["ORG:","ORG:",null,null,null,null,null,0]
["N:","N:",null,null,null,null,null,0]
["BEGIN:","BEGIN:",null,null,null,null,null,0]
[null,null,null,null,null,null,null,0]
["END:","END:",null,null,null,null,null,0]
["BEGIN:","BEGIN:",null,null,null,null,null,0]
["END:","END:",null,null,null,null,null,0]
["TITLE:","TITLE:",null,null,null,null,null,0]
["ADR;work:","ADR;","work:",null,null,null,null,0]
["END:","END:",null,null,null,null,null,0]
["ORG:","ORG:",null,null,null,null,null,0]
["TEL;work:","TEL;","work:",null,null,null,null,0]
["EMAIL;other;pref:","EMAIL;","other;","pref:",null,null,null,0]
["VERSION:","VERSION:",null,null,null,null,null,0]
["EMAIL;other;pref:","EMAIL;","other;","pref:",null,null,null,0]
["N:","N:",null,null,null,null,null,0]
["EMAIL;other;pref:","EMAIL;","other;","pref:",null,null,null,0]
["TITLE:","TITLE:",null,null,null,null,null,0]
["BEGIN:","BEGIN:",null,null,null,null,null,0]
["EMAIL;other:","EMAIL;","other:",null,null,null,null,0]
["EMAIL;other;pref:","EMAIL;","other;","pref:",null,null,null,0]
["TEL;work:","TEL;","work:",null,null,null,null,0]
["TEL;work:","TEL;","work:",null,null,null,null,0]
["FN:","FN:",null,null,null,null,null,0]
["BEGIN:","BEGIN:",null,null,null,null,null,0]
["END:","END:",null,null,null,null,null,0]
["FN:","FN:",null,null,null,null,null,0]
["VERSION:","VERSION:",null,null,null,null,null,0]
["FN:","FN:",null,null,null,null,null,0]
["FN:","FN:",null,null,null,null,null,0]
["FN:","FN:",null,null,null,null,null,0]
["N:","N:",null,null,null,null,null,0]
[null,null,null,null,null,null,null,0]
["BEGIN:","BEGIN:",null,null,null,null,null,0]
["END:","END:",null,null,null,null,null,0]
["BEGIN:","BEGIN:",null,null,null,null,null,0]
["END:","END:",null,null,null,null,null,0]
["TITLE:","TITLE:",null,null,null,null,null,0]
["N:","N:",null,null,null,null,null,0]
[null,null,null,null,null,null,null,0]
["ADR;work:","ADR;","work:",null,null,null,null,0]
["VERSION:","VERSION:",null,null,null,null,null,0]
["TEL;work:","TEL;","work:",null,null,null,null,0]
["VERSION:","VERSION:",null,null,null,null,null,0]
["FN:","FN:",null,null,null,null,null,0]
["EMAIL;other;pref:","EMAIL;","other;","pref:",null,null,null,0]
["END:","END:",null,null,null,null,null,0]
[null,null,null,null,null,null,null,0]
["TEL;mobile:","TEL;","mobile:",null,null,null,null,0]
["BEGIN:","BEGIN:",null,null,null,null,null,0]
["TITLE:","TITLE:",null,null,null,null,null,0]
["EMAIL;other:","EMAIL;","other:",null,null,null,null,0]
["TITLE:","TITLE:",null,null,null,null,null,0]
["ADR;work:","ADR;","work:",null,null,null,null,0]
["FN:","FN:",null,null,null,null,null,0]
["EMAIL;other;pref:","EMAIL;","other;","pref:",null,null,null,0]
["END:","END:",null,null,null,null,null,0]
["END:","END:",null,null,null,null,null,0]
["VERSION:","VERSION:",null,null,null,null,null,0]
["TEL;mobile:","TEL;","mobile:",null,null,null,null,0]
["VERSION:","VERSION:",null,null,null,null,null,0]
["BEGIN:","BEGIN:",null,null,null,null,null,0]
["EMAIL;other;pref:","EMAIL;","other;","pref:",null,null,null,0]
["TEL;work:","TEL;","work:",null,null,null,null,0]
["TEL;mobile:","TEL;","mobile:",null,null,null,null,0]
["EMAIL;other;pref:","EMAIL;","other;","pref:",null,null,null,0]
["N:","N:",null,null,null,null,null,0]
["ORG:","ORG:",null,null,null,null,null,0]
["URL:","URL:",null,null,null,null,null,0]
["END:","END:",null,null,null,null,null,0]
["END:","END:",null,null,null,null,null,0]
["VERSION:","VERSION:",null,null,null,null,null,0]
["FN:","FN:",null,null,null,null,null,0]
["TEL;work:","TEL;","work:",null,null,null,null,0]
["FN:","FN:",null,null,null,null,null,0]
["N:","N:",null,null,null,null,null,0]
["VERSION:","VERSION:",null,null,null,null,null,0]
["TEL;work:","TEL;","work:",null,null,null,null,0]
["BEGIN:","BEGIN:",null,null,null,null,null,0]
["TITLE:","TITLE:",null,null,null,null,null,0]
["END:","END:",null,null,null,null,null,0]
["TEL;mobile:","TEL;","mobile:",null,null,null,null,0]
["ORG:","ORG:",null,null,null,null,null,0]
["BEGIN:","BEGIN:",null,null,null,null,null,0]
["ADR;work:","ADR;","work:",null,null,null,null,0]
["VERSION:","VERSION:",null,null,null,null,null,0]
["EMAIL;other;pref:","EMAIL;","other;","pref:",null,null,null,0]
["FN:","FN:",null,null,null,null,null,0]
["EMAIL;other;pref:","EMAIL;","other;","pref:",null,null,null,0]
[null,null,null,null,null,null,null,0]
["BEGIN:","BEGIN:",null,null,null,null,null,0]
["TEL;work:","TEL;","work:",null,null,null,null,0]
["EMAIL;other:","EMAIL;","other:",null,null,null,null,0]
["TITLE:","TITLE:",null,null,null,null,null,0]
["N:","N:",null,null,null,null,null,0]
["BEGIN:","BEGIN:",null,null,null,null,null,0]
["N:","N:",null,null,null,null,null,0]
["FN:","FN:",null,null,null,null,null,0]
[null,null,null,null,null,null,null,0]
["VERSION:","VERSION:",null,null,null,null,null,0]
["NOTE:","NOTE:",null,null,null,null,null,0]
["TITLE:","TITLE:",null,null,null,null,null,0]
[null,null,null,null,null,null,null,0]
["BEGIN:","BEGIN:",null,null,null,null,null,0]
["END:","END:",null,null,null,null,null,0]
["END:","END:",null,null,null,null,null,0]
["ORG:","ORG:",null,null,null,null,null,0]
["FN:","FN:",null,null,null,null,null,0]
["END:","END:",null,null,null,null,null,0]
["FN:","FN:",null,null,null,null,null,0]
["TITLE:","TITLE:",null,null,null,null,null,0]
[null,null,null,null,null,null,null,0]
["FN:","FN:",null,null,null,null,null,0]
["N:","N:",null,null,null,null,null,0]
["EMAIL;other;pref:","EMAIL;","other;","pref:",null,null,null,0]
["ADR;work:","ADR;","work:",null,null,null,null,0]
["ORG:","ORG:",null,null,null,null,null,0]
["ADR;work:","ADR;","work:",null,null,null,null,0]
["FN:","FN:",null,null,null,null,null,0]
["TITLE:","TITLE:",null,null,null,null,null,0]
["FN:","FN:",null,null,null,null,null,0]
["ADR;work:","ADR;","work:",null,null,null,null,0]
["VERSION:","VERSION:",null,null,null,null,null,0]
["TITLE:","TITLE:",null,null,null,null,null,0]
["TEL;work:","TEL;","work:",null,null,null,null,0]
["N:","N:",null,null,null,null,null,0]
["TEL;mobile:","TEL;","mobile:",null,null,null,null,0]
["BEGIN:","BEGIN:",null,null,null,null,null,0]
["FN:","FN:",null,null,null,null,null,0]
["END:","END:",null,null,null,null,null,0]
["ORG:","ORG:",null,null,null,null,null,0]
["EMAIL;other:","EMAIL;","other:",null,null,null,null,0]
["BEGIN:","BEGIN:",null,null,null,null,null,0]
["TEL;work:","TEL;","work:",null,null,null,null,0]
["BEGIN:","BEGIN:",null,null,null,null,null,0]
["FN:","FN:",null,null,null,null,null,0]
["VERSION:","VERSION:",null,null,null,null,null,0]
[null,null,null,null,null,null,null,0]
["VERSION:","VERSION:",null,null,null,null,null,0]
["END:","END:",null,null,null,null,null,0]
["VERSION:","VERSION:",null,null,null,null,null,0]
["EMAIL;other;pref:","EMAIL;","other;","pref:",null,null,null,0]
["ADR;work:","ADR;","work:",null,null,null,null,0]
["TEL;work:","TEL;","work:",null,null,null,null,0]
["FN:","FN:",null,null,null,null,null,0]
["FN:","FN:",null,null,null,null,null,0]
["BEGIN:","BEGIN:",null,null,null,null,null,0]
["N:","N:",null,null,null,null,null,0]
["FN:","FN:",null,null,null,null,null,0]
["TEL;home:","TEL;","home:",null,null,null,null,0]
["BEGIN:","BEGIN:",null,null,null,null,null,0]
["END:","END:",null,null,null,null,null,0]
["N:","N:",null,null,null,null,null,0]
["ORG:","ORG:",null,null,null,null,null,0]
["FN:","FN:",null,null,null,null,null,0]
["TITLE:","TITLE:",null,null,null,null,null,0]
["TEL;mobile:","TEL;","mobile:",null,null,null,null,0]
["ORG:","ORG:",null,null,null,null,null,0]
[null,null,null,null,null,null,null,0]
["N:","N:",null,null,null,null,null,0]
["ADR;work:","ADR;","work:",null,null,null,null,0]
["ORG:","ORG:",null,null,null,null,null,0]
["TEL;mobile:","TEL;","mobile:",null,null,null,null,0]
["VERSION:","VERSION:",null,null,null,null,null,0]
["FN:","FN:",null,null,null,null,null,0]
["EMAIL;other;pref:","EMAIL;","other;","pref:",null,null,null,0]
["FN:","FN:",null,null,null,null,null,0]
["EMAIL;other;pref:","EMAIL;","other;","pref:",null,null,null,0]
["VERSION:","VERSION:",null,null,null,null,null,0]
["FN:","FN:",null,null,null,null,null,0]
["EMAIL;other:","EMAIL;","other:",null,null,null,null,0]
["FN:","FN:",null,null,null,null,null,0]
[null,null,null,null,null,null,null,0]
[null,null,null,null,null,null,null,0]
["ORG:","ORG:",null,null,null,null,null,0]
["EMAIL;other;pref:","EMAIL;","other;","pref:",null,null,null,0]
["END:","END:",null,null,null,null,null,0]
["VERSION:","VERSION:",null,null,null,null,null,0]
["N:","N:",null,null,null,null,null,0]
["FN:","FN:",null,null,null,null,null,0]
["TEL;work:","TEL;","work:",null,null,null,null,0]
["END:","END:",null,null,null,null,null,0]
["BEGIN:","BEGIN:",null,null,null,null,null,0]
["TITLE:","TITLE:",null,null,null,null,null,0]
["VERSION:","VERSION:",null,null,null,null,null,0]
["FN:","FN:",null,null,null,null,null,0]
["BEGIN:","BEGIN:",null,null,null,null,null,0]
["VERSION:","VERSION:",null,null,null,null,null,0]
["END:","END:",null,null,null,null,null,0]
["ORG:","ORG:",null,null,null,null,null,0]
["BEGIN:","BEGIN:",null,null,null,null,null,0]
["TEL;mobile:","TEL;","mobile:",null,null,null,null,0]
["BEGIN:","BEGIN:",null,null,null,null,null,0]
["VERSION:","VERSION:",null,null,null,null,null,0]
["ORG:","ORG:",null,null,null,null,null,0]
["EMAIL;other;pref:","EMAIL;","other;","pref:",null,null,null,0]
["N:","N:",null,null,null,null,null,0]
["BEGIN:","BEGIN:",null,null,null,null,null,0]
["TEL;work:","TEL;","work:",null,null,null,null,0]
["N:","N:",null,null,null,null,null,0]
["END:","END:",null,null,null,null,null,0]
["TITLE:","TITLE:",null,null,null,null,null,0]
["END:","END:",null,null,null,null,null,0]
["TEL;work:","TEL;","work:",null,null,null,null,0]
["TITLE:","TITLE:",null,null,null,null,null,0]
["ORG:","ORG:",null,null,null,null,null,0]
["FN:","FN:",null,null,null,null,null,0]
["TEL;work:","TEL;","work:",null,null,null,null,0]
["BEGIN:","BEGIN:",null,null,null,null,null,0]
["N:","N:",null,null,null,null,null,0]
["EMAIL;other;pref:","EMAIL;","other;","pref:",null,null,null,0]
["END:","END:",null,null,null,null,null,0]
["VERSION:","VERSION:",null,null,null,null,null,0]
["TITLE:","TITLE:",null,null,null,null,null,0]
["ADR;work:","ADR;","work:",null,null,null,null,0]
["TITLE:","TITLE:",null,null,null,null,null,0]
["BEGIN:","BEGIN:",null,null,null,null,null,0]
["BEGIN:","BEGIN:",null,null,null,null,null,0]
["END:","END:",null,null,null,null,null,0]
[null,null,null,null,null,null,null,0]
["BEGIN:","BEGIN:",null,null,null,null,null,0]
["N:","N:",null,null,null,null,null,0]
["VERSION:","VERSION:",null,null,null,null,null,0]
["ORG:","ORG:",null,null,null,null,null,0]
["N:","N:",null,null,null,null,null,0]
["VERSION:","VERSION:",null,null,null,null,null,0]
["TEL;home:","TEL;","home:",null,null,null,null,0]
["N:","N:",null,null,null,null,null,0]
["FN:","FN:",null,null,null,null,null,0]
["VERSION:","VERSION:",null,null,null,null,null,0]
["EMAIL;other;pref:","EMAIL;","other;","pref:",null,null,null,0]
["FN:","FN:",null,null,null,null,null,0]
["BEGIN:","BEGIN:",null,null,null,null,null,0]
["VERSION:","VERSION:",null,null,null,null,null,0]
["BEGIN:","BEGIN:",null,null,null,null,null,0]
["VERSION:","VERSION:",null,null,null,null,null,0]
["FN:","FN:",null,null,null,null,null,0]
["FN:","FN:",null,null,null,null,null,0]
["END:","END:",null,null,null,null,null,0]
["VERSION:","VERSION:",null,null,null,null,null,0]
["FN:","FN:",null,null,null,null,null,0]
["N:","N:",null,null,null,null,null,0]
["ORG:","ORG:",null,null,null,null,null,0]
[null,null,null,null,null,null,null,0]
["BEGIN:","BEGIN:",null,null,null,null,null,0]
["VERSION:","VERSION:",null,null,null,null,null,0]
["EMAIL;other;pref:","EMAIL;","other;","pref:",null,null,null,0]
["END:","END:",null,null,null,null,null,0]
["ORG:","ORG:",null,null,null,null,null,0]
["N:","N:",null,null,null,null,null,0]
["BEGIN:","BEGIN:",null,null,null,null,null,0]
["BEGIN:","BEGIN:",null,null,null,null,null,0]
["ORG:","ORG:",null,null,null,null,null,0]
["N:","N:",null,null,null,null,null,0]
["TITLE:","TITLE:",null,null,null,null,null,0]
["FN:","FN:",null,null,null,null,null,0]
["FN:","FN:",null,null,null,null,null,0]
["EMAIL;other;pref:","EMAIL;","other;","pref:",null,null,null,0]
["FN:","FN:",null,null,null,null,null,0]
["TEL;work:","TEL;","work:",null,null,null,null,0]
["EMAIL;other;pref:","EMAIL;","other;","pref:",null,null,null,0]
["N:","N:",null,null,null,null,null,0]
["TITLE:","TITLE:",null,null,null,null,null,0]
["ADR;work:","ADR;","work:",null,null,null,null,0]
["FN:","FN:",null,null,null,null,null,0]
["END:","END:",null,null,null,null,null,0]
[null,null,null,null,null,null,null,0]
["N:","N:",null,null,null,null,null,0]
["BEGIN:","BEGIN:",null,null,null,null,null,0]
["VERSION:","VERSION:",null,null,null,null,null,0]
["VERSION:","VERSION:",null,null,null,null,null,0]
["ADR;work:","ADR;","work:",null,null,null,null,0]
["ADR;work:","ADR;","work:",null,null,null,null,0]
["BEGIN:","BEGIN:",null,null,null,null,null,0]
["TEL;mobile:","TEL;","mobile:",null,null,null,null,0]
["TEL;work:","TEL;","work:",null,null,null,null,0]
["EMAIL;other;pref:","EMAIL;","other;","pref:",null,null,null,0]
["ADR;work:","ADR;","work:",null,null,null,null,0]
["N:","N:",null,null,null,null,null,0]
["TEL;work:","TEL;","work:",null,null,null,null,0]
["VERSION:","VERSION:",null,null,null,null,null,0]
["ADR;work:","ADR;","work:",null,null,null,null,0]
["VERSION:","VERSION:",null,null,null,null,null,0]
["FN:","FN:",null,null,null,null,null,0]
["ADR;work:","ADR;","work:",null,null,null,null,0]
["ORG:","ORG:",null,null,null,null,null,0]
[null,null,null,null,null,null,null,0]
["END:","END:",null,null,null,null,null,0]
["VERSION:","VERSION:",null,null,null,null,null,0]
["ADR;work:","ADR;","work:",null,null,null,null,0]
["TITLE:","TITLE:",null,null,null,null,null,0]
["FN:","FN:",null,null,null,null,null,0]
["FN:","FN:",null,null,null,null,null,0]
["ADR;work:","ADR;","work:",null,null,null,null,0]
["N:","N:",null,null,null,null,null,0]
["TEL;work:","TEL;","work:",null,null,null,null,0]
["ORG:","ORG:",null,null,null,null,null,0]
["FN:","FN:",null,null,null,null,null,0]
["BEGIN:","BEGIN:",null,null,null,null,null,0]
["URL:","URL:",null,null,null,null,null,0]
["TEL;work:","TEL;","work:",null,null,null,null,0]
["TEL;work:","TEL;","work:",null,null,null,null,0]
["END:","END:",null,null,null,null,null,0]
["FN:","FN:",null,null,null,null,null,0]
["ORG:","ORG:",null,null,null,null,null,0]
["ORG:","ORG:",null,null,null,null,null,0]
["FN:","FN:",null,null,null,null,null,0]
["TITLE:","TITLE:",null,null,null,null,null,0]
["FN:","FN:",null,null,null,null,null,0]
["TITLE:","TITLE:",null,null,null,null,null,0]
["BEGIN:","BEGIN:",null,null,null,null,null,0]
["N:","N:",null,null,null,null,null,0]
[null,null,null,null,null,null,null,0]
["VERSION:","VERSION:",null,null,null,null,null,0]
["TEL;work:","TEL;","work:",null,null,null,null,0]
["N:","N:",null,null,null,null,null,0]
["NOTE:","NOTE:",null,null,null,null,null,0]
["TITLE:","TITLE:",null,null,null,null,null,0]
["BEGIN:","BEGIN:",null,null,null,null,null,0]
["END:","END:",null,null,null,null,null,0]
["VERSION:","VERSION:",null,null,null,null,null,0]
["VERSION:","VERSION:",null,null,null,null,null,0]
["TITLE:","TITLE:",null,null,null,null,null,0]
["N:","N:",null,null,null,null,null,0]
["END:","END:",null,null,null,null,null,0]
["TEL;mobile:","TEL;","mobile:",null,null,null,null,0]
["BEGIN:","BEGIN:",null,null,null,null,null,0]
["FN:","FN:",null,null,null,null,null,0]
["TEL;mobile:","TEL;","mobile:",null,null,null,null,0]
["N:","N:",null,null,null,null,null,0]
[null,null,null,null,null,null,null,0]
["BEGIN:","BEGIN:",null,null,null,null,null,0]
["TITLE:","TITLE:",null,null,null,null,null,0]
["TEL;work:","TEL;","work:",null,null,null,null,0]
[null,null,null,null,null,null,null,0]
["END:","END:",null,null,null,null,null,0]
["ORG:","ORG:",null,null,null,null,null,0]
["N:","N:",null,null,null,null,null,0]
["BEGIN:","BEGIN:",null,null,null,null,null,0]
["EMAIL;other:","EMAIL;","other:",null,null,null,null,0]
[null,null,null,null,null,null,null,0]
[null,null,null,null,null,null,null,0]
["VERSION:","VERSION:",null,null,null,null,null,0]
["TEL;work:","TEL;","work:",null,null,null,null,0]
["N:","N:",null,null,null,null,null,0]
["TEL;work:","TEL;","work:",null,null,null,null,0]
["FN:","FN:",null,null,null,null,null,0]
["TITLE:","TITLE:",null,null,null,null,null,0]
["N:","N:",null,null,null,null,null,0]
[null,null,null,null,null,null,null,0]
["TEL;mobile:","TEL;","mobile:",null,null,null,null,0]
[null,null,null,null,null,null,null,0]
["ADR;work:","ADR;","work:",null,null,null,null,0]
["N:","N:",null,null,null,null,null,0]
["END:","END:",null,null,null,null,null,0]
["BEGIN:","BEGIN:",null,null,null,null,null,0]
["FN:","FN:",null,null,null,null,null,0]
["TITLE:","TITLE:",null,null,null,null,null,0]
["EMAIL;other;pref:","EMAIL;","other;","pref:",null,null,null,0]
["END:","END:",null,null,null,null,null,0]
["FN:","FN:",null,null,null,null,null,0]
["N:","N:",null,null,null,null,null,0]
["FN:","FN:",null,null,null,null,null,0]
["N:","N:",null,null,null,null,null,0]
["TEL;mobile:","TEL;","mobile:",null,null,null,null,0]
[null,null,null,null,null,null,null,0]
["VERSION:","VERSION:",null,null,null,null,null,0]
["VERSION:","VERSION:",null,null,null,null,null,0]
["BEGIN:","BEGIN:",null,null,null,null,null,0]
["TEL;home:","TEL;","home:",null,null,null,null,0]
["EMAIL;other;pref:","EMAIL;","other;","pref:",null,null,null,0]
["TEL;mobile:","TEL;","mobile:",null,null,null,null,0]
["N:","N:",null,null,null,null,null,0]
["TEL;work:","TEL;","work:",null,null,null,null,0]
["VERSION:","VERSION:",null,null,null,null,null,0]
["ORG:","ORG:",null,null,null,null,null,0]
["BEGIN:","BEGIN:",null,null,null,null,null,0]
["ADR;work:","ADR;","work:",null,null,null,null,0]
["TEL;mobile:","TEL;","mobile:",null,null,null,null,0]
["N:","N:",null,null,null,null,null,0]
["VERSION:","VERSION:",null,null,null,null,null,0]
["TEL;mobile:","TEL;","mobile:",null,null,null,null,0]
["ORG:","ORG:",null,null,null,null,null,0]
["N:","N:",null,null,null,null,null,0]
["TEL;work:","TEL;","work:",null,null,null,null,0]
["EMAIL;other:","EMAIL;","other:",null,null,null,null,0]
["FN:","FN:",null,null,null,null,null,0]
["END:","END:",null,null,null,null,null,0]
["N:","N:",null,null,null,null,null,0]
["URL:","URL:",null,null,null,null,null,0]
["TITLE:","TITLE:",null,null,null,null,null,0]
[null,null,null,null,null,null,null,0]
["TEL;work:","TEL;","work:",null,null,null,null,0]
["TITLE:","TITLE:",null,null,null,null,null,0]
["BEGIN:","BEGIN:",null,null,null,null,null,0]
["N:","N:",null,null,null,null,null,0]
["VERSION:","VERSION:",null,null,null,null,null,0]
["END:","END:",null,null,null,null,null,0]
["FN:","FN:",null,null,null,null,null,0]
["EMAIL;other:","EMAIL;","other:",null,null,null,null,0]
["VERSION:","VERSION:",null,null,null,null,null,0]
["TITLE:","TITLE:",null,null,null,null,null,0]
["ADR;work:","ADR;","work:",null,null,null,null,0]
["TEL;work:","TEL;","work:",null,null,null,null,0]
["EMAIL;other:","EMAIL;","other:",null,null,null,null,0]
["TEL;mobile:","TEL;","mobile:",null,null,null,null,0]
["ORG:","ORG:",null,null,null,null,null,0]
[null,null,null,null,null,null,null,0]
["TEL;work:","TEL;","work:",null,null,null,null,0]
["EMAIL;other;pref:","EMAIL;","other;","pref:",null,null,null,0]
["EMAIL;other:","EMAIL;","other:",null,null,null,null,0]
[null,null,null,null,null,null,null,0]
["END:","END:",null,null,null,null,null,0]
["N:","N:",null,null,null,null,null,0]
["N:","N:",null,null,null,null,null,0]
["VERSION:","VERSION:",null,null,null,null,null,0]
["BEGIN:","BEGIN:",null,null,null,null,null,0]
["TITLE:","TITLE:",null,null,null,null,null,0]
["FN:","FN:",null,null,null,null,null,0]
["N:","N:",null,null,null,null,null,0]
["ADR;work:","ADR;","work:",null,null,null,null,0]
["VERSION:","VERSION:",null,null,null,null,null,0]
["URL:","URL:",null,null,null,null,null,0]
["N:","N:",null,null,null,null,null,0]
["ORG:","ORG:",null,null,null,null,null,0]
[null,null,null,null,null,null,null,0]
["END:","END:",null,null,null,null,null,0]
["N:","N:",null,null,null,null,null,0]
["BEGIN:","BEGIN:",null,null,null,null,null,0]
["N:","N:",null,null,null,null,null,0]
["TITLE:","TITLE:",null,null,null,null,null,0]
["EMAIL;other;pref:","EMAIL;","other;","pref:",null,null,null,0]
["VERSION:","VERSION:",null,null,null,null,null,0]
["ORG:","ORG:",null,null,null,null,null,0]
["N:","N:",null,null,null,null,null,0]
["ADR;work:","ADR;","work:",null,null,null,null,0]
["BEGIN:","BEGIN:",null,null,null,null,null,0]
["TEL;mobile:","TEL;","mobile:",null,null,null,null,0]
["FN:","FN:",null,null,null,null,null,0]
["END:","END:",null,null,null,null,null,0]
["TEL;work:","TEL;","work:",null,null,null,null,0]
["VERSION:","VERSION:",null,null,null,null,null,0]
["ORG:","ORG:",null,null,null,null,null,0]
["FN:","FN:",null,null,null,null,null,0]
["TEL;mobile:","TEL;","mobile:",null,null,null,null,0]
["N:","N:",null,null,null,null,null,0]
["TITLE:","TITLE:",null,null,null,null,null,0]
["EMAIL;other;pref:","EMAIL;","other;","pref:",null,null,null,0]
["BEGIN:","BEGIN:",null,null,null,null,null,0]
["VERSION:","VERSION:",null,null,null,null,null,0]
["FN:","FN:",null,null,null,null,null,0]
[null,null,null,null,null,null,null,0]
["EMAIL;other;pref:","EMAIL;","other;","pref:",null,null,null,0]
["N:","N:",null,null,null,null,null,0]
["N:","N:",null,null,null,null,null,0]
["END:","END:",null,null,null,null,null,0]
["TEL;mobile:","TEL;","mobile:",null,null,null,null,0]
["ADR;work:","ADR;","work:",null,null,null,null,0]
["BEGIN:","BEGIN:",null,null,null,null,null,0]
["N:","N:",null,null,null,null,null,0]
["END:","END:",null,null,null,null,null,0]
["EMAIL;other:","EMAIL;","other:",null,null,null,null,0]
["N:","N:",null,null,null,null,null,0]
["VERSION:","VERSION:",null,null,null,null,null,0]
["EMAIL;other:","EMAIL;","other:",null,null,null,null,0]
["TEL;mobile:","TEL;","mobile:",null,null,null,null,0]
["FN:","FN:",null,null,null,null,null,0]
["END:","END:",null,null,null,null,null,0]
["FN:","FN:",null,null,null,null,null,0]
["END:","END:",null,null,null,null,null,0]
["END:","END:",null,null,null,null,null,0]
["ORG:","ORG:",null,null,null,null,null,0]
["N:","N:",null,null,null,null,null,0]
["N:","N:",null,null,null,null,null,0]
["EMAIL;other:","EMAIL;","other:",null,null,null,null,0]
["N:","N:",null,null,null,null,null,0]
["FN:","FN:",null,null,null,null,null,0]
["ADR;work:","ADR;","work:",null,null,null,null,0]
["ADR;work:","ADR;","work:",null,null,null,null,0]
["BEGIN:","BEGIN:",null,null,null,null,null,0]
["END:","END:",null,null,null,null,null,0]
["BEGIN:","BEGIN:",null,null,null,null,null,0]
["EMAIL;other:","EMAIL;","other:",null,null,null,null,0]
["VERSION:","VERSION:",null,null,null,null,null,0]
["N:","N:",null,null,null,null,null,0]
[null,null,null,null,null,null,null,0]
["N:","N:",null,null,null,null,null,0]
["TITLE:","TITLE:",null,null,null,null,null,0]
["END:","END:",null,null,null,null,null,0]
["VERSION:","VERSION:",null,null,null,null,null,0]
["FN:","FN:",null,null,null,null,null,0]
["END:","END:",null,null,null,null,null,0]
[null,null,null,null,null,null,null,0]
["VERSION:","VERSION:",null,null,null,null,null,0]
["NOTE:","NOTE:",null,null,null,null,null,0]
["ADR;work:","ADR;","work:",null,null,null,null,0]
["TEL;other_fax:","TEL;","other_fax:",null,null,null,null,0]
["FN:","FN:",null,null,null,null,null,0]
["END:","END:",null,null,null,null,null,0]
["N:","N:",null,null,null,null,null,0]
["END:","END:",null,null,null,null,null,0]
["BEGIN:","BEGIN:",null,null,null,null,null,0]
["TITLE:","TITLE:",null,null,null,null,null,0]
["VERSION:","VERSION:",null,null,null,null,null,0]
["FN:","FN:",null,null,null,null,null,0]
["END:","END:",null,null,null,null,null,0]
["ORG:","ORG:",null,null,null,null,null,0]
["EMAIL;other;pref:","EMAIL;","other;","pref:",null,null,null,0]
["N:","N:",null,null,null,null,null,0]
["N:","N:",null,null,null,null,null,0]
[null,null,null,null,null,null,null,0]
["END:","END:",null,null,null,null,null,0]
[null,null,null,null,null,null,null,0]
["BEGIN:","BEGIN:",null,null,null,null,null,0]
["N:","N:",null,null,null,null,null,0]
["BEGIN:","BEGIN:",null,null,null,null,null,0]
["N:","N:",null,null,null,null,null,0]
["TEL;mobile:","TEL;","mobile:",null,null,null,null,0]
["BEGIN:","BEGIN:",null,null,null,null,null,0]
["VERSION:","VERSION:",null,null,null,null,null,0]
["FN:","FN:",null,null,null,null,null,0]
["BEGIN:","BEGIN:",null,null,null,null,null,0]
[null,null,null,null,null,null,null,0]
["EMAIL;other;pref:","EMAIL;","other;","pref:",null,null,null,0]
["ADR;work:","ADR;","work:",null,null,null,null,0]
["TITLE:","TITLE:",null,null,null,null,null,0]
["VERSION:","VERSION:",null,null,null,null,null,0]
["TITLE:","TITLE:",null,null,null,null,null,0]
["N:","N:",null,null,null,null,null,0]
["N:","N:",null,null,null,null,null,0]
["EMAIL;other;pref:","EMAIL;","other;","pref:",null,null,null,0]
["FN:","FN:",null,null,null,null,null,0]
["TITLE:","TITLE:",null,null,null,null,null,0]
["NOTE:","NOTE:",null,null,null,null,null,0]
["VERSION:","VERSION:",null,null,null,null,null,0]
["EMAIL;other:","EMAIL;","other:",null,null,null,null,0]
["VERSION:","VERSION:",null,null,null,null,null,0]
["END:","END:",null,null,null,null,null,0]
["VERSION:","VERSION:",null,null,null,null,null,0]
["END:","END:",null,null,null,null,null,0]
[null,null,null,null,null,null,null,0]
["FN:","FN:",null,null,null,null,null,0]
["N:","N:",null,null,null,null,null,0]
["TEL;work:","TEL;","work:",null,null,null,null,0]
["EMAIL;other;pref:","EMAIL;","other;","pref:",null,null,null,0]
["TEL;work:","TEL;","work:",null,null,null,null,0]
["BEGIN:","BEGIN:",null,null,null,null,null,0]
["FN:","FN:",null,null,null,null,null,0]
["FN:","FN:",null,null,null,null,null,0]
["TITLE:","TITLE:",null,null,null,null,null,0]
["N:","N:",null,null,null,null,null,0]
["EMAIL;other;pref:","EMAIL;","other;","pref:",null,null,null,0]
["VERSION:","VERSION:",null,null,null,null,null,0]
["END:","END:",null,null,null,null,null,0]
["BEGIN:","BEGIN:",null,null,null,null,null,0]
["VERSION:","VERSION:",null,null,null,null,null,0]
["NOTE:","NOTE:",null,null,null,null,null,0]
["TEL;work_fax:","TEL;","work_fax:",null,null,null,null,0]
["ORG:","ORG:",null,null,null,null,null,0]
["FN:","FN:",null,null,null,null,null,0]
["N:","N:",null,null,null,null,null,0]
["N:","N:",null,null,null,null,null,0]
[null,null,null,null,null,null,null,0]
["NOTE:","NOTE:",null,null,null,null,null,0]
["TEL;mobile:","TEL;","mobile:",null,null,null,null,0]
[null,null,null,null,null,null,null,0]
["N:","N:",null,null,null,null,null,0]
["BEGIN:","BEGIN:",null,null,null,null,null,0]
["ADR;work:","ADR;","work:",null,null,null,null,0]
["TITLE:","TITLE:",null,null,null,null,null,0]
["TITLE:","TITLE:",null,null,null,null,null,0]
["ADR;work:","ADR;","work:",null,null,null,null,0]
["N:","N:",null,null,null,null,null,0]
["TITLE:","TITLE:",null,null,null,null,null,0]
["TEL;work:","TEL;","work:",null,null,null,null,0]
["TITLE:","TITLE:",null,null,null,null,null,0]
["END:","END:",null,null,null,null,null,0]
["N:","N:",null,null,null,null,null,0]
["END:","END:",null,null,null,null,null,0]
["ORG:","ORG:",null,null,null,null,null,0]
["EMAIL;other;pref:","EMAIL;","other;","pref:",null,null,null,0]
["ADR;work:","ADR;","work:",null,null,null,null,0]
["TEL;mobile:","TEL;","mobile:",null,null,null,null,0]
[null,null,null,null,null,null,null,0]
["BEGIN:","BEGIN:",null,null,null,null,null,0]
["TEL;work:","TEL;","work:",null,null,null,null,0]
["TITLE:","TITLE:",null,null,null,null,null,0]
["FN:","FN:",null,null,null,null,null,0]
["ORG:","ORG:",null,null,null,null,null,0]
[null,null,null,null,null,null,null,0]
["N:","N:",null,null,null,null,null,0]
["N:","N:",null,null,null,null,null,0]
[null,null,null,null,null,null,null,0]
[null,null,null,null,null,null,null,0]
["NOTE:","NOTE:",null,null,null,null,null,0]
["TEL;work_fax:","TEL;","work_fax:",null,null,null,null,0]
["TEL;home:","TEL;","home:",null,null,null,null,0]
["EMAIL;other;pref:","EMAIL;","other;","pref:",null,null,null,0]
["END:","END:",null,null,null,null,null,0]
["ADR;work:","ADR;","work:",null,null,null,null,0]
["TEL;mobile:","TEL;","mobile:",null,null,null,null,0]
["EMAIL;other;pref:","EMAIL;","other;","pref:",null,null,null,0]
["TITLE:","TITLE:",null,null,null,null,null,0]
[null,null,null,null,null,null,null,0]
["TEL;work:","TEL;","work:",null,null,null,null,0]
["FN:","FN:",null,null,null,null,null,0]
["END:","END:",null,null,null,null,null,0]
["NOTE:","NOTE:",null,null,null,null,null,0]
[null,null,null,null,null,null,null,0]
["ADR;work:","ADR;","work:",null,null,null,null,0]
["N:","N:",null,null,null,null,null,0]
["EMAIL;other;pref:","EMAIL;","other;","pref:",null,null,null,0]
["TITLE:","TITLE:",null,null,null,null,null,0]
["BEGIN:","BEGIN:",null,null,null,null,null,0]
["VERSION:","VERSION:",null,null,null,null,null,0]
["ORG:","ORG:",null,null,null,null,null,0]
["TEL;mobile:","TEL;","mobile:",null,null,null,null,0]
["FN:","FN:",null,null,null,null,null,0]
[null,null,null,null,null,null,null,0]
["BEGIN:","BEGIN:",null,null,null,null,null,0]
["N:","N:",null,null,null,null,null,0]
["ADR;home:","ADR;","home:",null,null,null,null,0]
["END:","END:",null,null,null,null,null,0]
["ORG:","ORG:",null,null,null,null,null,0]
[null,null,null,null,null,null,null,0]
["N:","N:",null,null,null,null,null,0]
["END:","END:",null,null,null,null,null,0]
["BEGIN:","BEGIN:",null,null,null,null,null,0]
["TEL;mobile:","TEL;","mobile:",null,null,null,null,0]
["END:","END:",null,null,null,null,null,0]
["FN:","FN:",null,null,null,null,null,0]
["BEGIN:","BEGIN:",null,null,null,null,null,0]
["END:","END:",null,null,null,null,null,0]
["TITLE:","TITLE:",null,null,null,null,null,0]
[null,null,null,null,null,null,null,0]
["BEGIN:","BEGIN:",null,null,null,null,null,0]
["TITLE:","TITLE:",null,null,null,null,null,0]
["FN:","FN:",null,null,null,null,null,0]
["BEGIN:","BEGIN:",null,null,null,null,null,0]
["TEL;mobile:","TEL;","mobile:",null,null,null,null,0]
["ADR;work:","ADR;","work:",null,null,null,null,0]
["TITLE:","TITLE:",null,null,null,null,null,0]
["FN:","FN:",null,null,null,null,null,0]
["N:","N:",null,null,null,null,null,0]
["BEGIN:","BEGIN:",null,null,null,null,null,0]
["TITLE:","TITLE:",null,null,null,null,null,0]
["FN:","FN:",null,null,null,null,null,0]
["END:","END:",null,null,null,null,null,0]
["TEL;mobile:","TEL;","mobile:",null,null,null,null,0]
["VERSION:","VERSION:",null,null,null,null,null,0]
["N:","N:",null,null,null,null,null,0]
["VERSION:","VERSION:",null,null,null,null,null,0]
[null,null,null,null,null,null,null,0]
["ADR;work:","ADR;","work:",null,null,null,null,0]
["TITLE:","TITLE:",null,null,null,null,null,0]
["TEL;work:","TEL;","work:",null,null,null,null,0]
["TITLE:","TITLE:",null,null,null,null,null,0]
["TEL;work:","TEL;","work:",null,null,null,null,0]
["END:","END:",null,null,null,null,null,0]
["N:","N:",null,null,null,null,null,0]
["BEGIN:","BEGIN:",null,null,null,null,null,0]
["EMAIL;other:","EMAIL;","other:",null,null,null,null,0]
["ORG:","ORG:",null,null,null,null,null,0]
["N:","N:",null,null,null,null,null,0]
["END:","END:",null,null,null,null,null,0]
["END:","END:",null,null,null,null,null,0]
["FN:","FN:",null,null,null,null,null,0]
["ORG:","ORG:",null,null,null,null,null,0]
["TEL;mobile:","TEL;","mobile:",null,null,null,null,0]
["BEGIN:","BEGIN:",null,null,null,null,null,0]
["ORG:","ORG:",null,null,null,null,null,0]
["TEL;work_fax:","TEL;","work_fax:",null,null,null,null,0]
["EMAIL;other:","EMAIL;","other:",null,null,null,null,0]
["N:","N:",null,null,null,null,null,0]
["ADR;work:","ADR;","work:",null,null,null,null,0]
["VERSION:","VERSION:",null,null,null,null,null,0]
["BEGIN:","BEGIN:",null,null,null,null,null,0]
["ADR;work:","ADR;","work:",null,null,null,null,0]
["VERSION:","VERSION:",null,null,null,null,null,0]
["ORG:","ORG:",null,null,null,null,null,0]
["ORG:","ORG:",null,null,null,null,null,0]
["N:","N:",null,null,null,null,null,0]
["EMAIL;other:","EMAIL;","other:",null,null,null,null,0]
["EMAIL;other:","EMAIL;","other:",null,null,null,null,0]
["TEL;mobile:","TEL;","mobile:",null,null,null,null,0]
["BEGIN:","BEGIN:",null,null,null,null,null,0]
[null,null,null,null,null,null,null,0]
["TITLE:","TITLE:",null,null,null,null,null,0]
["BEGIN:","BEGIN:",null,null,null,null,null,0]
[null,null,null,null,null,null,null,0]
["BEGIN:","BEGIN:",null,null,null,null,null,0]
["EMAIL;other:","EMAIL;","other:",null,null,null,null,0]
["TITLE:","TITLE:",null,null,null,null,null,0]
["ORG:","ORG:",null,null,null,null,null,0]
["TEL;work:","TEL;","work:",null,null,null,null,0]
["VERSION:","VERSION:",null,null,null,null,null,0]
["EMAIL;other;pref:","EMAIL;","other;","pref:",null,null,null,0]
[null,null,null,null,null,null,null,0]
["VERSION:","VERSION:",null,null,null,null,null,0]
["ORG:","ORG:",null,null,null,null,null,0]
["BEGIN:","BEGIN:",null,null,null,null,null,0]
["TITLE:","TITLE:",null,null,null,null,null,0]
[null,null,null,null,null,null,null,0]
["END:","END:",null,null,null,null,null,0]
["END:","END:",null,null,null,null,null,0]
["ADR;work:","ADR;","work:",null,null,null,null,0]
["FN:","FN:",null,null,null,null,null,0]
["N:","N:",null,null,null,null,null,0]
["VERSION:","VERSION:",null,null,null,null,null,0]
["N:","N:",null,null,null,null,null,0]
[null,null,null,null,null,null,null,0]
["FN:","FN:",null,null,null,null,null,0]
["N:","N:",null,null,null,null,null,0]
["FN:","FN:",null,null,null,null,null,0]
["BEGIN:","BEGIN:",null,null,null,null,null,0]
["N:","N:",null,null,null,null,null,0]
[null,null,null,null,null,null,null,0]
["TITLE:","TITLE:",null,null,null,null,null,0]
["ADR;work:","ADR;","work:",null,null,null,null,0]
["BEGIN:","BEGIN:",null,null,null,null,null,0]
["ADR;work:","ADR;","work:",null,null,null,null,0]
["FN:","FN:",null,null,null,null,null,0]
["BEGIN:","BEGIN:",null,null,null,null,null,0]
["NOTE:","NOTE:",null,null,null,null,null,0]
["FN:","FN:",null,null,null,null,null,0]
["VERSION:","VERSION:",null,null,null,null,null,0]
[null,null,null,null,null,null,null,0]
["EMAIL;other;pref:","EMAIL;","other;","pref:",null,null,null,0]
["N:","N:",null,null,null,null,null,0]
["N:","N:",null,null,null,null,null,0]
["VERSION:","VERSION:",null,null,null,null,null,0]
["TITLE:","TITLE:",null,null,null,null,null,0]
["TEL;mobile:","TEL;","mobile:",null,null,null,null,0]
["ORG:","ORG:",null,null,null,null,null,0]
[null,null,null,null,null,null,null,0]
["TITLE:","TITLE:",null,null,null,null,null,0]
["ORG:","ORG:",null,null,null,null,null,0]
["TEL;mobile:","TEL;","mobile:",null,null,null,null,0]
["TEL;work:","TEL;","work:",null,null,null,null,0]
["VERSION:","VERSION:",null,null,null,null,null,0]
["FN:","FN:",null,null,null,null,null,0]
[null,null,null,null,null,null,null,0]
["TEL;work_fax:","TEL;","work_fax:",null,null,null,null,0]
["FN:","FN:",null,null,null,null,null,0]
["ORG:","ORG:",null,null,null,null,null,0]
["TEL;mobile:","TEL;","mobile:",null,null,null,null,0]
["VERSION:","VERSION:",null,null,null,null,null,0]
["ADR;work:","ADR;","work:",null,null,null,null,0]
["END:","END:",null,null,null,null,null,0]
["ORG:","ORG:",null,null,null,null,null,0]
["N:","N:",null,null,null,null,null,0]
["VERSION:","VERSION:",null,null,null,null,null,0]
["BEGIN:","BEGIN:",null,null,null,null,null,0]
["N:","N:",null,null,null,null,null,0]
["FN:","FN:",null,null,null,null,null,0]
["ORG:","ORG:",null,null,null,null,null,0]
["BEGIN:","BEGIN:",null,null,null,null,null,0]
["END:","END:",null,null,null,null,null,0]
["N:","N:",null,null,null,null,null,0]
["TEL;mobile:","TEL;","mobile:",null,null,null,null,0]
["N:","N:",null,null,null,null,null,0]
["BEGIN:","BEGIN:",null,null,null,null,null,0]
["ADR;work:","ADR;","work:",null,null,null,null,0]
["END:","END:",null,null,null,null,null,0]
["ORG:","ORG:",null,null,null,null,null,0]
["ADR;work:","ADR;","work:",null,null,null,null,0]
["ORG:","ORG:",null,null,null,null,null,0]
["FN:","FN:",null,null,null,null,null,0]
["EMAIL;other;pref:","EMAIL;","other;","pref:",null,null,null,0]
["ADR;work:","ADR;","work:",null,null,null,null,0]
["EMAIL;other;pref:","EMAIL;","other;","pref:",null,null,null,0]
["N:","N:",null,null,null,null,null,0]
["N:","N:",null,null,null,null,null,0]
["TEL;mobile:","TEL;","mobile:",null,null,null,null,0]
["N:","N:",null,null,null,null,null,0]
["TITLE:","TITLE:",null,null,null,null,null,0]
["TEL;mobile:","TEL;","mobile:",null,null,null,null,0]
["EMAIL;other:","EMAIL;","other:",null,null,null,null,0]
["TEL;mobile:","TEL;","mobile:",null,null,null,null,0]
["FN:","FN:",null,null,null,null,null,0]
["VERSION:","VERSION:",null,null,null,null,null,0]
["END:","END:",null,null,null,null,null,0]
["N:","N:",null,null,null,null,null,0]
["TEL;work:","TEL;","work:",null,null,null,null,0]
["ADR;work:","ADR;","work:",null,null,null,null,0]
["END:","END:",null,null,null,null,null,0]
["N:","N:",null,null,null,null,null,0]
["ADR;work:","ADR;","work:",null,null,null,null,0]
["ADR;work:","ADR;","work:",null,null,null,null,0]
["TITLE:","TITLE:",null,null,null,null,null,0]
["TEL;work:","TEL;","work:",null,null,null,null,0]
["BEGIN:","BEGIN:",null,null,null,null,null,0]
["END:","END:",null,null,null,null,null,0]
["N:","N:",null,null,null,null,null,0]
["TITLE:","TITLE:",null,null,null,null,null,0]
["EMAIL;other;pref:","EMAIL;","other;","pref:",null,null,null,0]
["NOTE:","NOTE:",null,null,null,null,null,0]
["N:","N:",null,null,null,null,null,0]
["N:","N:",null,null,null,null,null,0]
["N:","N:",null,null,null,null,null,0]
["BEGIN:","BEGIN:",null,null,null,null,null,0]
["ADR;work:","ADR;","work:",null,null,null,null,0]
["N:","N:",null,null,null,null,null,0]
["EMAIL;other:","EMAIL;","other:",null,null,null,null,0]
["TEL;work:","TEL;","work:",null,null,null,null,0]
["BEGIN:","BEGIN:",null,null,null,null,null,0]
["N:","N:",null,null,null,null,null,0]
["ORG:","ORG:",null,null,null,null,null,0]
["BEGIN:","BEGIN:",null,null,null,null,null,0]
["N:","N:",null,null,null,null,null,0]
["VERSION:","VERSION:",null,null,null,null,null,0]
["N:","N:",null,null,null,null,null,0]
["VERSION:","VERSION:",null,null,null,null,null,0]
["FN:","FN:",null,null,null,null,null,0]
["END:","END:",null,null,null,null,null,0]
["TITLE:","TITLE:",null,null,null,null,null,0]
["N:","N:",null,null,null,null,null,0]
["TITLE:","TITLE:",null,null,null,null,null,0]
["TEL;work:","TEL;","work:",null,null,null,null,0]
["ORG:","ORG:",null,null,null,null,null,0]
["BEGIN:","BEGIN:",null,null,null,null,null,0]
["TEL;work:","TEL;","work:",null,null,null,null,0]
["TITLE:","TITLE:",null,null,null,null,null,0]
[null,null,null,null,null,null,null,0]
["N:","N:",null,null,null,null,null,0]
["FN:","FN:",null,null,null,null,null,0]
["TEL;work:","TEL;","work:",null,null,null,null,0]
["EMAIL;other;pref:","EMAIL;","other;","pref:",null,null,null,0]
["FN:","FN:",null,null,null,null,null,0]
["VERSION:","VERSION:",null,null,null,null,null,0]
["VERSION:","VERSION:",null,null,null,null,null,0]
["FN:","FN:",null,null,null,null,null,0]
["TEL;mobile:","TEL;","mobile:",null,null,null,null,0]
["EMAIL;other;pref:","EMAIL;","other;","pref:",null,null,null,0]
["FN:","FN:",null,null,null,null,null,0]
["BEGIN:","BEGIN:",null,null,null,null,null,0]
["END:","END:",null,null,null,null,null,0]
["VERSION:","VERSION:",null,null,null,null,null,0]
["ADR;work:","ADR;","work:",null,null,null,null,0]
["END:","END:",null,null,null,null,null,0]
["END:","END:",null,null,null,null,null,0]
["N:","N:",null,null,null,null,null,0]
["VERSION:","VERSION:",null,null,null,null,null,0]
["ADR;work:","ADR;","work:",null,null,null,null,0]
["FN:","FN:",null,null,null,null,null,0]
["VERSION:","VERSION:",null,null,null,null,null,0]
["N:","N:",null,null,null,null,null,0]
["TEL;work:","TEL;","work:",null,null,null,null,0]
["FN:","FN:",null,null,null,null,null,0]
["BEGIN:","BEGIN:",null,null,null,null,null,0]
["BEGIN:","BEGIN:",null,null,null,null,null,0]
["END:","END:",null,null,null,null,null,0]
[null,null,null,null,null,null,null,0]
["VERSION:","VERSION:",null,null,null,null,null,0]
["TEL;work:","TEL;","work:",null,null,null,null,0]
["ADR;work:","ADR;","work:",null,null,null,null,0]
["VERSION:","VERSION:",null,null,null,null,null,0]
["BEGIN:","BEGIN:",null,null,null,null,null,0]
["EMAIL;other;pref:","EMAIL;","other;","pref:",null,null,null,0]
["ORG:","ORG:",null,null,null,null,null,0]
["END:","END:",null,null,null,null,null,0]
["TEL;work:","TEL;","work:",null,null,null,null,0]
["BEGIN:","BEGIN:",null,null,null,null,null,0]
["ORG:","ORG:",null,null,null,null,null,0]
["FN:","FN:",null,null,null,null,null,0]
["FN:","FN:",null,null,null,null,null,0]
["EMAIL;other;pref:","EMAIL;","other;","pref:",null,null,null,0]
["TEL;work:","TEL;","work:",null,null,null,null,0]
["ADR;work:","ADR;","work:",null,null,null,null,0]
["END:","END:",null,null,null,null,null,0]
["N:","N:",null,null,null,null,null,0]
["TEL;work:","TEL;","work:",null,null,null,null,0]
["END:","END:",null,null,null,null,null,0]
["N:","N:",null,null,null,null,null,0]
["END:","END:",null,null,null,null,null,0]
["N:","N:",null,null,null,null,null,0]
["TEL;work:","TEL;","work:",null,null,null,null,0]
["TITLE:","TITLE:",null,null,null,null,null,0]
[null,null,null,null,null,null,null,0]
["FN:","FN:",null,null,null,null,null,0]
["VERSION:","VERSION:",null,null,null,null,null,0]
["BEGIN:","BEGIN:",null,null,null,null,null,0]
["TEL;mobile:","TEL;","mobile:",null,null,null,null,0]
["N:","N:",null,null,null,null,null,0]
["ADR;work:","ADR;","work:",null,null,null,null,0]
["END:","END:",null,null,null,null,null,0]
["N:","N:",null,null,null,null,null,0]
["TEL;work:","TEL;","work:",null,null,null,null,0]
["VERSION:","VERSION:",null,null,null,null,null,0]
["TEL;mobile:","TEL;","mobile:",null,null,null,null,0]
["VERSION:","VERSION:",null,null,null,null,null,0]
["END:","END:",null,null,null,null,null,0]
["VERSION:","VERSION:",null,null,null,null,null,0]
["BEGIN:","BEGIN:",null,null,null,null,null,0]
["N:","N:",null,null,null,null,null,0]
["VERSION:","VERSION:",null,null,null,null,null,0]
[null,null,null,null,null,null,null,0]
["EMAIL;other;pref:","EMAIL;","other;","pref:",null,null,null,0]
["TEL;mobile:","TEL;","mobile:",null,null,null,null,0]
["VERSION:","VERSION:",null,null,null,null,null,0]
["END:","END:",null,null,null,null,null,0]
["FN:","FN:",null,null,null,null,null,0]
[null,null,null,null,null,null,null,0]
["TEL;work:","TEL;","work:",null,null,null,null,0]
["ORG:","ORG:",null,null,null,null,null,0]
["ADR;work:","ADR;","work:",null,null,null,null,0]
["ADR;work:","ADR;","work:",null,null,null,null,0]
["END:","END:",null,null,null,null,null,0]
["VERSION:","VERSION:",null,null,null,null,null,0]
["EMAIL;other;pref:","EMAIL;","other;","pref:",null,null,null,0]
["END:","END:",null,null,null,null,null,0]
["ADR;work:","ADR;","work:",null,null,null,null,0]
["EMAIL;other;pref:","EMAIL;","other;","pref:",null,null,null,0]
["TEL;mobile:","TEL;","mobile:",null,null,null,null,0]
["END:","END:",null,null,null,null,null,0]
["FN:","FN:",null,null,null,null,null,0]
["ORG:","ORG:",null,null,null,null,null,0]
["TEL;work:","TEL;","work:",null,null,null,null,0]
["END:","END:",null,null,null,null,null,0]
["EMAIL;other;pref:","EMAIL;","other;","pref:",null,null,null,0]
["BEGIN:","BEGIN:",null,null,null,null,null,0]
["NOTE:","NOTE:",null,null,null,null,null,0]
["BEGIN:","BEGIN:",null,null,null,null,null,0]
["EMAIL;other:","EMAIL;","other:",null,null,null,null,0]
["ORG:","ORG:",null,null,null,null,null,0]
["TITLE:","TITLE:",null,null,null,null,null,0]
["TEL;mobile:","TEL;","mobile:",null,null,null,null,0]
["FN:","FN:",null,null,null,null,null,0]
["TEL;mobile:","TEL;","mobile:",null,null,null,null,0]
["BEGIN:","BEGIN:",null,null,null,null,null,0]
["TEL;work:","TEL;","work:",null,null,null,null,0]
["END:","END:",null,null,null,null,null,0]
["BEGIN:","BEGIN:",null,null,null,null,null,0]
["ORG:","ORG:",null,null,null,null,null,0]
["FN:","FN:",null,null,null,null,null,0]
["NOTE:","NOTE:",null,null,null,null,null,0]
["ADR;work:","ADR;","work:",null,null,null,null,0]
["ADR;work:","ADR;","work:",null,null,null,null,0]
["END:","END:",null,null,null,null,null,0]
["TITLE:","TITLE:",null,null,null,null,null,0]
["VERSION:","VERSION:",null,null,null,null,null,0]
["VERSION:","VERSION:",null,null,null,null,null,0]
["TEL;home:","TEL;","home:",null,null,null,null,0]
["TITLE:","TITLE:",null,null,null,null,null,0]
["N:","N:",null,null,null,null,null,0]
["VERSION:","VERSION:",null,null,null,null,null,0]
["TEL;work:","TEL;","work:",null,null,null,null,0]
["FN:","FN:",null,null,null,null,null,0]
["EMAIL;other;pref:","EMAIL;","other;","pref:",null,null,null,0]
["N:","N:",null,null,null,null,null,0]
["TITLE:","TITLE:",null,null,null,null,null,0]
["ADR;work:","ADR;","work:",null,null,null,null,0]
["VERSION:","VERSION:",null,null,null,null,null,0]
["TITLE:","TITLE:",null,null,null,null,null,0]
["ADR;work:","ADR;","work:",null,null,null,null,0]
["VERSION:","VERSION:",null,null,null,null,null,0]
["TEL;mobile:","TEL;","mobile:",null,null,null,null,0]
["VERSION:","VERSION:",null,null,null,null,null,0]
["VERSION:","VERSION:",null,null,null,null,null,0]
["BEGIN:","BEGIN:",null,null,null,null,null,0]
["ADR;work:","ADR;","work:",null,null,null,null,0]
["N:","N:",null,null,null,null,null,0]
["ORG:","ORG:",null,null,null,null,null,0]
["VERSION:","VERSION:",null,null,null,null,null,0]
["N:","N:",null,null,null,null,null,0]
["EMAIL;other;pref:","EMAIL;","other;","pref:",null,null,null,0]
["VERSION:","VERSION:",null,null,null,null,null,0]
["ORG:","ORG:",null,null,null,null,null,0]
["BEGIN:","BEGIN:",null,null,null,null,null,0]
["TEL;mobile:","TEL;","mobile:",null,null,null,null,0]
["N:","N:",null,null,null,null,null,0]
["TITLE:","TITLE:",null,null,null,null,null,0]
["EMAIL;other;pref:","EMAIL;","other;","pref:",null,null,null,0]
["VERSION:","VERSION:",null,null,null,null,null,0]
["TEL;mobile:","TEL;","mobile:",null,null,null,null,0]
["TITLE:","TITLE:",null,null,null,null,null,0]
["FN:","FN:",null,null,null,null,null,0]
["END:","END:",null,null,null,null,null,0]
["FN:","FN:",null,null,null,null,null,0]
["VERSION:","VERSION:",null,null,null,null,null,0]
["END:","END:",null,null,null,null,null,0]
["TITLE:","TITLE:",null,null,null,null,null,0]
["EMAIL;other;pref:","EMAIL;","other;","pref:",null,null,null,0]
["FN:","FN:",null,null,null,null,null,0]
["EMAIL;other;pref:","EMAIL;","other;","pref:",null,null,null,0]
["N:","N:",null,null,null,null,null,0]
["ORG:","ORG:",null,null,null,null,null,0]
["VERSION:","VERSION:",null,null,null,null,null,0]
["TEL;pager:","TEL;","pager:",null,null,null,null,0]
["VERSION:","VERSION:",null,null,null,null,null,0]
["EMAIL;other;pref:","EMAIL;","other;","pref:",null,null,null,0]
["ADR;work:","ADR;","work:",null,null,null,null,0]
[null,null,null,null,null,null,null,0]
["N:","N:",null,null,null,null,null,0]
["FN:","FN:",null,null,null,null,null,0]
["N:","N:",null,null,null,null,null,0]
["VERSION:","VERSION:",null,null,null,null,null,0]
["END:","END:",null,null,null,null,null,0]
["FN:","FN:",null,null,null,null,null,0]
[null,null,null,null,null,null,null,0]
["EMAIL;other;pref:","EMAIL;","other;","pref:",null,null,null,0]
["VERSION:","VERSION:",null,null,null,null,null,0]
["FN:","FN:",null,null,null,null,null,0]
["BEGIN:","BEGIN:",null,null,null,null,null,0]
["VERSION:","VERSION:",null,null,null,null,null,0]
["ADR;work:","ADR;","work:",null,null,null,null,0]
["END:","END:",null,null,null,null,null,0]
["N:","N:",null,null,null,null,null,0]
["EMAIL;other:","EMAIL;","other:",null,null,null,null,0]
["FN:","FN:",null,null,null,null,null,0]
[null,null,null,null,null,null,null,0]
["ADR;work:","ADR;","work:",null,null,null,null,0]
["FN:","FN:",null,null,null,null,null,0]
["N:","N:",null,null,null,null,null,0]
["ORG:","ORG:",null,null,null,null,null,0]
["VERSION:","VERSION:",null,null,null,null,null,0]
["FN:","FN:",null,null,null,null,null,0]
["TEL;work:","TEL;","work:",null,null,null,null,0]
["N:","N:",null,null,null,null,null,0]
["TEL;work:","TEL;","work:",null,null,null,null,0]
["EMAIL;other;pref:","EMAIL;","other;","pref:",null,null,null,0]
["TITLE:","TITLE:",null,null,null,null,null,0]
[null,null,null,null,null,null,null,0]
["N:","N:",null,null,null,null,null,0]
["BEGIN:","BEGIN:",null,null,null,null,null,0]
["TITLE:","TITLE:",null,null,null,null,null,0]
["ORG:","ORG:",null,null,null,null,null,0]
["FN:","FN:",null,null,null,null,null,0]
["VERSION:","VERSION:",null,null,null,null,null,0]
["ADR;work:","ADR;","work:",null,null,null,null,0]
["ORG:","ORG:",null,null,null,null,null,0]
["NOTE:","NOTE:",null,null,null,null,null,0]
["TITLE:","TITLE:",null,null,null,null,null,0]
["TITLE:","TITLE:",null,null,null,null,null,0]
["BEGIN:","BEGIN:",null,null,null,null,null,0]
["EMAIL;other:","EMAIL;","other:",null,null,null,null,0]
["BEGIN:","BEGIN:",null,null,null,null,null,0]
["BEGIN:","BEGIN:",null,null,null,null,null,0]
["END:","END:",null,null,null,null,null,0]
["EMAIL;other;pref:","EMAIL;","other;","pref:",null,null,null,0]
["N:","N:",null,null,null,null,null,0]
["N:","N:",null,null,null,null,null,0]
["END:","END:",null,null,null,null,null,0]
["TEL;work:","TEL;","work:",null,null,null,null,0]
["N:","N:",null,null,null,null,null,0]
["ORG:","ORG:",null,null,null,null,null,0]
["TITLE:","TITLE:",null,null,null,null,null,0]
["TEL;home:","TEL;","home:",null,null,null,null,0]
["VERSION:","VERSION:",null,null,null,null,null,0]
["TEL;mobile:","TEL;","mobile:",null,null,null,null,0]
["FN:","FN:",null,null,null,null,null,0]
["TITLE:","TITLE:",null,null,null,null,null,0]
[null,null,null,null,null,null,null,0]
[null,null,null,null,null,null,null,0]
["END:","END:",null,null,null,null,null,0]
["TITLE:","TITLE:",null,null,null,null,null,0]
["N:","N:",null,null,null,null,null,0]
["ADR;work:","ADR;","work:",null,null,null,null,0]
["VERSION:","VERSION:",null,null,null,null,null,0]
["FN:","FN:",null,null,null,null,null,0]
["ORG:","ORG:",null,null,null,null,null,0]
["N:","N:",null,null,null,null,null,0]
["EMAIL;other;pref:","EMAIL;","other;","pref:",null,null,null,0]
["TEL:","TEL:",null,null,null,null,null,0]
["TEL;mobile:","TEL;","mobile:",null,null,null,null,0]
["N:","N:",null,null,null,null,null,0]
["TEL;work:","TEL;","work:",null,null,null,null,0]
["BEGIN:","BEGIN:",null,null,null,null,null,0]
["VERSION:","VERSION:",null,null,null,null,null,0]
["TEL;work:","TEL;","work:",null,null,null,null,0]
[null,null,null,null,null,null,null,0]
["N:","N:",null,null,null,null,null,0]
["TEL;mobile:","TEL;","mobile:",null,null,null,null,0]
["ADR;work:","ADR;","work:",null,null,null,null,0]
["EMAIL;other;pref:","EMAIL;","other;","pref:",null,null,null,0]
["BEGIN:","BEGIN:",null,null,null,null,null,0]
["ORG:","ORG:",null,null,null,null,null,0]
[null,null,null,null,null,null,null,0]
["N:","N:",null,null,null,null,null,0]
["ORG:","ORG:",null,null,null,null,null,0]
["ADR;work:","ADR;","work:",null,null,null,null,0]
[null,null,null,null,null,null,null,0]
["END:","END:",null,null,null,null,null,0]
["NOTE:","NOTE:",null,null,null,null,null,0]
["EMAIL;other:","EMAIL;","other:",null,null,null,null,0]
["FN:","FN:",null,null,null,null,null,0]
["ORG:","ORG:",null,null,null,null,null,0]
["TEL;work:","TEL;","work:",null,null,null,null,0]
["TEL;work:","TEL;","work:",null,null,null,null,0]
["N:","N:",null,null,null,null,null,0]
["VERSION:","VERSION:",null,null,null,null,null,0]
["TITLE:","TITLE:",null,null,null,null,null,0]
["N:","N:",null,null,null,null,null,0]
["VERSION:","VERSION:",null,null,null,null,null,0]
["ADR;work:","ADR;","work:",null,null,null,null,0]
["END:","END:",null,null,null,null,null,0]
["VERSION:","VERSION:",null,null,null,null,null,0]
["BEGIN:","BEGIN:",null,null,null,null,null,0]
["TITLE:","TITLE:",null,null,null,null,null,0]
["FN:","FN:",null,null,null,null,null,0]
["END:","END:",null,null,null,null,null,0]
[null,null,null,null,null,null,null,0]
["VERSION:","VERSION:",null,null,null,null,null,0]
["FN:","FN:",null,null,null,null,null,0]
["TITLE:","TITLE:",null,null,null,null,null,0]
["ORG:","ORG:",null,null,null,null,null,0]
["FN:","FN:",null,null,null,null,null,0]
["BEGIN:","BEGIN:",null,null,null,null,null,0]
["END:","END:",null,null,null,null,null,0]
["TEL;mobile:","TEL;","mobile:",null,null,null,null,0]
["TEL;work:","TEL;","work:",null,null,null,null,0]
["FN:","FN:",null,null,null,null,null,0]
["ADR;work:","ADR;","work:",null,null,null,null,0]
["EMAIL;other:","EMAIL;","other:",null,null,null,null,0]
["VERSION:","VERSION:",null,null,null,null,null,0]
["TITLE:","TITLE:",null,null,null,null,null,0]
["VERSION:","VERSION:",null,null,null,null,null,0]
["VERSION:","VERSION:",null,null,null,null,null,0]
["URL:","URL:",null,null,null,null,null,0]
["TITLE:","TITLE:",null,null,null,null,null,0]
["N:","N:",null,null,null,null,null,0]
["END:","END:",null,null,null,null,null,0]
["TEL;work:","TEL;","work:",null,null,null,null,0]
["ADR;work:","ADR;","work:",null,null,null,null,0]
["TEL;mobile:","TEL;","mobile:",null,null,null,null,0]
["NOTE:","NOTE:",null,null,null,null,null,0]
["EMAIL;other:","EMAIL;","other:",null,null,null,null,0]
["FN:","FN:",null,null,null,null,null,0]
["TEL;mobile:","TEL;","mobile:",null,null,null,null,0]
["ADR;work:","ADR;","work:",null,null,null,null,0]
["TITLE:","TITLE:",null,null,null,null,null,0]
["FN:","FN:",null,null,null,null,null,0]
["EMAIL;other;pref:","EMAIL;","other;","pref:",null,null,null,0]
["EMAIL;other;pref:","EMAIL;","other;","pref:",null,null,null,0]
["TEL;work:","TEL;","work:",null,null,null,null,0]
["VERSION:","VERSION:",null,null,null,null,null,0]
["NOTE:","NOTE:",null,null,null,null,null,0]
["TEL;work:","TEL;","work:",null,null,null,null,0]
[null,null,null,null,null,null,null,0]
["ADR;work:","ADR;","work:",null,null,null,null,0]
["FN:","FN:",null,null,null,null,null,0]
["EMAIL;other;pref:","EMAIL;","other;","pref:",null,null,null,0]
["BEGIN:","BEGIN:",null,null,null,null,null,0]
["BEGIN:","BEGIN:",null,null,null,null,null,0]
[null,null,null,null,null,null,null,0]
["FN:","FN:",null,null,null,null,null,0]
["URL:","URL:",null,null,null,null,null,0]
["FN:","FN:",null,null,null,null,null,0]
["TEL;pager:","TEL;","pager:",null,null,null,null,0]
["TEL;work:","TEL;","work:",null,null,null,null,0]
["BEGIN:","BEGIN:",null,null,null,null,null,0]
["ADR;work:","ADR;","work:",null,null,null,null,0]
["TEL;mobile:","TEL;","mobile:",null,null,null,null,0]
["END:","END:",null,null,null,null,null,0]
["ADR;work:","ADR;","work:",null,null,null,null,0]
["TEL;mobile:","TEL;","mobile:",null,null,null,null,0]
["VERSION:","VERSION:",null,null,null,null,null,0]
["END:","END:",null,null,null,null,null,0]
["FN:","FN:",null,null,null,null,null,0]
["ORG:","ORG:",null,null,null,null,null,0]
["TEL;mobile:","TEL;","mobile:",null,null,null,null,0]
["ORG:","ORG:",null,null,null,null,null,0]
[null,null,null,null,null,null,null,0]
["ADR;work:","ADR;","work:",null,null,null,null,0]
["TITLE:","TITLE:",null,null,null,null,null,0]
["END:","END:",null,null,null,null,null,0]
["TEL;mobile:","TEL;","mobile:",null,null,null,null,0]
["EMAIL;other:","EMAIL;","other:",null,null,null,null,0]
["N:","N:",null,null,null,null,null,0]
["URL:","URL:",null,null,null,null,null,0]
["ADR;work:","ADR;","work:",null,null,null,null,0]
["END:","END:",null,null,null,null,null,0]
["END:","END:",null,null,null,null,null,0]
["VERSION:","VERSION:",null,null,null,null,null,0]
["EMAIL;other;pref:","EMAIL;","other;","pref:",null,null,null,0]
[null,null,null,null,null,null,null,0]
["FN:","FN:",null,null,null,null,null,0]
["VERSION:","VERSION:",null,null,null,null,null,0]
["EMAIL;other;pref:","EMAIL;","other;","pref:",null,null,null,0]
["END:","END:",null,null,null,null,null,0]
["BEGIN:","BEGIN:",null,null,null,null,null,0]
["FN:","FN:",null,null,null,null,null,0]
["FN:","FN:",null,null,null,null,null,0]
["N:","N:",null,null,null,null,null,0]
["FN:","FN:",null,null,null,null,null,0]
["NOTE:","NOTE:",null,null,null,null,null,0]
["TEL;work:","TEL;","work:",null,null,null,null,0]
["TITLE:","TITLE:",null,null,null,null,null,0]
["ORG:","ORG:",null,null,null,null,null,0]
["ADR;work:","ADR;","work:",null,null,null,null,0]
["TEL;mobile:","TEL;","mobile:",null,null,null,null,0]
["VERSION:","VERSION:",null,null,null,null,null,0]
["END:","END:",null,null,null,null,null,0]
["N:","N:",null,null,null,null,null,0]
["EMAIL;other;pref:","EMAIL;","other;","pref:",null,null,null,0]
["FN:","FN:",null,null,null,null,null,0]
["URL:","URL:",null,null,null,null,null,0]
[null,null,null,null,null,null,null,0]
["TEL;work:","TEL;","work:",null,null,null,null,0]
["VERSION:","VERSION:",null,null,null,null,null,0]
["FN:","FN:",null,null,null,null,null,0]
["EMAIL;other;pref:","EMAIL;","other;","pref:",null,null,null,0]
["TEL;work:","TEL;","work:",null,null,null,null,0]
["BEGIN:","BEGIN:",null,null,null,null,null,0]
["EMAIL;other;pref:","EMAIL;","other;","pref:",null,null,null,0]
["EMAIL;other:","EMAIL;","other:",null,null,null,null,0]
["N:","N:",null,null,null,null,null,0]
["TITLE:","TITLE:",null,null,null,null,null,0]
["FN:","FN:",null,null,null,null,null,0]
["FN:","FN:",null,null,null,null,null,0]
["N:","N:",null,null,null,null,null,0]
["EMAIL;other;pref:","EMAIL;","other;","pref:",null,null,null,0]
["BEGIN:","BEGIN:",null,null,null,null,null,0]
["TITLE:","TITLE:",null,null,null,null,null,0]
["TITLE:","TITLE:",null,null,null,null,null,0]
["TEL;mobile:","TEL;","mobile:",null,null,null,null,0]
["EMAIL;other:","EMAIL;","other:",null,null,null,null,0]
["END:","END:",null,null,null,null,null,0]
["ORG:","ORG:",null,null,null,null,null,0]
["FN:","FN:",null,null,null,null,null,0]
[null,null,null,null,null,null,null,0]
[null,null,null,null,null,null,null,0]
["ADR;work:","ADR;","work:",null,null,null,null,0]
["ADR;work:","ADR;","work:",null,null,null,null,0]
["FN:","FN:",null,null,null,null,null,0]
["N:","N:",null,null,null,null,null,0]
["TEL;mobile:","TEL;","mobile:",null,null,null,null,0]
["TEL;work:","TEL;","work:",null,null,null,null,0]
["VERSION:","VERSION:",null,null,null,null,null,0]
["END:","END:",null,null,null,null,null,0]
["FN:","FN:",null,null,null,null,null,0]
["END:","END:",null,null,null,null,null,0]
["VERSION:","VERSION:",null,null,null,null,null,0]
["EMAIL;other;pref:","EMAIL;","other;","pref:",null,null,null,0]
["N:","N:",null,null,null,null,null,0]
["TITLE:","TITLE:",null,null,null,null,null,0]
["BEGIN:","BEGIN:",null,null,null,null,null,0]
["END:","END:",null,null,null,null,null,0]
["FN:","FN:",null,null,null,null,null,0]
["TITLE:","TITLE:",null,null,null,null,null,0]
["ADR;work:","ADR;","work:",null,null,null,null,0]
["TEL;work:","TEL;","work:",null,null,null,null,0]
["END:","END:",null,null,null,null,null,0]
["N:","N:",null,null,null,null,null,0]
["BEGIN:","BEGIN:",null,null,null,null,null,0]
["END:","END:",null,null,null,null,null,0]
["FN:","FN:",null,null,null,null,null,0]
["EMAIL;other;pref:","EMAIL;","other;","pref:",null,null,null,0]
["N:","N:",null,null,null,null,null,0]
["VERSION:","VERSION:",null,null,null,null,null,0]
["BEGIN:","BEGIN:",null,null,null,null,null,0]
["END:","END:",null,null,null,null,null,0]
["TITLE:","TITLE:",null,null,null,null,null,0]
["EMAIL;other;pref:","EMAIL;","other;","pref:",null,null,null,0]
["TEL;mobile:","TEL;","mobile:",null,null,null,null,0]
["TEL;home:","TEL;","home:",null,null,null,null,0]
["TEL;work:","TEL;","work:",null,null,null,null,0]
["FN:","FN:",null,null,null,null,null,0]
["N:","N:",null,null,null,null,null,0]
["VERSION:","VERSION:",null,null,null,null,null,0]
["BEGIN:","BEGIN:",null,null,null,null,null,0]
["END:","END:",null,null,null,null,null,0]
["TITLE:","TITLE:",null,null,null,null,null,0]
["ORG:","ORG:",null,null,null,null,null,0]
["EMAIL;other;pref:","EMAIL;","other;","pref:",null,null,null,0]
["TEL;mobile:","TEL;","mobile:",null,null,null,null,0]
["TEL;work:","TEL;","work:",null,null,null,null,0]
[null,null,null,null,null,null,null,0]
["ADR;work:","ADR;","work:",null,null,null,null,0]
["FN:","FN:",null,null,null,null,null,0]
["N:","N:",null,null,null,null,null,0]
["VERSION:","VERSION:",null,null,null,null,null,0]
["BEGIN:","BEGIN:",null,null,null,null,null,0]
["END:","END:",null,null,null,null,null,0]
["EMAIL;other;pref:","EMAIL;","other;","pref:",null,null,null,0]
["FN:","FN:",null,null,null,null,null,0]
["N:","N:",null,null,null,null,null,0]
["VERSION:","VERSION:",null,null,null,null,null,0]
["BEGIN:","BEGIN:",null,null,null,null,null,0]
["END:","END:",null,null,null,null,null,0]
["TITLE:","TITLE:",null,null,null,null,null,0]
["ORG:","ORG:",null,null,null,null,null,0]
["TEL;mobile:","TEL;","mobile:",null,null,null,null,0]
["TEL;work:","TEL;","work:",null,null,null,null,0]
[null,null,null,null,null,null,null,0]
["ADR;work:","ADR;","work:",null,null,null,null,0]
["FN:","FN:",null,null,null,null,null,0]
["N:","N:",null,null,null,null,null,0]
["VERSION:","VERSION:",null,null,null,null,null,0]
["BEGIN:","BEGIN:",null,null,null,null,null,0]
["END:","END:",null,null,null,null,null,0]
["TITLE:","TITLE:",null,null,null,null,null,0]
["ORG:","ORG:",null,null,null,null,null,0]
["EMAIL;other;pref:","EMAIL;","other;","pref:",null,null,null,0]
["TEL;mobile:","TEL;","mobile:",null,null,null,null,0]
["TEL;work:","TEL;","work:",null,null,null,null,0]
["ADR;work:","ADR;","work:",null,null,null,null,0]
["FN:","FN:",null,null,null,null,null,0]
["N:","N:",null,null,null,null,null,0]
["VERSION:","VERSION:",null,null,null,null,null,0]
["BEGIN:","BEGIN:",null,null,null,null,null,0]
["END:","END:",null,null,null,null,null,0]
["TITLE:","TITLE:",null,null,null,null,null,0]
["ORG:","ORG:",null,null,null,null,null,0]
["TEL;mobile:","TEL;","mobile:",null,null,null,null,0]
["TEL;work:","TEL;","work:",null,null,null,null,0]
["ADR;work:","ADR;","work:",null,null,null,null,0]
["FN:","FN:",null,null,null,null,null,0]
["N:","N:",null,null,null,null,null,0]
["VERSION:","VERSION:",null,null,null,null,null,0]
["BEGIN:","BEGIN:",null,null,null,null,null,0]
["END:","END:",null,null,null,null,null,0]
["TITLE:","TITLE:",null,null,null,null,null,0]
["ORG:","ORG:",null,null,null,null,null,0]
["EMAIL;other:","EMAIL;","other:",null,null,null,null,0]
["TEL;work:","TEL;","work:",null,null,null,null,0]
[null,null,null,null,null,null,null,0]
["ADR;work:","ADR;","work:",null,null,null,null,0]
["FN:","FN:",null,null,null,null,null,0]
["N:","N:",null,null,null,null,null,0]
["VERSION:","VERSION:",null,null,null,null,null,0]
["BEGIN:","BEGIN:",null,null,null,null,null,0]
["END:","END:",null,null,null,null,null,0]
["TITLE:","TITLE:",null,null,null,null,null,0]
["ORG:","ORG:",null,null,null,null,null,0]
["TEL;mobile:","TEL;","mobile:",null,null,null,null,0]
[null,null,null,null,null,null,null,0]
["ADR;work:","ADR;","work:",null,null,null,null,0]
["FN:","FN:",null,null,null,null,null,0]
["N:","N:",null,null,null,null,null,0]
["VERSION:","VERSION:",null,null,null,null,null,0]
["BEGIN:","BEGIN:",null,null,null,null,null,0]
["END:","END:",null,null,null,null,null,0]
["TITLE:","TITLE:",null,null,null,null,null,0]
["ORG:","ORG:",null,null,null,null,null,0]
["EMAIL;other;pref:","EMAIL;","other;","pref:",null,null,null,0]
["TEL;work:","TEL;","work:",null,null,null,null,0]
["ADR;work:","ADR;","work:",null,null,null,null,0]
["FN:","FN:",null,null,null,null,null,0]
["N:","N:",null,null,null,null,null,0]
["VERSION:","VERSION:",null,null,null,null,null,0]
["BEGIN:","BEGIN:",null,null,null,null,null,0]
["END:","END:",null,null,null,null,null,0]
["TITLE:","TITLE:",null,null,null,null,null,0]
["EMAIL;other;pref:","EMAIL;","other;","pref:",null,null,null,0]
["TEL;mobile:","TEL;","mobile:",null,null,null,null,0]
[null,null,null,null,null,null,null,0]
["ADR;work:","ADR;","work:",null,null,null,null,0]
["FN:","FN:",null,null,null,null,null,0]
["N:","N:",null,null,null,null,null,0]
["VERSION:","VERSION:",null,null,null,null,null,0]
["BEGIN:","BEGIN:",null,null,null,null,null,0]
["END:","END:",null,null,null,null,null,0]
["TITLE:","TITLE:",null,null,null,null,null,0]
["TEL;mobile:","TEL;","mobile:",null,null,null,null,0]
[null,null,null,null,null,null,null,0]
["ADR;work:","ADR;","work:",null,null,null,null,0]
["FN:","FN:",null,null,null,null,null,0]
["N:","N:",null,null,null,null,null,0]
["VERSION:","VERSION:",null,null,null,null,null,0]
["BEGIN:","BEGIN:",null,null,null,null,null,0]
["END:","END:",null,null,null,null,null,0]
["EMAIL;other;pref:","EMAIL;","other;","pref:",null,null,null,0]
["FN:","FN:",null,null,null,null,null,0]
["N:","N:",null,null,null,null,null,0]
["VERSION:","VERSION:",null,null,null,null,null,0]
["BEGIN:","BEGIN:",null,null,null,null,null,0]
["END:","END:",null,null,null,null,null,0]
["EMAIL;other:","EMAIL;","other:",null,null,null,null,0]
["FN:","FN:",null,null,null,null,null,0]
["N:","N:",null,null,null,null,null,0]
["VERSION:","VERSION:",null,null,null,null,null,0]
["BEGIN:","BEGIN:",null,null,null,null,null,0]
["END:","END:",null,null,null,null,null,0]
["TITLE:","TITLE:",null,null,null,null,null,0]
["ORG:","ORG:",null,null,null,null,null,0]
["EMAIL;other:","EMAIL;","other:",null,null,null,null,0]
["TEL;mobile:","TEL;","mobile:",null,null,null,null,0]
["TEL;work:","TEL;","work:",null,null,null,null,0]
["ADR;work:","ADR;","work:",null,null,null,null,0]
["FN:","FN:",null,null,null,null,null,0]
["N:","N:",null,null,null,null,null,0]
["VERSION:","VERSION:",null,null,null,null,null,0]
["BEGIN:","BEGIN:",null,null,null,null,null,0]
["END:","END:",null,null,null,null,null,0]
["TITLE:","TITLE:",null,null,null,null,null,0]
["ORG:","ORG:",null,null,null,null,null,0]
["TEL;mobile:","TEL;","mobile:",null,null,null,null,0]
[null,null,null,null,null,null,null,0]
["ADR;work:","ADR;","work:",null,null,null,null,0]
["FN:","FN:",null,null,null,null,null,0]
["N:","N:",null,null,null,null,null,0]
["VERSION:","VERSION:",null,null,null,null,null,0]
["BEGIN:","BEGIN:",null,null,null,null,null,0]
["END:","END:",null,null,null,null,null,0]
["TITLE:","TITLE:",null,null,null,null,null,0]
["ORG:","ORG:",null,null,null,null,null,0]
["EMAIL;other;pref:","EMAIL;","other;","pref:",null,null,null,0]
["TEL;mobile:","TEL;","mobile:",null,null,null,null,0]
["TEL;work:","TEL;","work:",null,null,null,null,0]
[null,null,null,null,null,null,null,0]
["ADR;work:","ADR;","work:",null,null,null,null,0]
["FN:","FN:",null,null,null,null,null,0]
["N:","N:",null,null,null,null,null,0]
["VERSION:","VERSION:",null,null,null,null,null,0]
["BEGIN:","BEGIN:",null,null,null,null,null,0]
["END:","END:",null,null,null,null,null,0]
["TITLE:","TITLE:",null,null,null,null,null,0]
["ORG:","ORG:",null,null,null,null,null,0]
["EMAIL;other:","EMAIL;","other:",null,null,null,null,0]
["TEL;mobile:","TEL;","mobile:",null,null,null,null,0]
["TEL;work:","TEL;","work:",null,null,null,null,0]
[null,null,null,null,null,null,null,0]
["ADR;work:","ADR;","work:",null,null,null,null,0]
["FN:","FN:",null,null,null,null,null,0]
["N:","N:",null,null,null,null,null,0]
["VERSION:","VERSION:",null,null,null,null,null,0]
["BEGIN:","BEGIN:",null,null,null,null,null,0]
["END:","END:",null,null,null,null,null,0]
["TITLE:","TITLE:",null,null,null,null,null,0]
["ORG:","ORG:",null,null,null,null,null,0]
["EMAIL;other;pref:","EMAIL;","other;","pref:",null,null,null,0]
["TEL;mobile:","TEL;","mobile:",null,null,null,null,0]
["TEL;work:","TEL;","work:",null,null,null,null,0]
["ADR;work:","ADR;","work:",null,null,null,null,0]
["FN:","FN:",null,null,null,null,null,0]
["N:","N:",null,null,null,null,null,0]
["VERSION:","VERSION:",null,null,null,null,null,0]
["BEGIN:","BEGIN:",null,null,null,null,null,0]
["END:","END:",null,null,null,null,null,0]
["TITLE:","TITLE:",null,null,null,null,null,0]
["ORG:","ORG:",null,null,null,null,null,0]
["EMAIL;other;pref:","EMAIL;","other;","pref:",null,null,null,0]
["TEL;mobile:","TEL;","mobile:",null,null,null,null,0]
[null,null,null,null,null,null,null,0]
["ADR;work:","ADR;","work:",null,null,null,null,0]
["FN:","FN:",null,null,null,null,null,0]
["N:","N:",null,null,null,null,null,0]
["VERSION:","VERSION:",null,null,null,null,null,0]
["BEGIN:","BEGIN:",null,null,null,null,null,0]
["END:","END:",null,null,null,null,null,0]
["TITLE:","TITLE:",null,null,null,null,null,0]
["ORG:","ORG:",null,null,null,null,null,0]
["EMAIL;other;pref:","EMAIL;","other;","pref:",null,null,null,0]
["TEL;mobile:","TEL;","mobile:",null,null,null,null,0]
["TEL;work:","TEL;","work:",null,null,null,null,0]
[null,null,null,null,null,null,null,0]
["ADR;work:","ADR;","work:",null,null,null,null,0]
["FN:","FN:",null,null,null,null,null,0]
["N:","N:",null,null,null,null,null,0]
["VERSION:","VERSION:",null,null,null,null,null,0]
["BEGIN:","BEGIN:",null,null,null,null,null,0]
["END:","END:",null,null,null,null,null,0]
["TITLE:","TITLE:",null,null,null,null,null,0]
["ORG:","ORG:",null,null,null,null,null,0]
["EMAIL;other:","EMAIL;","other:",null,null,null,null,0]
["TEL;mobile:","TEL;","mobile:",null,null,null,null,0]
["TEL;work:","TEL;","work:",null,null,null,null,0]
[null,null,null,null,null,null,null,0]
["ADR;work:","ADR;","work:",null,null,null,null,0]
["FN:","FN:",null,null,null,null,null,0]
["N:","N:",null,null,null,null,null,0]
["VERSION:","VERSION:",null,null,null,null,null,0]
["BEGIN:","BEGIN:",null,null,null,null,null,0]
["END:","END:",null,null,null,null,null,0]
["TITLE:","TITLE:",null,null,null,null,null,0]
["ORG:","ORG:",null,null,null,null,null,0]
["TEL;mobile:","TEL;","mobile:",null,null,null,null,0]
["TEL;work:","TEL;","work:",null,null,null,null,0]
[null,null,null,null,null,null,null,0]
["ADR;work:","ADR;","work:",null,null,null,null,0]
["FN:","FN:",null,null,null,null,null,0]
["N:","N:",null,null,null,null,null,0]
["VERSION:","VERSION:",null,null,null,null,null,0]
["BEGIN:","BEGIN:",null,null,null,null,null,0]
["END:","END:",null,null,null,null,null,0]
["TITLE:","TITLE:",null,null,null,null,null,0]
["ORG:","ORG:",null,null,null,null,null,0]
["TEL;work:","TEL;","work:",null,null,null,null,0]
[null,null,null,null,null,null,null,0]
["ADR;work:","ADR;","work:",null,null,null,null,0]
["FN:","FN:",null,null,null,null,null,0]
["N:","N:",null,null,null,null,null,0]
["VERSION:","VERSION:",null,null,null,null,null,0]
["BEGIN:","BEGIN:",null,null,null,null,null,0]
["END:","END:",null,null,null,null,null,0]
["TITLE:","TITLE:",null,null,null,null,null,0]
["ORG:","ORG:",null,null,null,null,null,0]
["EMAIL;other;pref:","EMAIL;","other;","pref:",null,null,null,0]
["TEL;mobile:","TEL;","mobile:",null,null,null,null,0]
[null,null,null,null,null,null,null,0]
["ADR;work:","ADR;","work:",null,null,null,null,0]
["ADR;work:","ADR;","work:",null,null,null,null,0]
["FN:","FN:",null,null,null,null,null,0]
["N:","N:",null,null,null,null,null,0]
["VERSION:","VERSION:",null,null,null,null,null,0]
["BEGIN:","BEGIN:",null,null,null,null,null,0]
["END:","END:",null,null,null,null,null,0]
["EMAIL;other;pref:","EMAIL;","other;","pref:",null,null,null,0]
["FN:","FN:",null,null,null,null,null,0]
["N:","N:",null,null,null,null,null,0]
["VERSION:","VERSION:",null,null,null,null,null,0]
["BEGIN:","BEGIN:",null,null,null,null,null,0]
["END:","END:",null,null,null,null,null,0]
["TITLE:","TITLE:",null,null,null,null,null,0]
["ORG:","ORG:",null,null,null,null,null,0]
["EMAIL;other:","EMAIL;","other:",null,null,null,null,0]
["EMAIL;other:","EMAIL;","other:",null,null,null,null,0]
["TEL;work:","TEL;","work:",null,null,null,null,0]
[null,null,null,null,null,null,null,0]
["ADR;work:","ADR;","work:",null,null,null,null,0]
["FN:","FN:",null,null,null,null,null,0]
["N:","N:",null,null,null,null,null,0]
["VERSION:","VERSION:",null,null,null,null,null,0]
["BEGIN:","BEGIN:",null,null,null,null,null,0]
["END:","END:",null,null,null,null,null,0]
["TITLE:","TITLE:",null,null,null,null,null,0]
["ORG:","ORG:",null,null,null,null,null,0]
["EMAIL;other;pref:","EMAIL;","other;","pref:",null,null,null,0]
["TEL;work:","TEL;","work:",null,null,null,null,0]
[null,null,null,null,null,null,null,0]
["ADR;work:","ADR;","work:",null,null,null,null,0]
["FN:","FN:",null,null,null,null,null,0]
["N:","N:",null,null,null,null,null,0]
["VERSION:","VERSION:",null,null,null,null,null,0]
["BEGIN:","BEGIN:",null,null,null,null,null,0]
["END:","END:",null,null,null,null,null,0]
["TITLE:","TITLE:",null,null,null,null,null,0]
["ORG:","ORG:",null,null,null,null,null,0]
["EMAIL;other:","EMAIL;","other:",null,null,null,null,0]
["TEL;mobile:","TEL;","mobile:",null,null,null,null,0]
[null,null,null,null,null,null,null,0]
["ADR;work:","ADR;","work:",null,null,null,null,0]
["FN:","FN:",null,null,null,null,null,0]
["N:","N:",null,null,null,null,null,0]
["VERSION:","VERSION:",null,null,null,null,null,0]
["BEGIN:","BEGIN:",null,null,null,null,null,0]
["END:","END:",null,null,null,null,null,0]
["NOTE:","NOTE:",null,null,null,null,null,0]
["TITLE:","TITLE:",null,null,null,null,null,0]
["ORG:","ORG:",null,null,null,null,null,0]
["EMAIL;other;pref:","EMAIL;","other;","pref:",null,null,null,0]
["TEL;mobile:","TEL;","mobile:",null,null,null,null,0]
["TEL;work:","TEL;","work:",null,null,null,null,0]
["TEL;work_fax:","TEL;","work_fax:",null,null,null,null,0]
["ADR;work:","ADR;","work:",null,null,null,null,0]
["FN:","FN:",null,null,null,null,null,0]
["N:","N:",null,null,null,null,null,0]
["VERSION:","VERSION:",null,null,null,null,null,0]
["BEGIN:","BEGIN:",null,null,null,null,null,0]
["END:","END:",null,null,null,null,null,0]
[null,null,null,null,null,null,null,0]
[null,null,null,null,null,null,null,0]
[null,null,null,null,null,null,null,0]
[null,null,null,null,null,null,null,0]
[null,null,null,null,null,null,null,0]
[null,null,null,null,null,null,null,0]
["NOTE:","NOTE:",null,null,null,null,null,0]
["ORG:","ORG:",null,null,null,null,null,0]
["EMAIL;other;pref:","EMAIL;","other;","pref:",null,null,null,0]
["TEL;mobile:","TEL;","mobile:",null,null,null,null,0]
["TEL;work:","TEL;","work:",null,null,null,null,0]
["TEL;work_fax:","TEL;","work_fax:",null,null,null,null,0]
["ADR;work:","ADR;","work:",null,null,null,null,0]
["FN:","FN:",null,null,null,null,null,0]
["N:","N:",null,null,null,null,null,0]
["VERSION:","VERSION:",null,null,null,null,null,0]
["BEGIN:","BEGIN:",null,null,null,null,null,0]
["END:","END:",null,null,null,null,null,0]
["TITLE:","TITLE:",null,null,null,null,null,0]
["ORG:","ORG:",null,null,null,null,null,0]
["ADR;work:","ADR;","work:",null,null,null,null,0]
["FN:","FN:",null,null,null,null,null,0]
["N:","N:",null,null,null,null,null,0]
["VERSION:","VERSION:",null,null,null,null,null,0]
["BEGIN:","BEGIN:",null,null,null,null,null,0]
["END:","END:",null,null,null,null,null,0]
["TITLE:","TITLE:",null,null,null,null,null,0]
["ORG:","ORG:",null,null,null,null,null,0]
["TEL;work:","TEL;","work:",null,null,null,null,0]
["ADR;work:","ADR;","work:",null,null,null,null,0]
["FN:","FN:",null,null,null,null,null,0]
["N:","N:",null,null,null,null,null,0]
["VERSION:","VERSION:",null,null,null,null,null,0]
["BEGIN:","BEGIN:",null,null,null,null,null,0]
["END:","END:",null,null,null,null,null,0]
["TITLE:","TITLE:",null,null,null,null,null,0]
["ORG:","ORG:",null,null,null,null,null,0]
["EMAIL;other;pref:","EMAIL;","other;","pref:",null,null,null,0]
[null,null,null,null,null,null,null,0]
["ADR;work:","ADR;","work:",null,null,null,null,0]
["FN:","FN:",null,null,null,null,null,0]
["N:","N:",null,null,null,null,null,0]
["VERSION:","VERSION:",null,null,null,null,null,0]
["BEGIN:","BEGIN:",null,null,null,null,null,0]
["END:","END:",null,null,null,null,null,0]
["TITLE:","TITLE:",null,null,null,null,null,0]
["ORG:","ORG:",null,null,null,null,null,0]
["TEL;mobile:","TEL;","mobile:",null,null,null,null,0]
["TEL;work:","TEL;","work:",null,null,null,null,0]
[null,null,null,null,null,null,null,0]
["ADR;work:","ADR;","work:",null,null,null,null,0]
["FN:","FN:",null,null,null,null,null,0]
["N:","N:",null,null,null,null,null,0]
["VERSION:","VERSION:",null,null,null,null,null,0]
["BEGIN:","BEGIN:",null,null,null,null,null,0]
["END:","END:",null,null,null,null,null,0]
["TITLE:","TITLE:",null,null,null,null,null,0]
["ORG:","ORG:",null,null,null,null,null,0]
["TEL;mobile:","TEL;","mobile:",null,null,null,null,0]
["TEL;work:","TEL;","work:",null,null,null,null,0]
[null,null,null,null,null,null,null,0]
[null,null,null,null,null,null,null,0]
["ADR;work:","ADR;","work:",null,null,null,null,0]
["FN:","FN:",null,null,null,null,null,0]
["N:","N:",null,null,null,null,null,0]
["VERSION:","VERSION:",null,null,null,null,null,0]
["BEGIN:","BEGIN:",null,null,null,null,null,0]
["END:","END:",null,null,null,null,null,0]
["EMAIL;other;pref:","EMAIL;","other;","pref:",null,null,null,0]
["FN:","FN:",null,null,null,null,null,0]
["N:","N:",null,null,null,null,null,0]
["VERSION:","VERSION:",null,null,null,null,null,0]
["BEGIN:","BEGIN:",null,null,null,null,null,0]
["END:","END:",null,null,null,null,null,0]
["TITLE:","TITLE:",null,null,null,null,null,0]
["ORG:","ORG:",null,null,null,null,null,0]
["TEL;mobile:","TEL;","mobile:",null,null,null,null,0]
["TEL;work:","TEL;","work:",null,null,null,null,0]
[null,null,null,null,null,null,null,0]
["ADR;work:","ADR;","work:",null,null,null,null,0]
["FN:","FN:",null,null,null,null,null,0]
["N:","N:",null,null,null,null,null,0]
["VERSION:","VERSION:",null,null,null,null,null,0]
["BEGIN:","BEGIN:",null,null,null,null,null,0]
["END:","END:",null,null,null,null,null,0]
[null,null,null,null,null,null,null,0]
["NOTE:","NOTE:",null,null,null,null,null,0]
["TITLE:","TITLE:",null,null,null,null,null,0]
["ORG:","ORG:",null,null,null,null,null,0]
["EMAIL;other;pref:","EMAIL;","other;","pref:",null,null,null,0]
["TEL;mobile:","TEL;","mobile:",null,null,null,null,0]
["TEL;work_fax:","TEL;","work_fax:",null,null,null,null,0]
[null,null,null,null,null,null,null,0]
["ADR;work:","ADR;","work:",null,null,null,null,0]
["ADR;work:","ADR;","work:",null,null,null,null,0]
["FN:","FN:",null,null,null,null,null,0]
["N:","N:",null,null,null,null,null,0]
["VERSION:","VERSION:",null,null,null,null,null,0]
["BEGIN:","BEGIN:",null,null,null,null,null,0]
["END:","END:",null,null,null,null,null,0]
["TITLE:","TITLE:",null,null,null,null,null,0]
["ORG:","ORG:",null,null,null,null,null,0]
["EMAIL;other:","EMAIL;","other:",null,null,null,null,0]
["TEL;mobile:","TEL;","mobile:",null,null,null,null,0]
["TEL;work:","TEL;","work:",null,null,null,null,0]
[null,null,null,null,null,null,null,0]
["ADR;work:","ADR;","work:",null,null,null,null,0]
["FN:","FN:",null,null,null,null,null,0]
["N:","N:",null,null,null,null,null,0]
["VERSION:","VERSION:",null,null,null,null,null,0]
["BEGIN:","BEGIN:",null,null,null,null,null,0]
["END:","END:",null,null,null,null,null,0]
["TITLE:","TITLE:",null,null,null,null,null,0]
["ORG:","ORG:",null,null,null,null,null,0]
["EMAIL;other;pref:","EMAIL;","other;","pref:",null,null,null,0]
["TEL;mobile:","TEL;","mobile:",null,null,null,null,0]
["ADR;work:","ADR;","work:",null,null,null,null,0]
["FN:","FN:",null,null,null,null,null,0]
["N:","N:",null,null,null,null,null,0]
["VERSION:","VERSION:",null,null,null,null,null,0]
["BEGIN:","BEGIN:",null,null,null,null,null,0]
["END:","END:",null,null,null,null,null,0]
["TITLE:","TITLE:",null,null,null,null,null,0]
["ORG:","ORG:",null,null,null,null,null,0]
["EMAIL;other;pref:","EMAIL;","other;","pref:",null,null,null,0]
["TEL;pager:","TEL;","pager:",null,null,null,null,0]
["TEL;pager:","TEL;","pager:",null,null,null,null,0]
["TEL;work:","TEL;","work:",null,null,null,null,0]
[null,null,null,null,null,null,null,0]
["ADR;work:","ADR;","work:",null,null,null,null,0]
["FN:","FN:",null,null,null,null,null,0]
["N:","N:",null,null,null,null,null,0]
["VERSION:","VERSION:",null,null,null,null,null,0]
["BEGIN:","BEGIN:",null,null,null,null,null,0]
["END:","END:",null,null,null,null,null,0]
["EMAIL;other;pref:","EMAIL;","other;","pref:",null,null,null,0]
["FN:","FN:",null,null,null,null,null,0]
["N:","N:",null,null,null,null,null,0]
["VERSION:","VERSION:",null,null,null,null,null,0]
["BEGIN:","BEGIN:",null,null,null,null,null,0]
["END:","END:",null,null,null,null,null,0]
["TITLE:","TITLE:",null,null,null,null,null,0]
["ORG:","ORG:",null,null,null,null,null,0]
["EMAIL;other:","EMAIL;","other:",null,null,null,null,0]
["TEL;mobile:","TEL;","mobile:",null,null,null,null,0]
[null,null,null,null,null,null,null,0]
["ADR;work:","ADR;","work:",null,null,null,null,0]
["FN:","FN:",null,null,null,null,null,0]
["N:","N:",null,null,null,null,null,0]
["VERSION:","VERSION:",null,null,null,null,null,0]
["BEGIN:","BEGIN:",null,null,null,null,null,0]
["END:","END:",null,null,null,null,null,0]
["TITLE:","TITLE:",null,null,null,null,null,0]
["ORG:","ORG:",null,null,null,null,null,0]
["EMAIL;other;pref:","EMAIL;","other;","pref:",null,null,null,0]
["TEL;work:","TEL;","work:",null,null,null,null,0]
[null,null,null,null,null,null,null,0]
["ADR;work:","ADR;","work:",null,null,null,null,0]
["FN:","FN:",null,null,null,null,null,0]
["N:","N:",null,null,null,null,null,0]
["VERSION:","VERSION:",null,null,null,null,null,0]
["BEGIN:","BEGIN:",null,null,null,null,null,0]
["END:","END:",null,null,null,null,null,0]
["NOTE:","NOTE:",null,null,null,null,null,0]
["ORG:","ORG:",null,null,null,null,null,0]
["ADR;work:","ADR;","work:",null,null,null,null,0]
["FN:","FN:",null,null,null,null,null,0]
["N:","N:",null,null,null,null,null,0]
["VERSION:","VERSION:",null,null,null,null,null,0]
["BEGIN:","BEGIN:",null,null,null,null,null,0]
["END:","END:",null,null,null,null,null,0]
["TITLE:","TITLE:",null,null,null,null,null,0]
["ORG:","ORG:",null,null,null,null,null,0]
["TEL;work:","TEL;","work:",null,null,null,null,0]
[null,null,null,null,null,null,null,0]
["ADR;work:","ADR;","work:",null,null,null,null,0]
["FN:","FN:",null,null,null,null,null,0]
["N:","N:",null,null,null,null,null,0]
["VERSION:","VERSION:",null,null,null,null,null,0]
["BEGIN:","BEGIN:",null,null,null,null,null,0]
["END:","END:",null,null,null,null,null,0]
["TITLE:","TITLE:",null,null,null,null,null,0]
["ORG:","ORG:",null,null,null,null,null,0]
["EMAIL;other;pref:","EMAIL;","other;","pref:",null,null,null,0]
["TEL;mobile:","TEL;","mobile:",null,null,null,null,0]
["TEL;work:","TEL;","work:",null,null,null,null,0]
[null,null,null,null,null,null,null,0]
["ADR;work:","ADR;","work:",null,null,null,null,0]
["FN:","FN:",null,null,null,null,null,0]
["N:","N:",null,null,null,null,null,0]
["VERSION:","VERSION:",null,null,null,null,null,0]
["BEGIN:","BEGIN:",null,null,null,null,null,0]
["BEGIN:","BEGIN:",null,null,null,null,null,0]

{"sheet":"Capture","index":2,"n_rows":164,"n_cols":1,"rows_kept":164,"cut":false,"hidden":false,"merged":[]}
["END:"]
["EMAIL;TYPE=other,pref:"]
["N:"]
["VERSION:"]
["BEGIN:"]
["FN:"]
["EMAIL;TYPE=other:"]
["TITLE:"]
["ADR;TYPE=work:"]
["ORG:"]
["EMAIL;TYPE=work,pref:"]
["TEL;TYPE=mobile:"]
["TEL;TYPE=work:"]
["URL:"]
["EMAIL:"]
["TEL;TYPE=other:"]
["TEL;TYPE=work_pager:"]
["TEL;TYPE=work_fax:"]
["BDAY:"]
["TEL;TYPE=home:"]
["TEL;TYPE=pager:"]
["EMAIL;TYPE=work:"]
["TEL;WORK;VOICE:"]
["TEL;type=CELL:"]
["CATEGORIES:"]
["EMAIL;type=INTERNET;type=HOME;type=pref:"]
["PHOTO;ENCODING=b:"]
["X-SOCIALPROFILE;type=Twitter:"]
["item1.X-ABLabel:"]
["item1.X-ABRELATEDNAMES;type=pref:"]
["X-SOCIALPROFILE;type=Facebook:"]
["TEL;type=CELL;type=VOICE;type=pref:"]
["EMAIL;type=INTERNET;type=OTHER;type=pref:"]
["ADR;TYPE=HOME;type=pref:"]
["TEL;type=MAIN:"]
["TEL;type=WORK;type=VOICE;type=pref:"]
["EMAIL;type=INTERNET;type=HOME:"]
["EMAIL;type=INTERNET;type=WORK;type=pref:"]
["NOTE:"]
["TEL;type=CELL;type=VOICE:"]
["TEL;type=WORK;type=VOICE:"]
["item4.X-ABLabel:"]
["item2.X-ABLabel:"]
["PHOTO;VALUE=URL;TYPE=JPEG:"]
["URL;type=HOME:"]
["item1.URL;type=pref:"]
["TEL;type=HOME;type=VOICE;type=pref:"]
["EMAIL;type=INTERNET;type=OTHER:"]
["TEL;type=OTHER;type=VOICE;type=pref:"]
["item5.X-ABLabel:"]
["item4.URL:"]
["item3.X-ABLabel:"]
["item3.URL:"]
["item2.URL:"]
["EMAIL;type=INTERNET;type=EMAIL;type=pref:"]
["ADR;TYPE=WORK;type=pref:"]
["ADR;TYPE=OTHER:"]
["TEL;type=HOME;type=VOICE:"]
["TEL;type=OTHER;type=VOICE:"]
["item1.IMPP;X-SERVICE-TYPE=AIMInstant;type=pref:"]
["TEL;type=WORK;type=FAX:"]
["TEL;type=HOME;type=FAX;type=pref:"]
["EMAIL;type=INTERNET;type=WORK:"]
["X-SOCIALPROFILE;type=LinkedIn:"]
["item1.IMPP;X-SERVICE-TYPE=AIM;type=pref:"]
["ADR;TYPE=WORK:"]
["TEL;type=WORK;type=FAX;type=pref:"]
["IMPP;X-SERVICE-TYPE=AIMInstant;type=HOME;type=pref:"]
["item3.X-ABRELATEDNAMES:"]
["item2.X-ABRELATEDNAMES;type=pref:"]
["URL;type=WORK:"]
["X-SOCIALPROFILE;type=plus.google.com:"]
["TEL;type=MAIN;type=pref:"]
["ADR;TYPE=HOME:"]
["item2.X-ABRELATEDNAMES:"]
["IMPP;X-SERVICE-TYPE=AIMInstant;type=WORK;type=pref:"]
["URL;type=WORK;type=pref:"]
["X-SOCIALPROFILE;type=klout:"]
["item5.X-ABRELATEDNAMES;type=pref:"]
["X-SOCIALPROFILE;type=Google+:"]
["TEL;type=HOME;type=FAX:"]
["TEL;type=HTTP:"]
["X-SOCIALPROFILE;type=gravatar:"]
["ADR;TYPE=OTHER;type=pref:"]
["item2.IMPP;X-SERVICE-TYPE=AIM;type=pref:"]
["EMAIL;type=INTERNET;type=EMAIL:"]
["item1.IMPP;X-SERVICE-TYPE=FacebookInstant;type=pref:"]
["item1.X-ABDATE;type=pref:"]
["TEL;type=PAGER:"]
["item4.X-ABRELATEDNAMES:"]
["URL;type=HOME;type=pref:"]
["TEL;type=IPHONE;type=CELL;type=VOICE:"]
["TEL;type=COMPANY;type=VOICE;type=pref:"]
["X-SOCIALPROFILE;type=Flickr:"]
["X-SOCIALPROFILE;type=AngelList:"]
["item1.URL:"]
["item5.URL:"]
["TEL;type=PHONE;type=VOICE;type=pref:"]
["IMPP;X-SERVICE-TYPE=JabberInstant;type=HOME:"]
["item3.X-ABRELATEDNAMES;type=pref:"]
["X-SOCIALPROFILE;type=klout.com:"]
["IMPP;X-SERVICE-TYPE=JabberInstant;type=HOME;type=pref:"]
["EMAIL;type=INTERNET;type=CELL;type=pref:"]
["TEL;type=IPHONE;type=CELL;type=VOICE;type=pref:"]
["CLASS:"]
["EMAIL;TYPE=INTERNET:"]
["NICKNAME:"]
["TEL;TYPE=WORK:"]
["URL;TYPE=WORK:"]
["EMAIL;TYPE=INTERNET;TYPE=WORK:"]
["TEL;TYPE=WORK;TYPE=FAX:"]
["TEL;TYPE=CELL:"]
["TEL:"]
["EMAIL;TYPE=INTERNET;TYPE=HOME:"]
["TEL;TYPE=HOME:"]
["TEL;TYPE=PAGER:"]
["REV:"]
["item1.EMAIL;type=INTERNET;type=pref:"]
["item1.X-ABADR:"]
["item1.X-ABLABEL:"]
["TEL;TYPE=OTHER;TYPE=pref;TYPE=VOICE:"]
["X-ABShowAs:"]
["EMAIL;PREF;INTERNET:"]
["ADR;WORK:"]
["TEL;HOME;VOICE:"]
["LABEL;WORK:"]
["ADR;TYPE=other:"]
["ADR;TYPE=home:"]
["item1.X-ABDATE:"]
["EMAIL;HOME:"]
["TEL;TYPE=VOICE,HOME,PREF:"]
["TEL;TYPE=VOICE,CELL,PREF:"]
["TEL;TYPE=VOICE,WORK:"]
["EMAIL;PREF:"]
["TEL;CELL:"]
["TEL;HOME:"]
["TEL;WORK:"]
["TEL;WORK;FAX:"]
["NOTE;ENCODING=QUOTED-PRINTABLE:"]
["ADR;WORK;CHARSET=UTF-8;ENCODING=QUOTED-PRINTABLE:"]
["TEL;FAX:"]
["EMAIL;PREF;WORK:"]
["TEL;VOICE:"]
["EMAIL;X-Obsolete:"]
["EMAIL;WORK:"]
["ADR;WORK;ENCODING=QUOTED-PRINTABLE:"]
["X-ANDROID-CUSTOM;CHARSET=UTF-8;ENCODING=QUOTED-PRINTABLE:"]
["TITLE;CHARSET=UTF-8;ENCODING=QUOTED-PRINTABLE:"]
["TEL;PREF:"]
["FN;CHARSET=UTF-8;ENCODING=QUOTED-PRINTABLE:"]
["N;CHARSET=UTF-8;ENCODING=QUOTED-PRINTABLE:"]
["TEL;PAGER:"]
["EMAIL;PREF;HOME:"]
["TEL;CELL;PREF:"]
["TEL;:"]
["PRODID:"]
["item5.X-ABRELATEDNAMES:"]
["item4.X-ABRELATEDNAMES;type=pref:"]
["TEL;type=PHONE;type=VOICE:"]
["TEL;type=;type=FAX:"]
["TEL;type=;type=FAX;type=pref:"]
["ADR;TYPE=ADDRESS;type=pref:"]
["TEL;TYPE=other_fax:"]
["TEL;TYPE=main:"]

{"sheet":"Instructions & FAQ","index":3,"n_rows":17,"n_cols":2,"rows_kept":17,"cut":false,"hidden":false,"merged":[]}
[]
[]
[]
[null,"כיצד להשתמש בתוכנית זו?"]
[null,"כאשר קובץ אקסל זה נפתח, הוא ינסה להפעיל מאקרו שמבצע המרה מ- VCF ל -  CSV. אם נתבקש, לחץ על \"הפוך תוכן לזמין\" כדי לאפשר זאת."]
[null,"ברגע שהמקרו יושלם, המידע המומר יאוחסן בקובץ Excel XLS, קובץ ANSI רגיל של CSV ו-  UTF-8.\nקובץ הפלט -  CSV יהיה באותה ספרייה כמו קובץ הקלט -  VCF"]
[null,"המאקרו מצפה כי קובץ ה - VCF  שאתה בוחר מכיל את כל האנשי קשר שלך בקובץ יחיד. אם יש לך קבצי VCF מרובים, תסתכל בהוראות מתחת"]
[]
[]
[null,"יש לך קבצי VSF מרובים?"]
[null,"תוכניות מסוימות מייצאות כל איש קשר לתוך קובץ VCF משלו, במקום לייצא את כל אנשי הקשר לתוך קובץ VCF יחיד. זהו תהליך מהיר וקל מאוד לשלב את כל קבצי VCF לתוך קובץ VCF יחיד לעיבוד.                                                             אם אתה ב - Windows, אתה יכול בקלות לעשות את זה מפקודת DOS.\nהדרך הקלה ביותר היא לנווט אל התיקייה המכילה קבצי VCF מרובים ב סייר הקבצים, ולאחר מכן כאשר יש לך את התיקייה פתוחה עם כל הקבצים VCF, לחץ על שורת הנתיב, תמחק את כל מה שנמצא שם, הקלד CMD ולחץ על אנטר.\nכאשר חלון שחור נפתח (צו הפקודה), הקלד את השורה הזו ולחץ על אנטר:\nהעתק *.vcf combined.vcf \nפקודה זו תשים את כל קבצי VCF לתוך הקובץ שנקרא משולב. vcf שבו התוכנית יכולה להשתמש כדי להמיר את כולם בבת אחת\n"]
[]
[null,"תווים בינלאומיים שאינם מופיעים כהלכה?"]
[null,"רוב הנושאים הקשורים לדמויות בינלאומיות / מודגשות שלא מופיעות כראוי קשורים לדרך שבה קובץ הכניסה מקודד. Excel מצפה קבצים להיות בפורמט קובץ ANSI או Windows, ותוכניות רבות לייצא קובץ VCF לפורמט קובץ U12/ UTF-8. תיקון זה קל, כדלקמן:                                                                                                                                                                                                                                                                                                         הורד והתקן את Notepad++. זה נמצא כאן: https://notepad-plus-plus.org/downloads/                                                                                                                                                                                            תעתיק את הקובץ VCF כדי לא לבלגן את הקובץ VCF המקורי                                                                                                                                                                                                                                - פתח את הקובץ VCF שלך ב־ Notepad+                                                                                                                                                                                                                                                                    לחץ על תפריט פורמט ובחר \"קודד ב - ANSI\"                                                                                                                                                                                                                                                    שמור את הקובץ המומר באמצעות תפריט הקובץ -                                                                                                                                                                                                                                                            - נסה שוב באמצעות מאקרו זה."]
[]
[null,"שאלות / בעיות אחרות ?"]
[null," אם יש נושאים אחרים או שאלות, אנא אל תהסס לפרסם שאלות על SourceForge או להגיע אליי באמצעות דואר אלקטרוני בGhadlock@gmail.com"]

{"sheet":"Outlook Import Fields","index":4,"n_rows":117,"n_cols":10,"rows_kept":117,"cut":false,"hidden":false,"merged":[]}
[]
[]
[]
[]
[]
[null,null,"Internal Outlook Name","English - Display Names",null,"English  - Display Names","Internal Outlook Name"]
[null,null,"Account","Account",null,"Account","Account"]
[null,null,"Anniversary","Anniversary",null,"Address Selected","SelectedMailingAddress"]
[null,null,"AssistantName","Assistant's Name",null,"Anniversary","Anniversary"]
[null,null,"AssistantTelephoneNumber","Assistant's Phone",null,"Assistant's Name","AssistantName"]
[null,null,"BillingInformation","Billing Information",null,"Assistant's Phone","AssistantTelephoneNumber"]
[null,null,"Birthday","Birthday",null,"Billing Information","BillingInformation"]
[null,null,"Body","Notes",null,"Birthday","Birthday"]
[null,null,"Business2TelephoneNumber","Business Phone 2",null,"Business Address","BusinessAddress"]
[null,null,"BusinessAddress","Business Address",null,"Business Address City","BusinessAddressCity",null,null,"BusinessAddressCity"]
[null,null,"BusinessAddressCity","Business Address City",null,"Business Address Country","BusinessAddressCountry",null,null,"BusinessAddressCountry"]
[null,null,"BusinessAddressCountry","Business Address Country",null,"Business Address PO Box","BusinessAddressPostOfficeBox",null,null,"BusinessAddressPostOfficeBox"]
[null,null,"BusinessAddressPostalCode","Business Address Postal Code",null,"Business Address Postal Code","BusinessAddressPostalCode",null,null,"BusinessAddressPostalCode"]
[null,null,"BusinessAddressPostOfficeBox","Business Address PO Box",null,"Business Address State","BusinessAddressState",null,null,"BusinessAddressState"]
[null,null,"BusinessAddressState","Business Address State",null,"Business Address Street","BusinessAddressStreet",null,null,"BusinessAddressStreet"]
[null,null,"BusinessAddressStreet","Business Address Street",null,"Business Fax","BusinessFaxNumber",null,null,"HomeAddressCity"]
[null,null,"BusinessFaxNumber","Business Fax",null,"Business Home Page","BusinessHomePage",null,null,"HomeAddressCountry"]
[null,null,"BusinessHomePage","Business Home Page",null,"Business Phone","BusinessTelephoneNumber",null,null,"HomeAddressPostOfficeBox"]
[null,null,"BusinessTelephoneNumber","Business Phone",null,"Business Phone 2","Business2TelephoneNumber",null,null,"HomeAddressPostalCode"]
[null,null,"CallbackTelephoneNumber","Callback",null,"Callback","CallbackTelephoneNumber",null,null,"HomeAddressState"]
[null,null,"CarTelephoneNumber","Car Phone",null,"Car Phone","CarTelephoneNumber",null,null,"HomeAddressStreet"]
[null,null,"Categories","Categories",null,"Categories","Categories",null,null,"OtherAddressCity"]
[null,null,"Children","Children",null,"Children","Children",null,null,"OtherAddressCountry"]
[null,null,"CompanyMainTelephoneNumber","Company Main Phone",null,"City","MailingAddressCity",null,null,"OtherAddressPostOfficeBox"]
[null,null,"CompanyName","Company",null,"Company","CompanyName",null,null,"OtherAddressPostalCode"]
[null,null,"ComputerNetworkName","Computer Network Name",null,"Company Main Phone","CompanyMainTelephoneNumber",null,null,"OtherAddressState"]
[null,null,"CreationTime","Created",null,"Computer Network Name","ComputerNetworkName",null,null,"OtherAddressStreet"]
[null,null,"CustomerID","Customer ID",null,"Country/Region","MailingAddressCountry"]
[null,null,"Department","Department",null,"Created","CreationTime"]
[null,null,"Email1Address","Email1 Address",null,"Customer ID","CustomerID"]
[null,null,"Email1AddressType","Email1 Address Type",null,"Department","Department"]
[null,null,"Email1DisplayName","Email1 Display Name",null,"Email1 Address","Email1Address"]
[null,null,"Email2Address","Email2 Address",null,"Email1 Address Type","Email1AddressType"]
[null,null,"Email2AddressType","Email2 Address Type",null,"Email1 Display Name","Email1DisplayName"]
[null,null,"Email2DisplayName","Email2 Display Name",null,"Email2 Address","Email2Address"]
[null,null,"Email3Address","Email3 Address",null,"Email2 Address Type","Email2AddressType"]
[null,null,"Email3AddressType","Email3 Address Type",null,"Email2 Display Name","Email2DisplayName"]
[null,null,"Email3DisplayName","Email3 Display Name",null,"Email3 Address","Email3Address"]
[null,null,"EntryID","EntryID",null,"Email3 Address Type","Email3AddressType"]
[null,null,"FileAs","File As",null,"Email3 Display Name","Email3DisplayName"]
[null,null,"FileUnderID","File Under ID",null,"EntryID","EntryID"]
[null,null,"FirstName","First Name",null,"File As","FileAs"]
[null,null,"FTPSite","FTP Site",null,"File Under ID","FileUnderID"]
[null,null,"FullName","Full Name",null,"First Name","FirstName"]
[null,null,"Gender","Gender",null,"FTP Site","FTPSite"]
[null,null,"GovernmentIDNumber","Government ID Number",null,"Full Name","FullName"]
[null,null,"Hobby","Hobbies",null,"Gender","Gender"]
[null,null,"Home2TelephoneNumber","Home Phone 2",null,"Government ID Number","GovernmentIDNumber"]
[null,null,"HomeAddress","Home Address",null,"Hobbies","Hobby"]
[null,null,"HomeAddressCity","Home Address City",null,"Home Address","HomeAddress"]
[null,null,"HomeAddressCountry","Home Address Country",null,"Home Address City","HomeAddressCity"]
[null,null,"HomeAddressPostalCode","Home Address Postal Code",null,"Home Address Country","HomeAddressCountry"]
[null,null,"HomeAddressPostOfficeBox","Home Address PO Box",null,"Home Address PO Box","HomeAddressPostOfficeBox"]
[null,null,"HomeAddressState","Home Address State",null,"Home Address Postal Code","HomeAddressPostalCode"]
[null,null,"HomeAddressStreet","Home Address Street",null,"Home Address State","HomeAddressState"]
[null,null,"HomeFaxNumber","Home Fax",null,"Home Address Street","HomeAddressStreet"]
[null,null,"HomeTelephoneNumber","Home Phone",null,"Home Fax","HomeFaxNumber"]
[null,null,"IMAddress","IM Address",null,"Home Phone","HomeTelephoneNumber"]
[null,null,"Importance","Importance",null,"Home Phone 2","Home2TelephoneNumber"]
[null,null,"Initials","Initials",null,"IM Address","IMAddress"]
[null,null,"InternetFreeBusyAddress","Internet Free/Busy Address",null,"Importance","Importance"]
[null,null,"ISDNNumber","ISDN",null,"Initials","Initials"]
[null,null,"JobTitle","Job Title",null,"Internet Free/Busy Address","InternetFreeBusyAddress"]
[null,null,"Language","Language",null,"ISDN","ISDNNumber"]
[null,null,"LastModificationTime","Modified",null,"Job Title","JobTitle"]
[null,null,"LastName","Last Name",null,"Language","Language"]
[null,null,"MailingAddress","Mailing Address",null,"Last Name","LastName"]
[null,null,"MailingAddressCity","City",null,"Mailing Address","MailingAddress"]
[null,null,"MailingAddressCountry","Country/Region",null,"Manager's Name","ManagerName"]
[null,null,"MailingAddressPostalCode","Postal Code",null,"Message Class","MessageClass"]
[null,null,"MailingAddressPostOfficeBox","PO Box",null,"Middle Name","MiddleName"]
[null,null,"MailingAddressState","Prov/State",null,"Mileage","Mileage"]
[null,null,"MailingAddressStreet","Street Address",null,"Mobile Phone","MobileTelephoneNumber"]
[null,null,"ManagerName","Manager's Name",null,"Modified","LastModificationTime"]
[null,null,"MessageClass","Message Class",null,"Nick Name","NickName"]
[null,null,"MiddleName","Middle Name",null,"Notes","Body"]
[null,null,"Mileage","Mileage",null,"Office Location","OfficeLocation"]
[null,null,"MobileTelephoneNumber","Mobile Phone",null,"Organizational ID Number","OrganizationalIDNumber"]
[null,null,"NickName","Nick Name",null,"Other Address","OtherAddress"]
[null,null,"OfficeLocation","Office Location",null,"Other Address City","OtherAddressCity"]
[null,null,"OrganizationalIDNumber","Organizational ID Number",null,"Other Address Country","OtherAddressCountry"]
[null,null,"OtherAddress","Other Address",null,"Other Address PO Box","OtherAddressPostOfficeBox"]
[null,null,"OtherAddressCity","Other Address City",null,"Other Address Postal Code","OtherAddressPostalCode"]
[null,null,"OtherAddressCountry","Other Address Country",null,"Other Address State","OtherAddressState"]
[null,null,"OtherAddressPostalCode","Other Address Postal Code",null,"Other Address Street","OtherAddressStreet"]
[null,null,"OtherAddressPostOfficeBox","Other Address PO Box",null,"Other Fax","OtherFaxNumber"]
[null,null,"OtherAddressState","Other Address State",null,"Other Phone","OtherTelephoneNumber"]
[null,null,"OtherAddressStreet","Other Address Street",null,"Outlook Internal Version","OutlookInternalVersion"]
[null,null,"OtherFaxNumber","Other Fax",null,"Outlook Version","OutlookVersion"]
[null,null,"OtherTelephoneNumber","Other Phone",null,"Pager","PagerNumber"]
[null,null,"OutlookInternalVersion","Outlook Internal Version",null,"Personal Home Page","PersonalHomePage"]
[null,null,"OutlookVersion","Outlook Version",null,"PO Box","MailingAddressPostOfficeBox"]
[null,null,"PagerNumber","Pager",null,"Postal Code","MailingAddressPostalCode"]
[null,null,"PersonalHomePage","Personal Home Page",null,"Primary Phone","PrimaryTelephoneNumber"]
[null,null,"PrimaryTelephoneNumber","Primary Phone",null,"Profession","Profession"]
[null,null,"Profession","Profession",null,"Prov/State","MailingAddressState"]
[null,null,"RadioTelephoneNumber","Radio Phone",null,"Radio Phone","RadioTelephoneNumber"]
[null,null,"ReferredBy","Referred By",null,"Referred By","ReferredBy"]
[null,null,"SelectedMailingAddress","Address Selected",null,"Sensitivity","Sensitivity"]
[null,null,"Sensitivity","Sensitivity",null,"Size","Size"]
[null,null,"Size","Size",null,"Spouse","Spouse"]
[null,null,"Spouse","Spouse",null,"Street Address","MailingAddressStreet"]
[null,null,"Subject","Subject",null,"Subject","Subject"]
[null,null,"Suffix","Suffix",null,"Suffix","Suffix"]
[null,null,"TelexNumber","Telex",null,"Telex","TelexNumber"]
[null,null,"Title","Title",null,"Title","Title"]
[null,null,"TTYTDDTelephoneNumber","TTY/TDD Phone",null,"TTY/TDD Phone","TTYTDDTelephoneNumber"]
[null,null,"User1","User1",null,"User1","User1"]
[null,null,"User2","User2",null,"User2","User2"]
[null,null,"User3","User3",null,"User3","User3"]
[null,null,"User4","User4",null,"User4","User4"]
[null,null,"WebPage","Web Page",null,"Web Page","WebPage"]

{"sheet":"Outlook Contacts","index":5,"n_rows":173,"n_cols":4,"rows_kept":173,"cut":false,"hidden":false,"merged":[]}
[]
[null,null,"Name","Description"]
[null,null,"Account","Returns or sets a String (string in C#) representing the account for the contact. Read/write. (Inherited from _ContactItem.)"]
[null,null,"Actions","Returns an Actions collection that represents all the available actions for the item. Read-only. (Inherited from _ContactItem.)"]
[null,null,"Anniversary","This object, member, or enumeration is deprecated and is not intended to be used in your code. (Inherited from _ContactItem.)"]
[null,null,"Application","Returns an Application object that represents the parent Outlook application for the object. Read-only. (Inherited from _ContactItem.)"]
[null,null,"AssistantName","Returns or sets a String (string in C#) representing the name of the person who is the assistant for the contact. Read/write. (Inherited from _ContactItem.)"]
[null,null,"AssistantTelephoneNumber","Returns or sets a String (string in C#) representing the telephone number of the person who is the assistant for the contact. Read/write. (Inherited from _ContactItem.)"]
[null,null,"Attachments","Returns an Attachments object that represents all the attachments for the specified item. Read-only. (Inherited from _ContactItem.)"]
[null,null,"AutoResolvedWinner","Returns a Boolean (bool in C#) that determines if the item is a winner of an automatic conflict resolution. Read-only. (Inherited from _ContactItem.)"]
[null,null,"BillingInformation","Returns or sets a String (string in C#) representing the billing information associated with the Outlook item. Read/write. (Inherited from _ContactItem.)"]
[null,null,"Birthday","Returns or sets a DateTime indicating the birthday for the contact. Read/write. (Inherited from _ContactItem.)"]
[null,null,"Body","Returns or sets a String (string in C#) representing the clear-text body of the Outlook item. Read/write. (Inherited from _ContactItem.)"]
[null,null,"Business2TelephoneNumber","Returns or sets a String (string in C#) representing the second business telephone number for the contact. Read/write. (Inherited from _ContactItem.)"]
[null,null,"BusinessAddress","Returns or sets a String (string in C#) representing the whole, unparsed business address for the contact. Read/write. (Inherited from _ContactItem.)"]
[null,null,"BusinessAddressCity","Returns or sets a String (string in C#) representing the city name portion of the business address for the contact. Read/write. (Inherited from _ContactItem.)"]
[null,null,"BusinessAddressCountry","Returns or sets a String (string in C#) representing the country/region code portion of the business address for the contact. Read/write. (Inherited from _ContactItem.)"]
[null,null,"BusinessAddressPostalCode","Returns or sets a String (string in C#) representing the postal code (zip code) portion of the business address for the contact. Read/write. (Inherited from _ContactItem.)"]
[null,null,"BusinessAddressPostOfficeBox","Returns or sets a String (string in C#) representing the post office box number portion of the business address for the contact. Read/write. (Inherited from _ContactItem.)"]
[null,null,"BusinessAddressState","Returns or sets a String (string in C#) representing the state code portion of the business address for the contact. Read/write. (Inherited from _ContactItem.)"]
[null,null,"BusinessAddressStreet","Returns or sets a String (string in C#) representing the street address portion of the business address for the contact. Read/write. (Inherited from _ContactItem.)"]
[null,null,"BusinessCardLayoutXml","Returns or sets a String (string in C#) that represents the XML markup for the layout of the Electronic Business Card. Read/write. (Inherited from _ContactItem.)"]
[null,null,"BusinessCardType","Returns an OlBusinessCardType constant that specifies the type of Electronic Business Card used by this contact. Read-only. (Inherited from _ContactItem.)"]
[null,null,"BusinessFaxNumber","Returns or sets a String (string in C#) representing the business fax number for the contact. Read/write. (Inherited from _ContactItem.)"]
[null,null,"BusinessHomePage","Returns or sets a String (string in C#) representing the URL of the business Web page for the contact. Read/write. (Inherited from _ContactItem.)"]
[null,null,"BusinessTelephoneNumber","Returns or sets a String (string in C#) representing the first business telephone number for the contact. Read/write. (Inherited from _ContactItem.)"]
[null,null,"CallbackTelephoneNumber","Returns or sets a String (string in C#) representing the callback telephone number for the contact. Read/write. (Inherited from _ContactItem.)"]
[null,null,"CarTelephoneNumber","Returns or sets a String (string in C#) representing the car telephone number for the contact. Read/write. (Inherited from _ContactItem.)"]
[null,null,"Categories","Returns or sets a String (string in C#) representing the categories assigned to the Outlook item. Read/write. (Inherited from _ContactItem.)"]
[null,null,"Children","Returns or sets a String (string in C#) representing the names of the children of the contact. Read/write. (Inherited from _ContactItem.)"]
[null,null,"Class","Returns an OlObjectClass constant indicating the object's class. Read-only. (Inherited from _ContactItem.)"]
[null,null,"Companies","Returns or sets a String (string in C#) representing the names of the companies associated with the Outlook item. Read/write. (Inherited from _ContactItem.)"]
[null,null,"CompanyAndFullName","Returns a String (string in C#) representing the concatenated company name and full name for the contact. Read-only. (Inherited from _ContactItem.)"]
[null,null,"CompanyLastFirstNoSpace","Returns a String (string in C#) representing the company name for the contact followed by the concatenated last name, first name, and middle name with no space between the last and first names. Read-only. (Inherited from _ContactItem.)"]
[null,null,"CompanyLastFirstSpaceOnly","Returns a String (string in C#) representing the company name for the contact followed by the concatenated last name, first name, and middle name with spaces between the last, first, and middle names. Read-only. (Inherited from _ContactItem.)"]
[null,null,"CompanyMainTelephoneNumber","Returns or sets a String (string in C#) representing the company main telephone number for the contact. Read/write. (Inherited from _ContactItem.)"]
[null,null,"CompanyName","Returns or sets a String (string in C#) representing the company name for the contact. Read/write. (Inherited from _ContactItem.)"]
[null,null,"ComputerNetworkName","Returns or sets a String (string in C#) representing the name of the computer network for the contact. Read/write. (Inherited from _ContactItem.)"]
[null,null,"Conflicts","Return the Conflicts object that represents the items that are in conflict for any Outlook item object. Read-only. (Inherited from _ContactItem.)"]
[null,null,"ConversationID","Returns a String (string in C#) that uniquely identifies a Conversation object that the ContactItem object belongs to. Read-only. (Inherited from _ContactItem.)"]
[null,null,"ConversationIndex","Returns a String (string in C#) representing the index of the conversation thread of the Outlook item. Read-only. (Inherited from _ContactItem.)"]
[null,null,"ConversationTopic","Returns a String (string in C#) representing the topic of the conversation thread of the Outlook item. Read-only. (Inherited from _ContactItem.)"]
[null,null,"CreationTime","Returns a DateTime indicating the creation time for the Outlook item. Read-only. (Inherited from _ContactItem.)"]
[null,null,"CustomerID","Returns or sets a String (string in C#) representing the customer ID for the contact. Read/write. (Inherited from _ContactItem.)"]
[null,null,"Department","Returns or sets a String (string in C#) representing the department name for the contact. Read/write. (Inherited from _ContactItem.)"]
[null,null,"DownloadState","Returns a constant that belongs to the OlDownloadState enumeration indicating the download state of the item. Read-only. (Inherited from _ContactItem.)"]
[null,null,"Email1Address","Returns or sets a String (string in C#) representing the e-mail address of the first e-mail entry for the contact. Read/write. (Inherited from _ContactItem.)"]
[null,null,"Email1AddressType","Returns or sets a String (string in C#) representing the address type (such as EX or SMTP) of the first e-mail entry for the contact. Read/write. (Inherited from _ContactItem.)"]
[null,null,"Email1DisplayName","Returns a String (string in C#) representing the display name of the first e-mail address for the contact. Read/write. (Inherited from _ContactItem.)"]
[null,null,"Email1EntryID","Returns a String (string in C#) representing the Entry ID of the first e-mail address for the contact. Read-only. (Inherited from _ContactItem.)"]
[null,null,"Email2Address","Returns or sets a String (string in C#) representing the e-mail address of the second e-mail entry for the contact. Read/write. (Inherited from _ContactItem.)"]
[null,null,"Email2AddressType","Returns or sets a String (string in C#) representing the address type (such as EX or SMTP) of the second e-mail entry for the contact. Read/write. (Inherited from _ContactItem.)"]
[null,null,"Email2DisplayName","Returns a String (string in C#) representing the display name of the second e-mail entry for the contact. Read/write. (Inherited from _ContactItem.)"]
[null,null,"Email2EntryID","Returns a String (string in C#) representing the Entry ID of the second e-mail entry for the contact. Read-only. (Inherited from _ContactItem.)"]
[null,null,"Email3Address","Returns or sets a String (string in C#) representing the e-mail address of the third e-mail entry for the contact. Read/write. (Inherited from _ContactItem.)"]
[null,null,"Email3AddressType","Returns or sets a String (string in C#) representing the address type (such as EX or SMTP) of the third e-mail entry for the contact. Read/write. (Inherited from _ContactItem.)"]
[null,null,"Email3DisplayName","Returns a String (string in C#) representing the display name of the third e-mail entry for the contact. Read/write. (Inherited from _ContactItem.)"]
[null,null,"Email3EntryID","Returns a String (string in C#) representing the entry ID of the third e-mail entry for the contact. Read-only. (Inherited from _ContactItem.)"]
[null,null,"EntryID","Returns a String (string in C#) representing the unique Entry ID of the object. Read-only. (Inherited from _ContactItem.)"]
[null,null,"FileAs","Returns or sets a String (string in C#) indicating the default keyword string assigned to the contact when it is filed. Read/write. (Inherited from _ContactItem.)"]
[null,null,"FirstName","Returns or sets a String (string in C#) representing the first name for the contact. Read/write. (Inherited from _ContactItem.)"]
[null,null,"FormDescription","Returns the FormDescription object that represents the form description for the specified Outlook item. Read-only. (Inherited from _ContactItem.)"]
[null,null,"FTPSite","Returns or sets a String (string in C#) representing the FTP site entry for the contact. Read/write. (Inherited from _ContactItem.)"]
[null,null,"FullName","Returns or sets a String (string in C#) specifying the whole, unparsed full name for the contact. Read/write. (Inherited from _ContactItem.)"]
[null,null,"FullNameAndCompany","Returns a String (string in C#) representing the full name and company of the contact by concatenating the values of the FullName and CompanyName properties. Read-only. (Inherited from _ContactItem.)"]
[null,null,"Gender","Returns or sets an OlGender constant indicating the gender of the contact. Read/write. (Inherited from _ContactItem.)"]
[null,null,"GetInspector","Returns an Inspector object that represents an inspector initialized to contain the specified item. Read-only. (Inherited from _ContactItem.)"]
[null,null,"GovernmentIDNumber","Returns or sets a String (string in C#) representing the government ID number for the contact. Read/write. (Inherited from _ContactItem.)"]
[null,null,"HasPicture","Returns a Boolean (bool in C#) value that is True if a Contacts item has a picture associated with it. Read-only (Inherited from _ContactItem.)"]
[null,null,"Hobby","Returns or sets a String (string in C#) representing the hobby for the contact. Read/write. (Inherited from _ContactItem.)"]
[null,null,"Home2TelephoneNumber","Returns or sets a String (string in C#) representing the second home telephone number for the contact. Read/write. (Inherited from _ContactItem.)"]
[null,null,"HomeAddress","Returns or sets a String (string in C#) representing the full, unparsed text of the home address for the contact. Read/write. (Inherited from _ContactItem.)"]
[null,null,"HomeAddressCity","Returns or sets a String (string in C#) representing the city portion of the home address for the contact. Read/write. (Inherited from _ContactItem.)"]
[null,null,"HomeAddressCountry","Returns or sets a String (string in C#) representing the country/region portion of the home address for the contact. Read/write. (Inherited from _ContactItem.)"]
[null,null,"HomeAddressPostalCode","Returns or sets a String (string in C#) representing the postal code portion of the home address for the contact. Read/write. (Inherited from _ContactItem.)"]
[null,null,"HomeAddressPostOfficeBox","Returns or sets a String (string in C#) the post office box number portion of the home address for the contact. Read/write. (Inherited from _ContactItem.)"]
[null,null,"HomeAddressState","Returns or sets a String (string in C#) representing the state portion of the home address for the contact. Read/write. (Inherited from _ContactItem.)"]
[null,null,"HomeAddressStreet","Returns or sets a String (string in C#) representing the street portion of the home address for the contact. Read/write. (Inherited from _ContactItem.)"]
[null,null,"HomeFaxNumber","Returns or sets a String (string in C#) representing the home fax number for the contact. Read/write. (Inherited from _ContactItem.)"]
[null,null,"HomeTelephoneNumber","Returns or sets a String (string in C#) representing the first home telephone number for the contact. Read/write. (Inherited from _ContactItem.)"]
[null,null,"IMAddress","Returns or sets a String (string in C#) that represents a contact's Microsoft Instant Messenger address. Read/write. (Inherited from _ContactItem.)"]
[null,null,"Importance","Returns or sets an OlImportance constant indicating the relative importance level for the Outlook item. Read/write. (Inherited from _ContactItem.)"]
[null,null,"Initials","Returns or sets a String (string in C#) representing the initials for the contact. Read/write. (Inherited from _ContactItem.)"]
[null,null,"InternetFreeBusyAddress","Returns or sets a String (string in C#) corresponding to the Address box on the Details tab for a contact. Read/write. (Inherited from _ContactItem.)"]
[null,null,"IsConflict","Returns a Boolean (bool in C#) that determines if the item is in conflict. Read-only. (Inherited from _ContactItem.)"]
[null,null,"ISDNNumber","Returns or sets a String (string in C#) representing the ISDN number for the contact. Read/write. (Inherited from _ContactItem.)"]
[null,null,"IsMarkedAsTask","Returns a Boolean (bool in C#) value that indicates whether the ContactItem is marked as a task. Read-only. (Inherited from _ContactItem.)"]
[null,null,"ItemProperties","Returns an ItemProperties collection that represents all standard and user-defined properties associated with the Outlook item. Read-only. (Inherited from _ContactItem.)"]
[null,null,"JobTitle","Returns or sets a String (string in C#) representing the job title for the contact. Read/write. (Inherited from _ContactItem.)"]
[null,null,"Journal","Returns a Boolean (bool in C#) that indicates True if the transaction of the contact will be journalized. Read/write. (Inherited from _ContactItem.)"]
[null,null,"Language","Returns or sets a String (string in C#) that represents the language in which the contact writes messages. Read/write. (Inherited from _ContactItem.)"]
[null,null,"LastFirstAndSuffix","Returns a String (string in C#) representing the last name, first name, middle name, and suffix of the contact. Read-only. (Inherited from _ContactItem.)"]
[null,null,"LastFirstNoSpace","Returns a String (string in C#) representing the concatenated last name, first name, and middle name of the contact with no space between the last name and the first name. Read-only. (Inherited from _ContactItem.)"]
[null,null,"LastFirstNoSpaceAndSuffix","Returns a String (string in C#) that contains the last name, first name, and suffix of the user without a space. Read-only (Inherited from _ContactItem.)"]
[null,null,"LastFirstNoSpaceCompany","Returns a String (string in C#) representing the concatenated last name, first name, and middle name of the contact with no space between the last name and the first name. Read-only. (Inherited from _ContactItem.)"]
[null,null,"LastFirstSpaceOnly","Returns a String (string in C#) representing the concatenated last name, first name, and middle name of the contact with spaces between them. Read-only. (Inherited from _ContactItem.)"]
[null,null,"LastFirstSpaceOnlyCompany","Returns a String (string in C#) representing the concatenated last name, first name, and middle name of the contact with spaces between them. Read-only. (Inherited from _ContactItem.)"]
[null,null,"LastModificationTime","Returns a DateTime specifying the date and time that the Outlook item was last modified. Read-only. (Inherited from _ContactItem.)"]
[null,null,"LastName","Returns or sets a String (string in C#) representing the last name for the contact. Read/write. (Inherited from _ContactItem.)"]
[null,null,"LastNameAndFirstName","Returns a String (string in C#) representing the concatenated last name and first name for the contact. Read-only. (Inherited from _ContactItem.)"]
[null,null,"Links","This object, member, or enumeration is deprecated and is not intended to be used in your code. (Inherited from _ContactItem.)"]
[null,null,"MailingAddress","Returns or sets a String (string in C#) representing the full, unparsed selected mailing address for the contact. Read/write. (Inherited from _ContactItem.)"]
[null,null,"MailingAddressCity","Returns or sets a String (string in C#) representing the city name portion of the selected mailing address of the contact. Read/write. (Inherited from _ContactItem.)"]
[null,null,"MailingAddressCountry","Returns or sets a String (string in C#) representing the country/region code portion of the selected mailing address of the contact. Read/write. (Inherited from _ContactItem.)"]
[null,null,"MailingAddressPostalCode","Returns or sets a String (string in C#) representing the postal code (zip code) portion of the selected mailing address of the contact. Read/write. (Inherited from _ContactItem.)"]
[null,null,"MailingAddressPostOfficeBox","Returns or sets a String (string in C#) representing the post office box number portion of the selected mailing address of the contact. Read/write. (Inherited from _ContactItem.)"]
[null,null,"MailingAddressState","Returns or sets a String (string in C#) representing the state code portion for the selected mailing address of the contact. Read/write. (Inherited from _ContactItem.)"]
[null,null,"MailingAddressStreet","Returns or sets a String (string in C#) representing the street address portion of the selected mailing address of the contact. Read/write. (Inherited from _ContactItem.)"]
[null,null,"ManagerName","Returns or sets a String (string in C#) representing the manager name for the contact. Read/write. (Inherited from _ContactItem.)"]
[null,null,"MAPIOBJECT","This object, member, or enumeration is deprecated and is not intended to be used in your code. (Inherited from _ContactItem.)"]
[null,null,"MarkForDownload","Returns or sets an OlRemoteStatus constant that determines the status of an item once it is received by a remote user. Read/write. (Inherited from _ContactItem.)"]
[null,null,"MessageClass","Returns or sets a String (string in C#) representing the message class for the Outlook item. Read/write. (Inherited from _ContactItem.)"]
[null,null,"MiddleName","Returns or sets a String (string in C#) representing the middle name for the contact. Read/write. (Inherited from _ContactItem.)"]
[null,null,"Mileage","Returns or sets a String (string in C#) representing the mileage for an item. Read/write. (Inherited from _ContactItem.)"]
[null,null,"MobileTelephoneNumber","Returns or sets a String (string in C#) representing the mobile telephone number for the contact. Read/write. (Inherited from _ContactItem.)"]
[null,null,"NetMeetingAlias","Returns or sets a String (string in C#) indicating the user's Microsoft NetMeeting ID, or alias. Read/write. (Inherited from _ContactItem.)"]
[null,null,"NetMeetingServer","Returns or sets a String (string in C#) specifying the name of the Microsoft NetMeeting server being used for an online meeting. Read/write. (Inherited from _ContactItem.)"]
[null,null,"NickName","Returns or sets a String (string in C#) representing the nickname for the contact. Read/write. (Inherited from _ContactItem.)"]
[null,null,"NoAging","Returns or sets a Boolean (bool in C#) value that is True to not age the Outlook item. Read/write. (Inherited from _ContactItem.)"]
[null,null,"OfficeLocation","Returns or sets a String (string in C#) specifying the specific office location (for example, Building 1 Room 1 or Suite 123) for the contact. Read/write. (Inherited from _ContactItem.)"]
[null,null,"OrganizationalIDNumber","Returns or sets a String (string in C#) representing the organizational ID number for the contact. Read/write. (Inherited from _ContactItem.)"]
[null,null,"OtherAddress","Returns or sets a String (string in C#) representing the other address for the contact. Read/write. (Inherited from _ContactItem.)"]
[null,null,"OtherAddressCity","Returns or sets a String (string in C#) representing the city portion of the other address for the contact. Read/write. (Inherited from _ContactItem.)"]
[null,null,"OtherAddressCountry","Returns or sets a String (string in C#) representing the country/region portion of the other address for the contact. Read/write. (Inherited from _ContactItem.)"]
[null,null,"OtherAddressPostalCode","Returns or sets a String (string in C#) representing the postal code portion of the other address for the contact. Read/write. (Inherited from _ContactItem.)"]
[null,null,"OtherAddressPostOfficeBox","Returns or sets a String (string in C#) representing the post office box portion of the other address for the contact. Read/write. (Inherited from _ContactItem.)"]
[null,null,"OtherAddressState","Returns or sets a String (string in C#) representing the state portion of the other address for the contact. Read/write. (Inherited from _ContactItem.)"]
[null,null,"OtherAddressStreet","Returns or sets a String (string in C#) representing the street portion of the other address for the contact. Read/write. (Inherited from _ContactItem.)"]
[null,null,"OtherFaxNumber","Returns or sets a String (string in C#) representing the other fax number for the contact. Read/write. (Inherited from _ContactItem.)"]
[null,null,"OtherTelephoneNumber","Returns or sets a String (string in C#) representing the other telephone number for the contact. Read/write. (Inherited from _ContactItem.)"]
[null,null,"OutlookInternalVersion","Returns an Integer (int in C#) value representing the build number of the Outlook application for an Outlook item. Read-only. (Inherited from _ContactItem.)"]
[null,null,"OutlookVersion","Returns a String (string in C#) indicating the major and minor version number of the Outlook application for an Outlook item. Read-only. (Inherited from _ContactItem.)"]
[null,null,"PagerNumber","Returns or sets a String (string in C#) representing the pager number for the contact. Read/write. (Inherited from _ContactItem.)"]
[null,null,"Parent","Returns the parent Object of the specified object. Read-only. (Inherited from _ContactItem.)"]
[null,null,"PersonalHomePage","Returns or sets a String (string in C#) representing the URL of the personal Web page for the contact. Read/write. (Inherited from _ContactItem.)"]
[null,null,"PrimaryTelephoneNumber","Returns or sets a String (string in C#) specifying the primary telephone number for the contact. Read/write. (Inherited from _ContactItem.)"]
[null,null,"Profession","Returns or sets a String (string in C#) indicating the profession for the contact. Read/write. (Inherited from _ContactItem.)"]
[null,null,"PropertyAccessor","Returns a PropertyAccessor object that supports creating, getting, setting, and deleting properties of the parent ContactItem object. Read-only. (Inherited from _ContactItem.)"]
[null,null,"RadioTelephoneNumber","Returns or sets a String (string in C#) indicating the radio telephone number for the contact. Read/write. (Inherited from _ContactItem.)"]
[null,null,"ReferredBy","Returns or sets a String (string in C#) specifying the referral name entry for the contact. Read/write. (Inherited from _ContactItem.)"]
[null,null,"ReminderOverrideDefault","Returns or sets a Boolean (bool in C#) value that is True if the reminder overrides the default reminder behavior for the item. Read/write. (Inherited from _ContactItem.)"]
[null,null,"ReminderPlaySound","Returns or sets a Boolean (bool in C#) value that is True if the reminder should play a sound when it occurs for this item. Read/write. (Inherited from _ContactItem.)"]
[null,null,"ReminderSet","Returns or sets a Boolean (bool in C#) value that is True if a reminder has been set for this item. Read/write. (Inherited from _ContactItem.)"]
[null,null,"ReminderSoundFile","Returns or sets a String (string in C#) indicating the path and file name of the sound file to play when the reminder occurs for the Outlook item. Read/write. (Inherited from _ContactItem.)"]
[null,null,"ReminderTime","Returns or sets a DateTime indicating the date and time at which the reminder should occur for the specified item. Read/write. (Inherited from _ContactItem.)"]
[null,null,"RTFBody","Returns or sets a byte array that represents the body of the Microsoft Outlook item in Rich Text Format. Read/write. (Inherited from _ContactItem.)"]
[null,null,"Saved","Returns a Boolean (bool in C#) value that is True if the Outlook item has not been modified since the last save. Read-only. (Inherited from _ContactItem.)"]
[null,null,"SelectedMailingAddress","Returns or sets an OlMailingAddress constant indicating the type of the mailing address for the contact. Read/write. (Inherited from _ContactItem.)"]
[null,null,"Sensitivity","Returns or sets a constant in the OlSensitivity enumeration indicating the sensitivity for the Outlook item. Read/write. (Inherited from _ContactItem.)"]
[null,null,"Session","Returns the NameSpace object for the current session. Read-only. (Inherited from _ContactItem.)"]
[null,null,"Size","Returns an Integer (int in C#) value indicating the size (in bytes) of the Outlook item. Read-only. (Inherited from _ContactItem.)"]
[null,null,"Spouse","Returns or sets a String (string in C#) indicating the spouse name entry for the contact. Read/write. (Inherited from _ContactItem.)"]
[null,null,"Subject","Returns or sets a String (string in C#) indicating the subject for the Outlook item. Read/write. (Inherited from _ContactItem.)"]
[null,null,"Suffix","Returns or sets a String (string in C#) indicating the name suffix (such as Jr., III, or Ph.D.) for the specified contact. Read/write. (Inherited from _ContactItem.)"]
[null,null,"TaskCompletedDate","Returns or sets a DateTime value that represents the completion date of the task for this ContactItem. Read/write. (Inherited from _ContactItem.)"]
[null,null,"TaskDueDate","Returns or sets a DateTime value that represents the due date of the task for this ContactItem. Read/write. (Inherited from _ContactItem.)"]
[null,null,"TaskStartDate","Returns or sets a DateTime value that represents the start date of the task for this ContactItem object. Read/write. (Inherited from _ContactItem.)"]
[null,null,"TaskSubject","Returns or sets a String (string in C#) value that represents the subject of the task for the ContactItem object. Read/write. (Inherited from _ContactItem.)"]
[null,null,"TelexNumber","Returns or sets a String (string in C#) indicating the telex number for the contact. Read/write. (Inherited from _ContactItem.)"]
[null,null,"Title","Returns or sets a String (string in C#) indicating the title for the contact. Read/write. (Inherited from _ContactItem.)"]
[null,null,"ToDoTaskOrdinal","Returns or sets a DateTime value that represents the ordinal value of the task for the ContactItem. Read/write. (Inherited from _ContactItem.)"]
[null,null,"TTYTDDTelephoneNumber","Returns or sets a String (string in C#) specifying the TTY/TDD telephone number for the contact. Read/write. (Inherited from _ContactItem.)"]
[null,null,"UnRead","Returns or sets a Boolean (bool in C#) value that is True if the Outlook item has not been opened (read). Read/write. (Inherited from _ContactItem.)"]
[null,null,"User1","Returns or sets a String (string in C#) specifying the first field on the Contacts form intended for miscellaneous use for the contact. Read/write. (Inherited from _ContactItem.)"]
[null,null,"User2","Returns or sets a String (string in C#) specifying the second field on the Contacts form intended for miscellaneous use for the contact. Read/write. (Inherited from _ContactItem.)"]
[null,null,"User3","Returns or sets a String (string in C#) specifying the third field on the Contacts form intended for miscellaneous use for the contact. Read/write. (Inherited from _ContactItem.)"]
[null,null,"User4","Returns or sets a String (string in C#) specifying the fourth field on the Contacts form intended for miscellaneous use for the contact. Read/write. (Inherited from _ContactItem.)"]
[null,null,"UserCertificate","This object, member, or enumeration is deprecated and is not intended to be used in your code. (Inherited from _ContactItem.)"]
[null,null,"UserProperties","Returns the UserProperties collection that represents all the user properties for the Outlook item. Read-only. (Inherited from _ContactItem.)"]
[null,null,"WebPage","Returns or sets a String (string in C#) indicating the URL of the Web page for the contact. Read/write. (Inherited from _ContactItem.)"]
[null,null,"YomiCompanyName","Returns or sets a String (string in C#) indicating the Japanese phonetic rendering (yomigana) of the company name for the contact. Read/write. (Inherited from _ContactItem.)"]
[null,null,"YomiFirstName","Returns or sets a String (string in C#) indicating the Japanese phonetic rendering (yomigana) of the first name for the contact. Read/write. (Inherited from _ContactItem.)"]
[null,null,"YomiLastName","Returns or sets a String (string in C#) indicating the Japanese phonetic rendering (yomigana) of the last name for the contact. Read/write. (Inherited from _ContactItem.)"]

{"sheet":"VCF 3.0 Standard","index":6,"n_rows":143,"n_cols":5,"rows_kept":143,"cut":false,"hidden":false,"merged":[[72,2,74,2],[72,4,74,4],[75,2,76,2],[75,3,76,3],[78,2,79,2],[78,4,79,4],[68,4,69,4],[54,2,55,2],[54,4,55,4],[57,2,58,2],[57,4,58,4],[59,2,60,2],[59,4,60,4],[62,2,63,2],[62,3,63,3],[65,2,67,2],[65,3,67,3],[68,2,69,2]]}
[]
[]
[]
[]
[]
[]
[]
[]
[]
[]
[]
[]
[]
[]
[]
[]
[]
[]
[]
[]
[]
[]
[]
[]
[]
[]
[]
[]
[]
[]
[]
[]
[]
[]
[]
[]
[]
[]
[]
[]
[]
[]
[]
[]
[]
[]
[]
[]
[]
[]
[]
[]
[]
[null,null,"vCard 3.0 Property","Description","Example"]
[null,null,"VERSION*:","the specification used to format this vCard.The value MUST be “3.0″ according to the specifications described here.","VERSION:3.0"]
[null,null,null,"(*required)"]
[null,null,"N*:","name (semicolon separated: LASTNAME; FIRSTNAME; ADDITIONAL NAME; NAME PREFIX(Mr.,Mrs.); NAME SUFFIX) (*required)"]
[null,null,"FN*:","formatted name (The way that the name is to be displayed. It can contain desired honorific prefixes, suffixes, titles.)"]
[null,null,null,"(*required)"]
[null,null,"ADR[;TYPE= type*[\",\"type]]:","(delivery) address (type = dom(domestic), intl(international)(default), postal(default), parcel(default), home, work(default))","ADR;TYPE=dom,home,postal,parcel: ;;123 Main Street;Any Town;CA;91921;"]
[null,null,null,"(content fields are in order: Post Office Address; Extended Address; Street; Locality; Region; Postal Code; Country)"]
[null,null,"BDAY:","birthday (YYYY-MM-DD)","BDAY:1991-05-15"]
[null,null,"EMAIL[;TYPE= type*[\",\"type]]:","eMail address (type = aol, applelink, attmail, cis, eworld, internet(default), ibmmail, mcimail, powershare, prodigy, tlx, x400)","EMAIL:info@evenx.com"]
[null,null,null,null,"EMAIL;TYPE=internet:info@evenx.com"]
[null,null,"GEO:","information related to the global position","GEO:37.144534;-122.264581"]
[null,null,"KEY[;TYPE=type]:","Public key (type = X509; PGP)","KEY;ENCODING=b:SBBIEhvd2VzMS"]
[null,null,null,null,"EwHwYJKoZIhvcNAQ"]
[null,null,null,null,"kBFhJob3dlc0BuZX"]
[null,null,"LABEL[;TYPE= type*[\",\"type]]:","To specify formatted text corresponding to delivery address. It allows to use =0D=0A (\\n) as line break for individual lines within the vCard.","LABEL;TYPE=work,dom,postal: Wallstr.1\\n Berlin\\nGermany"]
[null,null,null,"(type (can be concatenated with “,”) = dom(domestic), intl(international)(default), postal(default), parcel(default), home, work(default))"]
[null,null,"LANG:","adding a language string as defined in RFC 1766","LANG:en-US"]
[null,null,"NOTE:","supplemental information","NOTE:This number is operational 0800 to 1730 EST\\, Mon-Fri."]
[null,null,"ORG:","name and optionally the unit(s) of the organization.","ORG: Company LLC.; Development"]
[null,null,null,"First is Organization Name, remainder are Organization Units."]
[null,null,null,"org-value = *[text-value \";\"] text-value"]
[null,null,"REV:","last revision , date of last update","REV:2012-12-12T22:11:10Z"]
[null,null,null,null,"REV:2012-12-12"]
[null,null,"ROLE:","role, occupation or business category within an organization"]
[null,null,"TEL[;TYPE= type *[\",\"type]]:","telephone number and type (type = PREF, WORK,"]
[null,null,null,"HOME, VOICE(default), FAX, MSG, CELL, PAGER, BBS, MODEM, CAR, ISDN, VIDEO)"]
[null,null,"TITLE:","Job title, functional position or function","TITLE:Area Administrator"]
[null,null,"TZ:","Time zone","TZ:-05:00"]
[null,null,"UID:","represents a persistent, globally unique identifier associated with the object","UID:20120515-082345- 40000F197843-0352"]
[null,null,"URL:","represents Uniform Resource Locator","URL:http://www.evenx.com"]
[]
[]
[]
[]
[]
[]
[]
[]
[]
[]
[]
[]
[]
[null,"Required","VERSION:"]
[null,"Required","N:"]
[null,"Required","FN:"]
[null,null,"ADR[;TYPE= type*[\",\"type]]:"]
[null,null,"BDAY:"]
[null,null,"EMAIL[;TYPE= type*[\",\"type]]:"]
[null,null,"GEO:"]
[null,null,"KEY[;TYPE=type]:"]
[null,null,"LABEL[;TYPE= type*[\",\"type]]:"]
[null,null,"LANG:"]
[null,null,"NOTE:"]
[null,null,"ORG:"]
[null,null,"REV:"]
[null,null,"ROLE:"]
[null,null,"TEL[;TYPE= type *[\",\"type]]:"]
[null,null,"TITLE:"]
[null,null,"TZ:"]
[null,null,"UID:"]
[null,null,"URL:"]
[]
[]
[null,"Potential Fields"]
[null,"Required","VERSION:"]
[null,"Required","N:"]
[null,"Required","FN:"]
[null,null,"ADR:"]
[null,"with type","ADR;"]
[null,null,"BDAY:"]
[null,null,"EMAIL:"]
[null,"with type","EMAIL;"]
[null,null,"GEO:"]
[null,null,"KEY:"]
[null,"with type","KEY;"]
[null,null,"LABEL:"]
[null,"with type","LABEL;"]
[null,null,"LANG:"]
[null,null,"NOTE:"]
[null,null,"ORG:"]
[null,null,"REV:"]
[null,null,"ROLE:"]
[null,null,"TEL:"]
[null,"with type","TEL;"]
[null,null,"TITLE:"]
[null,null,"TZ:"]
[null,null,"UID:"]
[null,null,"URL:"]